Workbook

Sheet BDI
D3: DEPARTAMENTO ESTADUAL DE TRÂNSITO COORDENADORIA DE ENGENHARIA E ARQUITETURA DIVISÃO DE SINALIZAÇÃO | O3: EDITAR APENAS OS ITENS EM VERMELHO
D9: EXECUÇÃO DE SERVIÇOS DE SINALIZAÇÃO VIÁRIA: | E9: ='FOLHA FECHAMENTO'!D12 -> 
D10: PRAZO DE OBRA: | E10: ='FOLHA FECHAMENTO'!G32 -> 90 | F10: DIAS CORRIDOS
D11: COMPOSIÇÃO DE BDI PARA SERVIÇOS DE SINALIZAÇÃO VIÁRIA | I11: Vigência: 01/12/2024
B13: CUSTO TOTAL DO SERVIÇO (R$): | J13: ='PLANILHA_SINTÉTICA'!N48 -> 0
B14: ITEM | C14: DISCRIMINAÇÃO | D14: VALOR (R$) | E14: TAXA (%) | F14: OBSERVAÇÃO | G14: SITUAÇÃO DO INTERVALO ADMISSIVEL | H14: PARCELAS DO BDI (%)
H15: 1 Quartil | I15: Médio | J15: 3 Quartil
B16: 1 | C16: AC - ADMINISTRAÇÃO CENTRAL | D16: =E16*$J$13 -> 0 | E16: 0.038 | G16: =IF(AND(E16>=H16,E16<=J16),"OK","DIFERE") -> OK | H16: 0.038 | I16: 0.0401 | J16: 0.0467 | L16: AC | M16: ADMINISTRAÇÃO CENTRAL
B17: 2 | C17: SG - SEGUROS + GARANTIA | D17: 0 | E17: 0.0033 | G17: OK | H17: 0.0032 | I17: 0.004 | J17: 0.0074 | L17: SG | M17: SEGUROS + GARANTIA
B18: 3 | C18: R - RISCOS | D18: 0 | E18: 0.009 | G18: OK | H18: 0.005 | I18: 0.0056 | J18: 0.0097 | L18: R | M18: RISCOS
B19: 4 | C19: DF - DESPESAS FINANCEIRAS | D19: =E19*($J$13+D16+D17+D18) -> 0 | E19: 0.0104 | G19: OK | H19: 0.0102 | I19: 0.0111 | J19: 0.0121 | L19: DF | M19: DESPESAS FINANCEIRAS
B20: 5 | C20: L - LUCRO BRUTO | D20: =E20*($J$13+D16+D17+D18+D19) -> 0 | E20: 0.055 | G20: OK | H20: 0.0664 | I20: 0.073 | J20: 0.0869 | L20: L | M20: LUCRO BRUTO
B21: 6 | C21: I - IMPOSTOS | D21: =E21*$J$13*(1+E28) -> 0 | E21: =SUM(E22:E25) -> 0.0865 | L21: I | M21: IMPOSTOS
B22: 6.1 | C22: PIS | E22: 0.0065
B23: 6.2 | C23: COFINS | E23: 0.03
B24: 6.3 | C24: ISS (CONFORME LEGISLAÇÃO MUNICIPAL) | E24: 0.05
B25: 6.4 | C25: CONTRIB.PREV. SOBRE REC. BRUTA - CPRB | E25: 0
B26: TOTAL DO BDI (R$) | D26: ='PLANILHA_SINTÉTICA'!N49 -> 0 | G26: Parâmetros do Acórdão 2.622/2013 - Plenário
B27: PREÇO DE VENDA (R$) | D27: =D26+J13 -> 0 | G27: Sem CPRB | H27: 0.196 | I27: 0.2097 | J27: 0.2423
B28: BDI (%) | E28: =(((1+$E16+$E17+$E18)*(1+$E19)*(1+$E20)/(1-$E21)))-1 -> 0.2256052453 | F28: =IF(AND($E28>=$H28,$E28<=$J28),"OK","DIFERE") -> OK | G28: Com CPRB | H28: =((H27+1)*(1-F31))/((1-F31)-E25)-1 -> 0.196 | I28: =((I27+1)*(1-F31))/((1-F31)-E25)-1 -> 0.2097 | J28: =((J27+1)*(1-F31))/((1-F31)-E25)-1 -> 0.2423
G30: Equação Acordão TCU 2.622/2013 - Plenário
B34: Onde:
B35: AC: taxa de administração central;
B36: S: taxa de seguros;
B37: G: taxa de garantias;
B38: R: taxa de riscos;
B39: DF: taxa de despesas financeiras;
B40: L: taxa de lucro/remuneração;
B41: I: taxa de incidência de impostos (PIS, COFINS, ISS, CPRB).
G42: ='FOLHA FECHAMENTO'!H17 -> 
G43: Responsável Técnico
G44: Carimbo e Assinatura

Sheet PLANILHA_SINTÉTICA
C5: PLANILHA DE SERVIÇOS SINTÉTICA NÃO DESONERADA
C7: DEPARTAMENTO ESTADUAL DE TRÂNSITO - DETRAN PR
C8: COORDENADORIA DE ENGENHARIA E ARQUITETURA - DIVISÃO DE SINALIZAÇÃO
C9: PROJETO DE SINALIZAÇÃO VIÁRIA URBANA | E9: ='FOLHA FECHAMENTO'!D12 ->  | K9: ART/RRT Nº: | L9: ='FOLHA FECHAMENTO'!M18 -> 
B10: Ref. | C10: ='FOLHA FECHAMENTO'!F41 -> SICRO (MAR/2025), DER (out/2024) e SCO-RIO (mar/2025), SIURB (JAN/2024) S. DESONERAÇÃO | E10: RESPONSÁVEL TÉCNICO: | G10: ='FOLHA FECHAMENTO'!H17 ->  | K10: REG. CREA/CAU: | L10: ='FOLHA FECHAMENTO'!M17 -> 
B12: ITEM | C12: DESCRIÇÃO | D12: ÓRGÃO | E12: CÓDIGO | F12: DATA BASE | G12: UNIDADE | H12: QUANTIDADE | I12: MÃO DE OBRA | J12: MATERIAL | K12: CUSTO UNITÁRIO | L12: MÃO DE OBRA T. | M12: MATERIAL T. | N12: CUSTO TOTAL
B13: 1 | C13: SINALIZAÇÃO VERTICAL | H13: - | L13: =SUM(L14:L32) -> 0 | M13: 0 | N13: 0
B14: ='PLANILHA REFERENCIA DETRAN PR'!A7 -> 1.1 | C14: =VLOOKUP('PLANILHA_SINTÉTICA'!$B14,'PLANILHA REFERENCIA DETRAN PR'!$A$4:$I$38,2,FALSE) -> Placa tipo R-1 - L = 0,25m. Com película refletiva tipo I A (prismática) - Área: 0,32 m² | D14: =VLOOKUP('PLANILHA_SINTÉTICA'!$B14,'PLANILHA REFERENCIA DETRAN PR'!$A$4:$I$38,3,FALSE) -> DETRAN-PR | E14: =VLOOKUP('PLANILHA_SINTÉTICA'!$B14,'PLANILHA REFERENCIA DETRAN PR'!$A$4:$I$38,4,FALSE) -> COMP.05 | F14: =VLOOKUP('PLANILHA_SINTÉTICA'!$B14,'PLANILHA REFERENCIA DETRAN PR'!$A$4:$I$38,5,FALSE) -> 2025-04-07 | G14: =VLOOKUP('PLANILHA_SINTÉTICA'!$B14,'PLANILHA REFERENCIA DETRAN PR'!$A$4:$I$38,6,FALSE) -> unid | I14: =VLOOKUP('PLANILHA_SINTÉTICA'!$B14,'PLANILHA REFERENCIA DETRAN PR'!$A$4:$I$38,7,FALSE) -> 59.1392 | J14: =VLOOKUP('PLANILHA_SINTÉTICA'!$B14,'PLANILHA REFERENCIA DETRAN PR'!$A$4:$I$38,8,FALSE) -> 87.5104 | K14: =VLOOKUP('PLANILHA_SINTÉTICA'!$B14,'PLANILHA REFERENCIA DETRAN PR'!$A$4:$I$38,9,FALSE) -> 146.6496 | L14: =I14*H14 -> 0 | M14: =J14*H14 -> 0 | N14: =ROUND(K14*H14,2) -> 0
B15: ='PLANILHA REFERENCIA DETRAN PR'!A8 -> 1.2 | C15: =VLOOKUP('PLANILHA_SINTÉTICA'!$B15,'PLANILHA REFERENCIA DETRAN PR'!$A$4:$I$38,2,FALSE) -> Placa tipo R-2 - L = 0,75m. Com película refletiva tipo I A (prismática) - Área: 0,24m² | D15: =VLOOKUP('PLANILHA_SINTÉTICA'!$B15,'PLANILHA REFERENCIA DETRAN PR'!$A$4:$I$38,3,FALSE) -> DETRAN-PR | E15: =VLOOKUP('PLANILHA_SINTÉTICA'!$B15,'PLANILHA REFERENCIA DETRAN PR'!$A$4:$I$38,4,FALSE) -> COMP.06 | F15: =VLOOKUP('PLANILHA_SINTÉTICA'!$B15,'PLANILHA REFERENCIA DETRAN PR'!$A$4:$I$38,5,FALSE) -> 2025-04-07 | G15: =VLOOKUP('PLANILHA_SINTÉTICA'!$B15,'PLANILHA REFERENCIA DETRAN PR'!$A$4:$I$38,6,FALSE) -> unid | I15: =VLOOKUP('PLANILHA_SINTÉTICA'!$B15,'PLANILHA REFERENCIA DETRAN PR'!$A$4:$I$38,7,FALSE) -> 44.3544 | J15: =VLOOKUP('PLANILHA_SINTÉTICA'!$B15,'PLANILHA REFERENCIA DETRAN PR'!$A$4:$I$38,8,FALSE) -> 65.6328 | K15: =VLOOKUP('PLANILHA_SINTÉTICA'!$B15,'PLANILHA REFERENCIA DETRAN PR'!$A$4:$I$38,9,FALSE) -> 109.9872 | L15: 0 | M15: 0 | N15: 0
B16: ='PLANILHA REFERENCIA DETRAN PR'!A9 -> 1.3 | C16: =VLOOKUP('PLANILHA_SINTÉTICA'!$B16,'PLANILHA REFERENCIA DETRAN PR'!$A$4:$I$38,2,FALSE) -> Placa tipo circular - D = 0,50m. Com película refletiva tipo I A (prismática) - Área: 0,21m² | D16: =VLOOKUP('PLANILHA_SINTÉTICA'!$B16,'PLANILHA REFERENCIA DETRAN PR'!$A$4:$I$38,3,FALSE) -> DETRAN-PR | E16: =VLOOKUP('PLANILHA_SINTÉTICA'!$B16,'PLANILHA REFERENCIA DETRAN PR'!$A$4:$I$38,4,FALSE) -> COMP.07 | F16: =VLOOKUP('PLANILHA_SINTÉTICA'!$B16,'PLANILHA REFERENCIA DETRAN PR'!$A$4:$I$38,5,FALSE) -> 2025-04-07 | G16: =VLOOKUP('PLANILHA_SINTÉTICA'!$B16,'PLANILHA REFERENCIA DETRAN PR'!$A$4:$I$38,6,FALSE) -> unid | I16: =VLOOKUP('PLANILHA_SINTÉTICA'!$B16,'PLANILHA REFERENCIA DETRAN PR'!$A$4:$I$38,7,FALSE) -> 38.8101 | J16: =VLOOKUP('PLANILHA_SINTÉTICA'!$B16,'PLANILHA REFERENCIA DETRAN PR'!$A$4:$I$38,8,FALSE) -> 57.4287 | K16: =VLOOKUP('PLANILHA_SINTÉTICA'!$B16,'PLANILHA REFERENCIA DETRAN PR'!$A$4:$I$38,9,FALSE) -> 96.2388 | L16: 0 | M16: 0 | N16: 0
B17: ='PLANILHA REFERENCIA DETRAN PR'!A10 -> 1.4 | C17: =VLOOKUP('PLANILHA_SINTÉTICA'!$B17,'PLANILHA REFERENCIA DETRAN PR'!$A$4:$I$38,2,FALSE) -> Placa tipo de advertência - L = 0,50m. Com película refletiva tipo I A (prismática) - Área: 0,27 m² | D17: =VLOOKUP('PLANILHA_SINTÉTICA'!$B17,'PLANILHA REFERENCIA DETRAN PR'!$A$4:$I$38,3,FALSE) -> DETRAN-PR | E17: =VLOOKUP('PLANILHA_SINTÉTICA'!$B17,'PLANILHA REFERENCIA DETRAN PR'!$A$4:$I$38,4,FALSE) -> COMP.08 | F17: =VLOOKUP('PLANILHA_SINTÉTICA'!$B17,'PLANILHA REFERENCIA DETRAN PR'!$A$4:$I$38,5,FALSE) -> 2025-04-07 | G17: =VLOOKUP('PLANILHA_SINTÉTICA'!$B17,'PLANILHA REFERENCIA DETRAN PR'!$A$4:$I$38,6,FALSE) -> unid | I17: =VLOOKUP('PLANILHA_SINTÉTICA'!$B17,'PLANILHA REFERENCIA DETRAN PR'!$A$4:$I$38,7,FALSE) -> 49.8987 | J17: =VLOOKUP('PLANILHA_SINTÉTICA'!$B17,'PLANILHA REFERENCIA DETRAN PR'!$A$4:$I$38,8,FALSE) -> 73.8369 | K17: =VLOOKUP('PLANILHA_SINTÉTICA'!$B17,'PLANILHA REFERENCIA DETRAN PR'!$A$4:$I$38,9,FALSE) -> 123.7356 | L17: 0 | M17: 0 | N17: 0
B18: ='PLANILHA REFERENCIA DETRAN PR'!A11 -> 1.5 | C18: =VLOOKUP('PLANILHA_SINTÉTICA'!$B18,'PLANILHA REFERENCIA DETRAN PR'!$A$4:$I$38,2,FALSE) -> Placa tipo retangular - L = 0,50m x h= 1,00 m. Com película refletiva tipo I A (prismática) | D18: ='PLANILHA REFERENCIA DETRAN PR'!C10 -> DETRAN-PR | E18: =VLOOKUP('PLANILHA_SINTÉTICA'!$B18,'PLANILHA REFERENCIA DETRAN PR'!$A$4:$I$38,4,FALSE) -> COMP.09 | F18: ='PLANILHA REFERENCIA DETRAN PR'!E10 -> 2025-04-07 | G18: =VLOOKUP('PLANILHA_SINTÉTICA'!$B18,'PLANILHA REFERENCIA DETRAN PR'!$A$4:$I$38,6,FALSE) -> unid | I18: =VLOOKUP('PLANILHA_SINTÉTICA'!$B18,'PLANILHA REFERENCIA DETRAN PR'!$A$4:$I$38,7,FALSE) -> 92.405 | J18: =VLOOKUP('PLANILHA_SINTÉTICA'!$B18,'PLANILHA REFERENCIA DETRAN PR'!$A$4:$I$38,8,FALSE) -> 136.735 | K18: =VLOOKUP('PLANILHA_SINTÉTICA'!$B18,'PLANILHA REFERENCIA DETRAN PR'!$A$4:$I$38,9,FALSE) -> 229.14 | L18: 0 | M18: 0 | N18: 0
B19: ='PLANILHA REFERENCIA DETRAN PR'!A12 -> 1.6 | C19: =VLOOKUP('PLANILHA_SINTÉTICA'!$B19,'PLANILHA REFERENCIA DETRAN PR'!$A$4:$I$38,2,FALSE) -> Placa sinalização em chapa de aço nº18 galvanizada c/ película refletiva Tipo I A (prismática) - Utilizar apenas para placas não listadas no orçamento | D19: =VLOOKUP('PLANILHA_SINTÉTICA'!$B19,'PLANILHA REFERENCIA DETRAN PR'!$A$4:$I$38,3,FALSE) -> DERPR | E19: =VLOOKUP('PLANILHA_SINTÉTICA'!$B19,'PLANILHA REFERENCIA DETRAN PR'!$A$4:$I$38,4,FALSE) -> 820000 | F19: =VLOOKUP('PLANILHA_SINTÉTICA'!$B19,'PLANILHA REFERENCIA DETRAN PR'!$A$4:$I$38,5,FALSE) -> 2024-10-31 | G19: =VLOOKUP('PLANILHA_SINTÉTICA'!$B19,'PLANILHA REFERENCIA DETRAN PR'!$A$4:$I$38,6,FALSE) -> m2 | I19: =VLOOKUP('PLANILHA_SINTÉTICA'!$B19,'PLANILHA REFERENCIA DETRAN PR'!$A$4:$I$38,7,FALSE) -> 184.81 | J19: =VLOOKUP('PLANILHA_SINTÉTICA'!$B19,'PLANILHA REFERENCIA DETRAN PR'!$A$4:$I$38,8,FALSE) -> 273.47 | K19: =VLOOKUP('PLANILHA_SINTÉTICA'!$B19,'PLANILHA REFERENCIA DETRAN PR'!$A$4:$I$38,9,FALSE) -> 458.28 | L19: 0 | M19: 0 | N19: 0
B20: ='PLANILHA REFERENCIA DETRAN PR'!A13 -> 1.7 | C20: =VLOOKUP('PLANILHA_SINTÉTICA'!$B20,'PLANILHA REFERENCIA DETRAN PR'!$A$4:$I$38,2,FALSE) -> Suporte polimérico ecológico maciço colapsível D = 6,5 cm para placa de sinalização - fornecimento e implantação - 3,00 m | D20: =VLOOKUP('PLANILHA_SINTÉTICA'!$B20,'PLANILHA REFERENCIA DETRAN PR'!$A$4:$I$38,3,FALSE) -> DNIT | E20: =VLOOKUP('PLANILHA_SINTÉTICA'!$B20,'PLANILHA REFERENCIA DETRAN PR'!$A$4:$I$38,4,FALSE) -> 5213351-ed | F20: =VLOOKUP('PLANILHA_SINTÉTICA'!$B20,'PLANILHA REFERENCIA DETRAN PR'!$A$4:$I$38,5,FALSE) -> 2025-01-01 | G20: =VLOOKUP('PLANILHA_SINTÉTICA'!$B20,'PLANILHA REFERENCIA DETRAN PR'!$A$4:$I$38,6,FALSE) -> un | I20: =VLOOKUP('PLANILHA_SINTÉTICA'!$B20,'PLANILHA REFERENCIA DETRAN PR'!$A$4:$I$38,7,FALSE) ->  | J20: =VLOOKUP('PLANILHA_SINTÉTICA'!$B20,'PLANILHA REFERENCIA DETRAN PR'!$A$4:$I$38,8,FALSE) -> 573.6 | K20: =VLOOKUP('PLANILHA_SINTÉTICA'!$B20,'PLANILHA REFERENCIA DETRAN PR'!$A$4:$I$38,9,FALSE) -> 573.6 | L20: 0 | M20: 0 | N20: 0
B21: ='PLANILHA REFERENCIA DETRAN PR'!A14 -> 1.8 | C21: =VLOOKUP('PLANILHA_SINTÉTICA'!$B21,'PLANILHA REFERENCIA DETRAN PR'!$A$4:$I$38,2,FALSE) -> Suporte polimérico ecológico maciço colapsível D = 6,5 cm para placa de sinalização - fornecimento e implantação - 3,60 m | D21: =VLOOKUP('PLANILHA_SINTÉTICA'!$B21,'PLANILHA REFERENCIA DETRAN PR'!$A$4:$I$38,3,FALSE) -> DNIT | E21: =VLOOKUP('PLANILHA_SINTÉTICA'!$B21,'PLANILHA REFERENCIA DETRAN PR'!$A$4:$I$38,4,FALSE) -> 5213351 | F21: =VLOOKUP('PLANILHA_SINTÉTICA'!$B21,'PLANILHA REFERENCIA DETRAN PR'!$A$4:$I$38,5,FALSE) -> 2025-01-01 | G21: =VLOOKUP('PLANILHA_SINTÉTICA'!$B21,'PLANILHA REFERENCIA DETRAN PR'!$A$4:$I$38,6,FALSE) -> un | I21: =VLOOKUP('PLANILHA_SINTÉTICA'!$B21,'PLANILHA REFERENCIA DETRAN PR'!$A$4:$I$38,7,FALSE) ->  | J21: =VLOOKUP('PLANILHA_SINTÉTICA'!$B21,'PLANILHA REFERENCIA DETRAN PR'!$A$4:$I$38,8,FALSE) -> 688.32 | K21: =VLOOKUP('PLANILHA_SINTÉTICA'!$B21,'PLANILHA REFERENCIA DETRAN PR'!$A$4:$I$38,9,FALSE) -> 688.32 | L21: 0 | M21: 0 | N21: 0
B22: ='PLANILHA REFERENCIA DETRAN PR'!A15 -> 1.9 | C22: =VLOOKUP('PLANILHA_SINTÉTICA'!$B22,'PLANILHA REFERENCIA DETRAN PR'!$A$4:$I$38,2,FALSE) -> Suporte metál.galv.fogo d=2,5" c/tampa e aletas antigiro h=3,00m | D22: =VLOOKUP('PLANILHA_SINTÉTICA'!$B22,'PLANILHA REFERENCIA DETRAN PR'!$A$4:$I$38,3,FALSE) -> DERPR | E22: =VLOOKUP('PLANILHA_SINTÉTICA'!$B22,'PLANILHA REFERENCIA DETRAN PR'!$A$4:$I$38,4,FALSE) -> 821300 | F22: =VLOOKUP('PLANILHA_SINTÉTICA'!$B22,'PLANILHA REFERENCIA DETRAN PR'!$A$4:$I$38,5,FALSE) -> 2024-10-31 | G22: =VLOOKUP('PLANILHA_SINTÉTICA'!$B22,'PLANILHA REFERENCIA DETRAN PR'!$A$4:$I$38,6,FALSE) -> ud | I22: =VLOOKUP('PLANILHA_SINTÉTICA'!$B22,'PLANILHA REFERENCIA DETRAN PR'!$A$4:$I$38,7,FALSE) -> 68.52 | J22: =VLOOKUP('PLANILHA_SINTÉTICA'!$B22,'PLANILHA REFERENCIA DETRAN PR'!$A$4:$I$38,8,FALSE) -> 336.14 | K22: =VLOOKUP('PLANILHA_SINTÉTICA'!$B22,'PLANILHA REFERENCIA DETRAN PR'!$A$4:$I$38,9,FALSE) -> 404.66 | L22: 0 | M22: 0 | N22: 0
B23: ='PLANILHA REFERENCIA DETRAN PR'!A16 -> 1.10 | C23: =VLOOKUP('PLANILHA_SINTÉTICA'!$B23,'PLANILHA REFERENCIA DETRAN PR'!$A$4:$I$38,2,FALSE) -> Suporte metál.galv.fogo d=2,5" c/tampa e aletas antigiro h=3,50m | D23: =VLOOKUP('PLANILHA_SINTÉTICA'!$B23,'PLANILHA REFERENCIA DETRAN PR'!$A$4:$I$38,3,FALSE) -> DERPR | E23: =VLOOKUP('PLANILHA_SINTÉTICA'!$B23,'PLANILHA REFERENCIA DETRAN PR'!$A$4:$I$38,4,FALSE) -> 821350 | F23: =VLOOKUP('PLANILHA_SINTÉTICA'!$B23,'PLANILHA REFERENCIA DETRAN PR'!$A$4:$I$38,5,FALSE) -> 2024-10-31 | G23: =VLOOKUP('PLANILHA_SINTÉTICA'!$B23,'PLANILHA REFERENCIA DETRAN PR'!$A$4:$I$38,6,FALSE) -> ud | I23: =VLOOKUP('PLANILHA_SINTÉTICA'!$B23,'PLANILHA REFERENCIA DETRAN PR'!$A$4:$I$38,7,FALSE) -> 68.52 | J23: =VLOOKUP('PLANILHA_SINTÉTICA'!$B23,'PLANILHA REFERENCIA DETRAN PR'!$A$4:$I$38,8,FALSE) -> 392.14 | K23: =VLOOKUP('PLANILHA_SINTÉTICA'!$B23,'PLANILHA REFERENCIA DETRAN PR'!$A$4:$I$38,9,FALSE) -> 460.66 | L23: 0 | M23: 0 | N23: 0
B24: ='PLANILHA REFERENCIA DETRAN PR'!A17 -> 1.11 | C24: =VLOOKUP('PLANILHA_SINTÉTICA'!$B24,'PLANILHA REFERENCIA DETRAN PR'!$A$4:$I$38,2,FALSE) -> Suporte metál.galv.fogo d=2,5" c/tampa e aletas anti-giro h=4,00m | D24: =VLOOKUP('PLANILHA_SINTÉTICA'!$B24,'PLANILHA REFERENCIA DETRAN PR'!$A$4:$I$38,3,FALSE) -> DERPR | E24: =VLOOKUP('PLANILHA_SINTÉTICA'!$B24,'PLANILHA REFERENCIA DETRAN PR'!$A$4:$I$38,4,FALSE) -> 821400 | F24: =VLOOKUP('PLANILHA_SINTÉTICA'!$B24,'PLANILHA REFERENCIA DETRAN PR'!$A$4:$I$38,5,FALSE) -> 2024-10-31 | G24: =VLOOKUP('PLANILHA_SINTÉTICA'!$B24,'PLANILHA REFERENCIA DETRAN PR'!$A$4:$I$38,6,FALSE) -> ud | I24: =VLOOKUP('PLANILHA_SINTÉTICA'!$B24,'PLANILHA REFERENCIA DETRAN PR'!$A$4:$I$38,7,FALSE) -> 68.52 | J24: =VLOOKUP('PLANILHA_SINTÉTICA'!$B24,'PLANILHA REFERENCIA DETRAN PR'!$A$4:$I$38,8,FALSE) -> 447.28 | K24: =VLOOKUP('PLANILHA_SINTÉTICA'!$B24,'PLANILHA REFERENCIA DETRAN PR'!$A$4:$I$38,9,FALSE) -> 515.8 | L24: 0 | M24: 0 | N24: 0
B25: ='PLANILHA REFERENCIA DETRAN PR'!A18 -> 1.12 | C25: =VLOOKUP('PLANILHA_SINTÉTICA'!$B25,'PLANILHA REFERENCIA DETRAN PR'!$A$4:$I$38,2,FALSE) -> Conjunto para placa indicativa (Coluna, Braço, Montagem, Fundação) para placas até 3,00m² - Coluna Tipo I com projeção de 2,80m | D25: =VLOOKUP('PLANILHA_SINTÉTICA'!$B25,'PLANILHA REFERENCIA DETRAN PR'!$A$4:$I$38,3,FALSE) -> DETRAN-PR | E25: =VLOOKUP('PLANILHA_SINTÉTICA'!$B25,'PLANILHA REFERENCIA DETRAN PR'!$A$4:$I$38,4,FALSE) -> COMP.02 | F25: =VLOOKUP('PLANILHA_SINTÉTICA'!$B25,'PLANILHA REFERENCIA DETRAN PR'!$A$4:$I$38,5,FALSE) -> 2025-04-07 | G25: =VLOOKUP('PLANILHA_SINTÉTICA'!$B25,'PLANILHA REFERENCIA DETRAN PR'!$A$4:$I$38,6,FALSE) -> unid | I25: =VLOOKUP('PLANILHA_SINTÉTICA'!$B25,'PLANILHA REFERENCIA DETRAN PR'!$A$4:$I$38,7,FALSE) -> 395.62 | J25: =VLOOKUP('PLANILHA_SINTÉTICA'!$B25,'PLANILHA REFERENCIA DETRAN PR'!$A$4:$I$38,8,FALSE) -> 11138.95 | K25: =VLOOKUP('PLANILHA_SINTÉTICA'!$B25,'PLANILHA REFERENCIA DETRAN PR'!$A$4:$I$38,9,FALSE) -> 11534.57 | L25: 0 | M25: 0 | N25: 0
B26: ='PLANILHA REFERENCIA DETRAN PR'!A19 -> 1.13 | C26: =VLOOKUP('PLANILHA_SINTÉTICA'!$B26,'PLANILHA REFERENCIA DETRAN PR'!$A$4:$I$38,2,FALSE) -> Conjunto para placa indicativa (Coluna, Braço, Montagem, Fundação) para placas até 3,00m² - Coluna Tipo I com projeção de 3,70m | D26: =VLOOKUP('PLANILHA_SINTÉTICA'!$B26,'PLANILHA REFERENCIA DETRAN PR'!$A$4:$I$38,3,FALSE) -> DETRAN-PR | E26: =VLOOKUP('PLANILHA_SINTÉTICA'!$B26,'PLANILHA REFERENCIA DETRAN PR'!$A$4:$I$38,4,FALSE) -> COMP.03 | F26: =VLOOKUP('PLANILHA_SINTÉTICA'!$B26,'PLANILHA REFERENCIA DETRAN PR'!$A$4:$I$38,5,FALSE) -> 2025-04-07 | G26: =VLOOKUP('PLANILHA_SINTÉTICA'!$B26,'PLANILHA REFERENCIA DETRAN PR'!$A$4:$I$38,6,FALSE) -> unid | I26: =VLOOKUP('PLANILHA_SINTÉTICA'!$B26,'PLANILHA REFERENCIA DETRAN PR'!$A$4:$I$38,7,FALSE) -> 395.62 | J26: =VLOOKUP('PLANILHA_SINTÉTICA'!$B26,'PLANILHA REFERENCIA DETRAN PR'!$A$4:$I$38,8,FALSE) -> 13608.95 | K26: =VLOOKUP('PLANILHA_SINTÉTICA'!$B26,'PLANILHA REFERENCIA DETRAN PR'!$A$4:$I$38,9,FALSE) -> 14004.57 | L26: 0 | M26: 0 | N26: 0
B27: ='PLANILHA REFERENCIA DETRAN PR'!A20 -> 1.14 | C27: =VLOOKUP('PLANILHA_SINTÉTICA'!$B27,'PLANILHA REFERENCIA DETRAN PR'!$A$4:$I$38,2,FALSE) -> Conjunto para placa indicativa (Coluna, Braço, Montagem, Fundação) para placas até 4,50m² - Coluna Tipo II com projeção de 6,00m | D27: =VLOOKUP('PLANILHA_SINTÉTICA'!$B27,'PLANILHA REFERENCIA DETRAN PR'!$A$4:$I$38,3,FALSE) -> DETRAN-PR | E27: =VLOOKUP('PLANILHA_SINTÉTICA'!$B27,'PLANILHA REFERENCIA DETRAN PR'!$A$4:$I$38,4,FALSE) -> COMP.04 | F27: =VLOOKUP('PLANILHA_SINTÉTICA'!$B27,'PLANILHA REFERENCIA DETRAN PR'!$A$4:$I$38,5,FALSE) -> 2025-04-07 | G27: =VLOOKUP('PLANILHA_SINTÉTICA'!$B27,'PLANILHA REFERENCIA DETRAN PR'!$A$4:$I$38,6,FALSE) -> unid | I27: =VLOOKUP('PLANILHA_SINTÉTICA'!$B27,'PLANILHA REFERENCIA DETRAN PR'!$A$4:$I$38,7,FALSE) -> 485.56 | J27: =VLOOKUP('PLANILHA_SINTÉTICA'!$B27,'PLANILHA REFERENCIA DETRAN PR'!$A$4:$I$38,8,FALSE) -> 14743.95 | K27: =VLOOKUP('PLANILHA_SINTÉTICA'!$B27,'PLANILHA REFERENCIA DETRAN PR'!$A$4:$I$38,9,FALSE) -> 15229.51 | L27: 0 | M27: 0 | N27: 0
B28: ='PLANILHA REFERENCIA DETRAN PR'!A21 -> 1.15 | C28: =VLOOKUP('PLANILHA_SINTÉTICA'!$B28,'PLANILHA REFERENCIA DETRAN PR'!$A$4:$I$38,2,FALSE) -> Retirada de poste simples de aco, diametro maior que 4".(desonerado) | D28: =VLOOKUP('PLANILHA_SINTÉTICA'!$B28,'PLANILHA REFERENCIA DETRAN PR'!$A$4:$I$38,3,FALSE) -> SCO/RJ | E28: =VLOOKUP('PLANILHA_SINTÉTICA'!$B28,'PLANILHA REFERENCIA DETRAN PR'!$A$4:$I$38,4,FALSE) -> ST 64.15.0300 (/) | F28: =VLOOKUP('PLANILHA_SINTÉTICA'!$B28,'PLANILHA REFERENCIA DETRAN PR'!$A$4:$I$38,5,FALSE) -> 2025-04-07 | G28: =VLOOKUP('PLANILHA_SINTÉTICA'!$B28,'PLANILHA REFERENCIA DETRAN PR'!$A$4:$I$38,6,FALSE) -> un | I28: =VLOOKUP('PLANILHA_SINTÉTICA'!$B28,'PLANILHA REFERENCIA DETRAN PR'!$A$4:$I$38,7,FALSE) ->  | J28: =VLOOKUP('PLANILHA_SINTÉTICA'!$B28,'PLANILHA REFERENCIA DETRAN PR'!$A$4:$I$38,8,FALSE) -> 409.65 | K28: =VLOOKUP('PLANILHA_SINTÉTICA'!$B28,'PLANILHA REFERENCIA DETRAN PR'!$A$4:$I$38,9,FALSE) -> 409.65 | L28: 0 | M28: 0 | N28: 0
B29: ='PLANILHA REFERENCIA DETRAN PR'!A22 -> 1.16 | C29: =VLOOKUP('PLANILHA_SINTÉTICA'!$B29,'PLANILHA REFERENCIA DETRAN PR'!$A$4:$I$38,2,FALSE) -> Retirada de poste simples de aço, diâmetro de 2" (desonerado) | D29: =VLOOKUP('PLANILHA_SINTÉTICA'!$B29,'PLANILHA REFERENCIA DETRAN PR'!$A$4:$I$38,3,FALSE) -> SCO/RJ | E29: =VLOOKUP('PLANILHA_SINTÉTICA'!$B29,'PLANILHA REFERENCIA DETRAN PR'!$A$4:$I$38,4,FALSE) -> ST 64.15.0200 (A) | F29: =VLOOKUP('PLANILHA_SINTÉTICA'!$B29,'PLANILHA REFERENCIA DETRAN PR'!$A$4:$I$38,5,FALSE) -> 2025-04-07 | G29: =VLOOKUP('PLANILHA_SINTÉTICA'!$B29,'PLANILHA REFERENCIA DETRAN PR'!$A$4:$I$38,6,FALSE) -> un | I29: =VLOOKUP('PLANILHA_SINTÉTICA'!$B29,'PLANILHA REFERENCIA DETRAN PR'!$A$4:$I$38,7,FALSE) ->  | J29: =VLOOKUP('PLANILHA_SINTÉTICA'!$B29,'PLANILHA REFERENCIA DETRAN PR'!$A$4:$I$38,8,FALSE) -> 48.51 | K29: =VLOOKUP('PLANILHA_SINTÉTICA'!$B29,'PLANILHA REFERENCIA DETRAN PR'!$A$4:$I$38,9,FALSE) -> 48.51 | L29: 0 | M29: 0 | N29: 0
B30: ='PLANILHA REFERENCIA DETRAN PR'!A23 -> 1.17 | C30: =VLOOKUP('PLANILHA_SINTÉTICA'!$B30,'PLANILHA REFERENCIA DETRAN PR'!$A$4:$I$38,2,FALSE) -> Remoção de placa de sinalização | D30: =VLOOKUP('PLANILHA_SINTÉTICA'!$B30,'PLANILHA REFERENCIA DETRAN PR'!$A$4:$I$38,3,FALSE) -> DNIT | E30: =VLOOKUP('PLANILHA_SINTÉTICA'!$B30,'PLANILHA REFERENCIA DETRAN PR'!$A$4:$I$38,4,FALSE) -> 5213364 | F30: =VLOOKUP('PLANILHA_SINTÉTICA'!$B30,'PLANILHA REFERENCIA DETRAN PR'!$A$4:$I$38,5,FALSE) -> 2025-01-01 | G30: =VLOOKUP('PLANILHA_SINTÉTICA'!$B30,'PLANILHA REFERENCIA DETRAN PR'!$A$4:$I$38,6,FALSE) -> m² | I30: =VLOOKUP('PLANILHA_SINTÉTICA'!$B30,'PLANILHA REFERENCIA DETRAN PR'!$A$4:$I$38,7,FALSE) ->  | J30: =VLOOKUP('PLANILHA_SINTÉTICA'!$B30,'PLANILHA REFERENCIA DETRAN PR'!$A$4:$I$38,8,FALSE) -> 22.28 | K30: =VLOOKUP('PLANILHA_SINTÉTICA'!$B30,'PLANILHA REFERENCIA DETRAN PR'!$A$4:$I$38,9,FALSE) -> 22.28 | L30: 0 | M30: 0 | N30: 0
B31: ='PLANILHA REFERENCIA DETRAN PR'!A24 -> 1.18 | C31: =VLOOKUP('PLANILHA_SINTÉTICA'!$B31,'PLANILHA REFERENCIA DETRAN PR'!$A$4:$I$38,2,FALSE) -> Suporte metálico galv. fogo d=2,5" c/tampa e aletas anti-giro, h=2,00 | D31: =VLOOKUP('PLANILHA_SINTÉTICA'!$B31,'PLANILHA REFERENCIA DETRAN PR'!$A$4:$I$38,3,FALSE) -> DETRAN-PR | E31: =VLOOKUP('PLANILHA_SINTÉTICA'!$B31,'PLANILHA REFERENCIA DETRAN PR'!$A$4:$I$38,4,FALSE) -> COMP.01 | F31: =VLOOKUP('PLANILHA_SINTÉTICA'!$B31,'PLANILHA REFERENCIA DETRAN PR'!$A$4:$I$38,5,FALSE) -> 2025-04-07 | G31: =VLOOKUP('PLANILHA_SINTÉTICA'!$B31,'PLANILHA REFERENCIA DETRAN PR'!$A$4:$I$38,6,FALSE) -> unid | I31: =VLOOKUP('PLANILHA_SINTÉTICA'!$B31,'PLANILHA REFERENCIA DETRAN PR'!$A$4:$I$38,7,FALSE) -> 44.69 | J31: =VLOOKUP('PLANILHA_SINTÉTICA'!$B31,'PLANILHA REFERENCIA DETRAN PR'!$A$4:$I$38,8,FALSE) -> 261.86 | K31: =VLOOKUP('PLANILHA_SINTÉTICA'!$B31,'PLANILHA REFERENCIA DETRAN PR'!$A$4:$I$38,9,FALSE) -> 306.55 | L31: 0 | M31: 0 | N31: 0
B32: ='PLANILHA REFERENCIA DETRAN PR'!A25 -> 1.19 | C32: =VLOOKUP('PLANILHA_SINTÉTICA'!$B32,'PLANILHA REFERENCIA DETRAN PR'!$A$4:$I$38,2,FALSE) -> Suporte metálico galv. fogo perfil "C" 250x85x25x2,70mm, h=5,00m | D32: =VLOOKUP('PLANILHA_SINTÉTICA'!$B32,'PLANILHA REFERENCIA DETRAN PR'!$A$4:$I$38,3,FALSE) -> DERPR | E32: =VLOOKUP('PLANILHA_SINTÉTICA'!$B32,'PLANILHA REFERENCIA DETRAN PR'!$A$4:$I$38,4,FALSE) -> 822030 | F32: =VLOOKUP('PLANILHA_SINTÉTICA'!$B32,'PLANILHA REFERENCIA DETRAN PR'!$A$4:$I$38,5,FALSE) -> 2024-10-31 | G32: =VLOOKUP('PLANILHA_SINTÉTICA'!$B32,'PLANILHA REFERENCIA DETRAN PR'!$A$4:$I$38,6,FALSE) -> ud | I32: =VLOOKUP('PLANILHA_SINTÉTICA'!$B32,'PLANILHA REFERENCIA DETRAN PR'!$A$4:$I$38,7,FALSE) -> 108.15 | J32: =VLOOKUP('PLANILHA_SINTÉTICA'!$B32,'PLANILHA REFERENCIA DETRAN PR'!$A$4:$I$38,8,FALSE) -> 1319.37 | K32: =VLOOKUP('PLANILHA_SINTÉTICA'!$B32,'PLANILHA REFERENCIA DETRAN PR'!$A$4:$I$38,9,FALSE) -> 1427.52 | L32: 0 | M32: 0 | N32: 0
B33: ='PLANILHA REFERENCIA DETRAN PR'!A26 -> 1.20 | C33: =VLOOKUP('PLANILHA_SINTÉTICA'!$B33,'PLANILHA REFERENCIA DETRAN PR'!$A$4:$I$38,2,FALSE) -> Placa sinalização em chapa de aço nº18 galvanizada c/ película refletiva Tipo I A (prismática) - Utilizar apenas para placas não listadas no orçamento | D33: =VLOOKUP('PLANILHA_SINTÉTICA'!$B33,'PLANILHA REFERENCIA DETRAN PR'!$A$4:$I$38,3,FALSE) -> DERPR | E33: =VLOOKUP('PLANILHA_SINTÉTICA'!$B33,'PLANILHA REFERENCIA DETRAN PR'!$A$4:$I$38,4,FALSE) -> 820000 | F33: =VLOOKUP('PLANILHA_SINTÉTICA'!$B33,'PLANILHA REFERENCIA DETRAN PR'!$A$4:$I$38,5,FALSE) -> 2024-10-31 | G33: =VLOOKUP('PLANILHA_SINTÉTICA'!$B33,'PLANILHA REFERENCIA DETRAN PR'!$A$4:$I$38,6,FALSE) -> m2 | H33: =H14*0.32+H15*0.24+H16*0.21+H17*0.27+H19+H18*0.5 -> 0 | I33: =VLOOKUP('PLANILHA_SINTÉTICA'!$B33,'PLANILHA REFERENCIA DETRAN PR'!$A$4:$I$38,7,FALSE) -> 184.81 | J33: =VLOOKUP('PLANILHA_SINTÉTICA'!$B33,'PLANILHA REFERENCIA DETRAN PR'!$A$4:$I$38,8,FALSE) -> 273.47 | K33: =VLOOKUP('PLANILHA_SINTÉTICA'!$B33,'PLANILHA REFERENCIA DETRAN PR'!$A$4:$I$38,9,FALSE) -> 458.28 | L33: 0 | M33: 0 | N33: 0
B34: ='PLANILHA REFERENCIA DETRAN PR'!A27 -> 2 | C34: =VLOOKUP('PLANILHA_SINTÉTICA'!$B34,'PLANILHA REFERENCIA DETRAN PR'!$A$4:$I$38,2,FALSE) -> SINALIZAÇÃO HORIZONTAL | H34: - | L34: =SUM(L35:L45) -> 0 | M34: =SUM(M35:M46) -> 0 | N34: 0
B35: ='PLANILHA REFERENCIA DETRAN PR'!A28 -> 2.1 | C35: =VLOOKUP('PLANILHA_SINTÉTICA'!$B35,'PLANILHA REFERENCIA DETRAN PR'!$A$4:$I$38,2,FALSE) -> Faixa de sinalização horizontal c/tinta resina acrílica base água | D35: =VLOOKUP('PLANILHA_SINTÉTICA'!$B35,'PLANILHA REFERENCIA DETRAN PR'!$A$4:$I$38,3,FALSE) -> DERPR | E35: =VLOOKUP('PLANILHA_SINTÉTICA'!$B35,'PLANILHA REFERENCIA DETRAN PR'!$A$4:$I$38,4,FALSE) -> 822100 | F35: =VLOOKUP('PLANILHA_SINTÉTICA'!$B35,'PLANILHA REFERENCIA DETRAN PR'!$A$4:$I$38,5,FALSE) -> 2024-10-31 | G35: =VLOOKUP('PLANILHA_SINTÉTICA'!$B35,'PLANILHA REFERENCIA DETRAN PR'!$A$4:$I$38,6,FALSE) -> m2 | I35: =VLOOKUP('PLANILHA_SINTÉTICA'!$B35,'PLANILHA REFERENCIA DETRAN PR'!$A$4:$I$38,7,FALSE) -> 9.81 | J35: =VLOOKUP('PLANILHA_SINTÉTICA'!$B35,'PLANILHA REFERENCIA DETRAN PR'!$A$4:$I$38,8,FALSE) -> 13.2 | K35: =VLOOKUP('PLANILHA_SINTÉTICA'!$B35,'PLANILHA REFERENCIA DETRAN PR'!$A$4:$I$38,9,FALSE) -> 23.01 | L35: =I35*H35 -> 0 | M35: =J35*H35 -> 0 | N35: =ROUND(K35*H35,2) -> 0
B36: ='PLANILHA REFERENCIA DETRAN PR'!A29 -> 2.2 | C36: =VLOOKUP('PLANILHA_SINTÉTICA'!$B36,'PLANILHA REFERENCIA DETRAN PR'!$A$4:$I$38,2,FALSE) -> Faixa de sinalização horizontal c/tinta resina acrílica base solvente | D36: =VLOOKUP('PLANILHA_SINTÉTICA'!$B36,'PLANILHA REFERENCIA DETRAN PR'!$A$4:$I$38,3,FALSE) -> DERPR | E36: =VLOOKUP('PLANILHA_SINTÉTICA'!$B36,'PLANILHA REFERENCIA DETRAN PR'!$A$4:$I$38,4,FALSE) -> 822000 | F36: =VLOOKUP('PLANILHA_SINTÉTICA'!$B36,'PLANILHA REFERENCIA DETRAN PR'!$A$4:$I$38,5,FALSE) -> 2024-10-31 | G36: =VLOOKUP('PLANILHA_SINTÉTICA'!$B36,'PLANILHA REFERENCIA DETRAN PR'!$A$4:$I$38,6,FALSE) -> m2 | I36: =VLOOKUP('PLANILHA_SINTÉTICA'!$B36,'PLANILHA REFERENCIA DETRAN PR'!$A$4:$I$38,7,FALSE) -> 9.81 | J36: =VLOOKUP('PLANILHA_SINTÉTICA'!$B36,'PLANILHA REFERENCIA DETRAN PR'!$A$4:$I$38,8,FALSE) -> 21.93 | K36: =VLOOKUP('PLANILHA_SINTÉTICA'!$B36,'PLANILHA REFERENCIA DETRAN PR'!$A$4:$I$38,9,FALSE) -> 31.74 | L36: 0 | M36: 0 | N36: 0
B37: ='PLANILHA REFERENCIA DETRAN PR'!A30 -> 2.3 | C37: =VLOOKUP('PLANILHA_SINTÉTICA'!$B37,'PLANILHA REFERENCIA DETRAN PR'!$A$4:$I$38,2,FALSE) -> Faixa de sinalização horizontal - termoplástico por aspersão - e=1,5mm | D37: =VLOOKUP('PLANILHA_SINTÉTICA'!$B37,'PLANILHA REFERENCIA DETRAN PR'!$A$4:$I$38,3,FALSE) -> DERPR | E37: =VLOOKUP('PLANILHA_SINTÉTICA'!$B37,'PLANILHA REFERENCIA DETRAN PR'!$A$4:$I$38,4,FALSE) -> 822350 | F37: =VLOOKUP('PLANILHA_SINTÉTICA'!$B37,'PLANILHA REFERENCIA DETRAN PR'!$A$4:$I$38,5,FALSE) -> 2024-10-31 | G37: =VLOOKUP('PLANILHA_SINTÉTICA'!$B37,'PLANILHA REFERENCIA DETRAN PR'!$A$4:$I$38,6,FALSE) -> m2 | I37: =VLOOKUP('PLANILHA_SINTÉTICA'!$B37,'PLANILHA REFERENCIA DETRAN PR'!$A$4:$I$38,7,FALSE) -> 17.44 | J37: =VLOOKUP('PLANILHA_SINTÉTICA'!$B37,'PLANILHA REFERENCIA DETRAN PR'!$A$4:$I$38,8,FALSE) -> 25.22 | K37: =VLOOKUP('PLANILHA_SINTÉTICA'!$B37,'PLANILHA REFERENCIA DETRAN PR'!$A$4:$I$38,9,FALSE) -> 42.66 | L37: 0 | M37: 0 | N37: 0
B38: ='PLANILHA REFERENCIA DETRAN PR'!A31 -> 2.4 | C38: =VLOOKUP('PLANILHA_SINTÉTICA'!$B38,'PLANILHA REFERENCIA DETRAN PR'!$A$4:$I$38,2,FALSE) -> Pintura de setas e zebrados - termoplástico por extrusão - e=3mm | D38: =VLOOKUP('PLANILHA_SINTÉTICA'!$B38,'PLANILHA REFERENCIA DETRAN PR'!$A$4:$I$38,3,FALSE) -> DERPR | E38: =VLOOKUP('PLANILHA_SINTÉTICA'!$B38,'PLANILHA REFERENCIA DETRAN PR'!$A$4:$I$38,4,FALSE) -> 822330 | F38: =VLOOKUP('PLANILHA_SINTÉTICA'!$B38,'PLANILHA REFERENCIA DETRAN PR'!$A$4:$I$38,5,FALSE) -> 2024-10-31 | G38: =VLOOKUP('PLANILHA_SINTÉTICA'!$B38,'PLANILHA REFERENCIA DETRAN PR'!$A$4:$I$38,6,FALSE) -> m2 | I38: =VLOOKUP('PLANILHA_SINTÉTICA'!$B38,'PLANILHA REFERENCIA DETRAN PR'!$A$4:$I$38,7,FALSE) -> 17.44 | J38: =VLOOKUP('PLANILHA_SINTÉTICA'!$B38,'PLANILHA REFERENCIA DETRAN PR'!$A$4:$I$38,8,FALSE) -> 43.52 | K38: =VLOOKUP('PLANILHA_SINTÉTICA'!$B38,'PLANILHA REFERENCIA DETRAN PR'!$A$4:$I$38,9,FALSE) -> 60.96 | L38: 0 | M38: 0 | N38: 0
B39: ='PLANILHA REFERENCIA DETRAN PR'!A32 -> 2.5 | C39: =VLOOKUP('PLANILHA_SINTÉTICA'!$B39,'PLANILHA REFERENCIA DETRAN PR'!$A$4:$I$38,2,FALSE) -> Pintura de faixa - plástico a frio bicomponente à base de resinas metacrílicas - espessura de 1,5 mm - plano | D39: =VLOOKUP('PLANILHA_SINTÉTICA'!$B39,'PLANILHA REFERENCIA DETRAN PR'!$A$4:$I$38,3,FALSE) -> DNIT | E39: =VLOOKUP('PLANILHA_SINTÉTICA'!$B39,'PLANILHA REFERENCIA DETRAN PR'!$A$4:$I$38,4,FALSE) -> 5214009 | F39: =VLOOKUP('PLANILHA_SINTÉTICA'!$B39,'PLANILHA REFERENCIA DETRAN PR'!$A$4:$I$38,5,FALSE) -> 2025-01-01 | G39: =VLOOKUP('PLANILHA_SINTÉTICA'!$B39,'PLANILHA REFERENCIA DETRAN PR'!$A$4:$I$38,6,FALSE) -> m² | I39: =VLOOKUP('PLANILHA_SINTÉTICA'!$B39,'PLANILHA REFERENCIA DETRAN PR'!$A$4:$I$38,7,FALSE) -> 5.779 | J39: =VLOOKUP('PLANILHA_SINTÉTICA'!$B39,'PLANILHA REFERENCIA DETRAN PR'!$A$4:$I$38,8,FALSE) -> 109.801 | K39: =VLOOKUP('PLANILHA_SINTÉTICA'!$B39,'PLANILHA REFERENCIA DETRAN PR'!$A$4:$I$38,9,FALSE) -> 115.58 | L39: 0 | M39: 0 | N39: 0
B40: ='PLANILHA REFERENCIA DETRAN PR'!A33 -> 2.6 | C40: =VLOOKUP('PLANILHA_SINTÉTICA'!$B40,'PLANILHA REFERENCIA DETRAN PR'!$A$4:$I$38,2,FALSE) -> Pintura de faixa - plástico a frio tricomponente à base de resinas metacrílicas - espessura de 0,6 mm - aspersão | D40: =VLOOKUP('PLANILHA_SINTÉTICA'!$B40,'PLANILHA REFERENCIA DETRAN PR'!$A$4:$I$38,3,FALSE) -> DNIT | E40: =VLOOKUP('PLANILHA_SINTÉTICA'!$B40,'PLANILHA REFERENCIA DETRAN PR'!$A$4:$I$38,4,FALSE) -> 5213413 | F40: =VLOOKUP('PLANILHA_SINTÉTICA'!$B40,'PLANILHA REFERENCIA DETRAN PR'!$A$4:$I$38,5,FALSE) -> 2025-01-01 | G40: =VLOOKUP('PLANILHA_SINTÉTICA'!$B40,'PLANILHA REFERENCIA DETRAN PR'!$A$4:$I$38,6,FALSE) -> m² | I40: =VLOOKUP('PLANILHA_SINTÉTICA'!$B40,'PLANILHA REFERENCIA DETRAN PR'!$A$4:$I$38,7,FALSE) -> 3.431 | J40: =VLOOKUP('PLANILHA_SINTÉTICA'!$B40,'PLANILHA REFERENCIA DETRAN PR'!$A$4:$I$38,8,FALSE) -> 65.189 | K40: =VLOOKUP('PLANILHA_SINTÉTICA'!$B40,'PLANILHA REFERENCIA DETRAN PR'!$A$4:$I$38,9,FALSE) -> 68.62 | L40: 0 | M40: 0 | N40: 0
B41: ='PLANILHA REFERENCIA DETRAN PR'!A34 -> 2.7 | C41: =VLOOKUP('PLANILHA_SINTÉTICA'!$B41,'PLANILHA REFERENCIA DETRAN PR'!$A$4:$I$38,2,FALSE) -> Tacha refletiva monodirecional | D41: =VLOOKUP('PLANILHA_SINTÉTICA'!$B41,'PLANILHA REFERENCIA DETRAN PR'!$A$4:$I$38,3,FALSE) -> DERPR | E41: =VLOOKUP('PLANILHA_SINTÉTICA'!$B41,'PLANILHA REFERENCIA DETRAN PR'!$A$4:$I$38,4,FALSE) -> 870000 | F41: =VLOOKUP('PLANILHA_SINTÉTICA'!$B41,'PLANILHA REFERENCIA DETRAN PR'!$A$4:$I$38,5,FALSE) -> 2024-10-31 | G41: =VLOOKUP('PLANILHA_SINTÉTICA'!$B41,'PLANILHA REFERENCIA DETRAN PR'!$A$4:$I$38,6,FALSE) -> ud | I41: =VLOOKUP('PLANILHA_SINTÉTICA'!$B41,'PLANILHA REFERENCIA DETRAN PR'!$A$4:$I$38,7,FALSE) -> 8.05 | J41: =VLOOKUP('PLANILHA_SINTÉTICA'!$B41,'PLANILHA REFERENCIA DETRAN PR'!$A$4:$I$38,8,FALSE) -> 10.85 | K41: =VLOOKUP('PLANILHA_SINTÉTICA'!$B41,'PLANILHA REFERENCIA DETRAN PR'!$A$4:$I$38,9,FALSE) -> 18.9 | L41: 0 | M41: 0 | N41: 0
B42: ='PLANILHA REFERENCIA DETRAN PR'!A35 -> 2.8 | C42: =VLOOKUP('PLANILHA_SINTÉTICA'!$B42,'PLANILHA REFERENCIA DETRAN PR'!$A$4:$I$38,2,FALSE) -> Tacha refletiva bidirecional | D42: =VLOOKUP('PLANILHA_SINTÉTICA'!$B42,'PLANILHA REFERENCIA DETRAN PR'!$A$4:$I$38,3,FALSE) -> DERPR | E42: =VLOOKUP('PLANILHA_SINTÉTICA'!$B42,'PLANILHA REFERENCIA DETRAN PR'!$A$4:$I$38,4,FALSE) -> 871000 | F42: =VLOOKUP('PLANILHA_SINTÉTICA'!$B42,'PLANILHA REFERENCIA DETRAN PR'!$A$4:$I$38,5,FALSE) -> 2024-10-31 | G42: =VLOOKUP('PLANILHA_SINTÉTICA'!$B42,'PLANILHA REFERENCIA DETRAN PR'!$A$4:$I$38,6,FALSE) -> ud | I42: =VLOOKUP('PLANILHA_SINTÉTICA'!$B42,'PLANILHA REFERENCIA DETRAN PR'!$A$4:$I$38,7,FALSE) -> 8.05 | J42: =VLOOKUP('PLANILHA_SINTÉTICA'!$B42,'PLANILHA REFERENCIA DETRAN PR'!$A$4:$I$38,8,FALSE) -> 11.23 | K42: =VLOOKUP('PLANILHA_SINTÉTICA'!$B42,'PLANILHA REFERENCIA DETRAN PR'!$A$4:$I$38,9,FALSE) -> 19.28 | L42: 0 | M42: 0 | N42: 0
B43: ='PLANILHA REFERENCIA DETRAN PR'!A36 -> 2.9 | C43: =VLOOKUP('PLANILHA_SINTÉTICA'!$B43,'PLANILHA REFERENCIA DETRAN PR'!$A$4:$I$38,2,FALSE) -> Tachão refletivo monodirecional | D43: =VLOOKUP('PLANILHA_SINTÉTICA'!$B43,'PLANILHA REFERENCIA DETRAN PR'!$A$4:$I$38,3,FALSE) -> DERPR | E43: =VLOOKUP('PLANILHA_SINTÉTICA'!$B43,'PLANILHA REFERENCIA DETRAN PR'!$A$4:$I$38,4,FALSE) -> 872000 | F43: =VLOOKUP('PLANILHA_SINTÉTICA'!$B43,'PLANILHA REFERENCIA DETRAN PR'!$A$4:$I$38,5,FALSE) -> 2024-10-31 | G43: =VLOOKUP('PLANILHA_SINTÉTICA'!$B43,'PLANILHA REFERENCIA DETRAN PR'!$A$4:$I$38,6,FALSE) -> ud | I43: =VLOOKUP('PLANILHA_SINTÉTICA'!$B43,'PLANILHA REFERENCIA DETRAN PR'!$A$4:$I$38,7,FALSE) -> 8.05 | J43: =VLOOKUP('PLANILHA_SINTÉTICA'!$B43,'PLANILHA REFERENCIA DETRAN PR'!$A$4:$I$38,8,FALSE) -> 35.49 | K43: =VLOOKUP('PLANILHA_SINTÉTICA'!$B43,'PLANILHA REFERENCIA DETRAN PR'!$A$4:$I$38,9,FALSE) -> 43.54 | L43: 0 | M43: 0 | N43: 0
B44: ='PLANILHA REFERENCIA DETRAN PR'!A37 -> 2.10 | C44: =VLOOKUP('PLANILHA_SINTÉTICA'!$B44,'PLANILHA REFERENCIA DETRAN PR'!$A$4:$I$38,2,FALSE) -> Tachão refletivo bidirecional | D44: ='PLANILHA REFERENCIA DETRAN PR'!C36 -> DERPR | E44: ='PLANILHA REFERENCIA DETRAN PR'!D36 -> 872000 | F44: ='PLANILHA REFERENCIA DETRAN PR'!E36 -> 2024-10-31 | G44: =VLOOKUP('PLANILHA_SINTÉTICA'!$B44,'PLANILHA REFERENCIA DETRAN PR'!$A$4:$I$38,6,FALSE) -> ud | I44: =VLOOKUP('PLANILHA_SINTÉTICA'!$B44,'PLANILHA REFERENCIA DETRAN PR'!$A$4:$I$38,7,FALSE) -> 8.05 | J44: =VLOOKUP('PLANILHA_SINTÉTICA'!$B44,'PLANILHA REFERENCIA DETRAN PR'!$A$4:$I$38,8,FALSE) -> 35.99 | K44: =VLOOKUP('PLANILHA_SINTÉTICA'!$B44,'PLANILHA REFERENCIA DETRAN PR'!$A$4:$I$38,9,FALSE) -> 44.04 | L44: 0 | M44: 0 | N44: 0
B45: ='PLANILHA REFERENCIA DETRAN PR'!A38 -> 2.11 | C45: =VLOOKUP('PLANILHA_SINTÉTICA'!$B45,'PLANILHA REFERENCIA DETRAN PR'!$A$4:$I$38,2,FALSE) -> Fresagem de pavimento asfáltico com espessura de até 5cm, em vias arteriais, inclusive remoção do material fresado até 10km e varrição | D45: =VLOOKUP('PLANILHA_SINTÉTICA'!$B45,'PLANILHA REFERENCIA DETRAN PR'!$A$4:$I$38,3,FALSE) -> SIURB-INFRA | E45: =VLOOKUP('PLANILHA_SINTÉTICA'!$B45,'PLANILHA REFERENCIA DETRAN PR'!$A$4:$I$38,4,FALSE) -> 09.04.00 | F45: =VLOOKUP('PLANILHA_SINTÉTICA'!$B45,'PLANILHA REFERENCIA DETRAN PR'!$A$4:$I$38,5,FALSE) -> 2024-07-10 | G45: =VLOOKUP('PLANILHA_SINTÉTICA'!$B45,'PLANILHA REFERENCIA DETRAN PR'!$A$4:$I$38,6,FALSE) -> M2 | I45: =VLOOKUP('PLANILHA_SINTÉTICA'!$B45,'PLANILHA REFERENCIA DETRAN PR'!$A$4:$I$38,7,FALSE) -> 0.26 | J45: =VLOOKUP('PLANILHA_SINTÉTICA'!$B45,'PLANILHA REFERENCIA DETRAN PR'!$A$4:$I$38,8,FALSE) -> 17.51 | K45: =VLOOKUP('PLANILHA_SINTÉTICA'!$B45,'PLANILHA REFERENCIA DETRAN PR'!$A$4:$I$38,9,FALSE) -> 17.77 | L45: 0 | M45: 0 | N45: 0
L48: TOTAL SEM BDI | N48: =$N$13+$N$34 -> 0
L49: BDI | N49: =N48*ROUND(BDI!$E$28,4) -> 0
L50: TOTAL COM BDI | N50: =IF(OR(BDI!G16<>"ok",BDI!G17<>"ok",BDI!G18<>"ok",BDI!G19<>"ok",BDI!F28<>"ok"),"BDI ERRADO",IF('FOLHA FECHAMENTO'!M18="","INSIRA ART",N48+N49)) -> INSIRA ART

Sheet QUANTITATIVO
B2: PLACAS
C3: 1 | D3: 2 | E3: 3 | F3: 4 | G3: 5 | H3: TOTAL
B4: R-1
B5: R-2
B6: R-3
B7: R-4a
B8: R-4b
B9: R-6a
B10: R-6b TÁXI INICIO
B11: R-6b TÁXI FIM
B12: R-6b TÁXI 01
B13: R-6b 45°
B14: R-6b EXCETO CAMINHÕES
B15: R-19/20
B16: R-19/30
B17: R-19/40
B18: R-20
B19: R-24a
B20: R-28
B21: R-33
B22: R-35a
B23: R-35b
B24: A-18-SETA-G
B25: A-18-50M-G
B26: A-32b
B27: A-32b-TE
B28: A-33a
B29: A-33b-TE
B30: A-45
B31: SUPORTES | H31: TOTAL
B32: Suporte 3m
B33: Suporte 3,5m
B34: Remoção Placa
B35: Remoção Suporte
B36: Assentamento Suporte
B37: TINTAS | H37: TOTAL
B38: Acrílica Branca
B39: Acrílica Amarela
B40: Acrílica Azul
B41: DISPOSITIVOS | H41: TOTAL
B42: Tachão refletivo monodirecional Branco
B43: Tachão refletivo bidirecional Amarelo

Sheet FOLHA FECHAMENTO
P4: EDITAR APENAS OS ITENS EM AMARELO
B10: FOLHA RESUMO PARA FECHAMENTO DE ORÇAMENTO | L10: DATA: | M10: =TODAY() -> 2025-04-16
B11: PRÓPRIO: | D11: EXECUÇÃO DE SERVIÇOS DE SINALIZAÇÃO VIÁRIA
B12: MUNICÍPIO:
B13: ORGÃO: | D13: DETRAN PR
G17: RESPONSÁVEL TÉCNICO: | L17: CREA / CAU:
L18: ART / RRT N°:
B19: OBSERVAÇÃO:
F24: Custo total dos serviços: | G24: R$ | H24: ='PLANILHA_SINTÉTICA'!N48 -> 0
D26: BDI (%)= | E26: =BDI!$E$28 -> 0.2256052453 | G26: R$ | H26: ='PLANILHA_SINTÉTICA'!N49 -> 0
F28: Valor total dos serviços com BDI : | G28: R$ | H28: ='PLANILHA_SINTÉTICA'!N50 -> INSIRA ART
F32: Prazo de execução : | G32: =IF(RESUMO!I19<230000,40,IF(RESUMO!I19<300000,60,IF(RESUMO!I19<380000,75,90))) -> 90 | H32: DIAS CORRIDOS
F35: Relatório MAT+MO : | G35: MATERIAL = | I35: =RESUMO!F20 -> #DIV/0!
G37: MÃO-DE-OBRA = | I37: =IF(I35=0,"",1-I35) -> #DIV/0!
B41: Referencial utilizado: | F41: SICRO (MAR/2025), DER (out/2024) e SCO-RIO (mar/2025), SIURB (JAN/2024) S. DESONERAÇÃO | P41: SICRO (JAN/2023), DER (FEV/2023) e SCO-RIO (ABR/2023) SEM DESONERAÇÃO
B43: Data-base: | H43: =M10 -> 2025-04-16
C55: _________________________ | H55: _______________________
C56: =H17 ->  | H56: Vanessa S. Iwamoto
C57: Responsável Técnico | H57: Chefe da Divisão
C58: Carimbo e Assinatura | H58: Carimbo e Assinatura

Sheet Composições
B2: PLANILHA | C2: CÓDIGO | D2: NOME | E2: DESCRIÇÃO | F2: UNID. | G2: COEF. | H2: R$/UNIT. | I2: TOTAL | J2: Material | K2: Mão de obra
B3: DETRAN | D3: COMP.01 | E3: Suporte metálico galv. fogo d=2,5" c/tampa e aletas anti-giro, h=2,00m | F3: unid | I3: =SUM(I4:I17) -> 306.55 | J3: =SUM(I4:I7)+SUM(I12:I17) -> 261.86 | K3: =I3-J3 -> 44.69
B4: der-pr | C4: 373200 | E4: Betoneira 600 l gasolina | G4: 1 | H4: 0.47 | I4: =ROUND(H4*G4,2) -> 0.47
B5: der-pr | C5: 346080 | E5: Caminhão carroceria 815/37 6 t | G5: 1 | H5: 25.96 | I5: 25.96
B6: der-pr | C6: 301800 | E6: Carrinho de concretagem 80 l | G6: 1 | H6: 0.01 | I6: 0.01
B7: der-pr | C7: 3704500 | E7: Vibrador imersão gasolina 45mm | G7: 1 | H7: 0.22 | I7: 0.22
B8: der-pr | C8: 210060 | E8: Encarregado de Serviço | G8: 0.1 | H8: 85.81 | I8: 8.58
B9: der-pr | C9: 200260 | E9: Pedreiro | G9: 0.25 | H9: 40.76 | I9: 10.19
B10: der-pr | C10: 210090 | E10: Serralheiro | G10: 0.25 | H10: 40.76 | I10: 10.19
B11: der-pr | C11: 200130 | E11: Servente | G11: 0.5 | H11: 31.46 | I11: 15.73
B12: der-pr | C12: 29990 | E12: Ferramentas Manuais | G12: 1 | H12: 6.7 | I12: 6.7
B13: der-pr | C13: 139000 | E13: Areia | G13: 0.0157 | H13: 71.87 | I13: 1.13
B14: der-pr | C14: 173200 | E14: Cimento Portland (saco de 50kg) | G14: 0.0066 | H14: 566 | I14: 3.74
B15: der-pr | C15: 130000 | E15: Pedra britada (comercial) | G15: 0.0182 | H15: 65.78 | I15: 1.2
B16: der-pr | C16: 161200 | E16: Suporte metálico 2 1/2"x2,65mmx3,00m | G16: 1 | H16: =2/3*330 -> 220 | I16: 220
B17: der-pr | C17: 600000 | E17: Escavação manual de vala 1a. cat. | G17: 0.0491 | H17: 49.54 | I17: 2.43
B20: PLANILHA | C20: CÓDIGO | D20: NOME | E20: DESCRIÇÃO | F20: UNID. | G20: COEF. | H20: R$/UNIT. | I20: TOTAL | J20: Material | K20: Mão de obra
B21: DETRAN | D21: COMP.02 | E21: Conjunto para placa indicativa (Coluna, Braço, Montagem, Fundação) para placas até 3,00m² - Coluna Tipo I com projeção de 2,80m | F21: unid | I21: =SUM(I22:I27) -> 11534.57 | J21: =I22+I24+I26 -> 11138.95 | K21: =I21-J21 -> 395.62
B22: SCO/RJ | C22: ST 64.05.0600 (/) | E22: Coluna de aço, cônica continua tipo I para ate 4 (quatro) braços projetados capazes de sustentar, cada um, semáforo e placa de 3m2 (três metros quadrados); coluna galvanizada a fogo; altura útil total de 5,00m (cinco metros); diâmetro na base igual a 187mm (cento e oitenta e sete milímetros); conforme especificação CET-RIO. Fornecimento (desonerado) | F22: unid | G22: 1 | H22: =VLOOKUP(C22,scorj!B:G,4,FALSE) -> 7650 | I22: =ROUND(H22*G22,2) -> 7650
B23: SCO/RJ | C23: ST 64.15.0170 (A) | E23: Assentamento de coluna de aço cônica continua tipo I para ate 4 (quatro) braços projetados capazes de sustentar, cada um, semáforo e placa de 3m2 (três metros quadrados) fixada por chumbadores engastados em fundação de concreto, exclusive fundação, exclusive fornecimento da coluna (desonerado) | F23: unid | G23: 1 | H23: =VLOOKUP(C23,scorj!B:G,4,FALSE) -> 314.52 | I23: 314.52
B24: SCO/RJ | C24: ST 64.05.0650 (/) | E24: Braco projetado de aco para sustentacao de semaforo e placa ate 3m2 (tres metros quadrados), galvanizado a fogo; para fixacao em coluna cilindrica giratoria, projecao de 2,80m (dois metros e oitenta centimetros); diametro junto a flange de 123mm (cento e vinte e tres milimetros); conforme especificacao CET-RIO. Fornecimento.(desonerado) | F24: unid | G24: 1 | H24: =VLOOKUP(C24,scorj!B:G,4,FALSE) -> 2990 | I24: 2990
B25: SCO/RJ | C25: ST 64.15.0180 (/) | E25: Montagem de braço projetado de aço em coluna de aço cônica continua tipo I assentada, exclusive o fornecimento do braço (desonerado) | F25: unid | G25: 1 | H25: =VLOOKUP(C25,scorj!B:G,4,FALSE) -> 81.1 | I25: 81.1
B26: SCO/RJ | C26: ST 64.15.0340 (/) | E26: Bloco de concreto armado medindo (0,60 x 0,60 x 1,00)m para uma coluna de aco conica continua para instalacao de ate 4 bracos projetados para sinalizacao.(desonerado) | F26: unid | G26: 1 | H26: =VLOOKUP(C26,scorj!B:G,4,FALSE) -> 498.95 | I26: 498.95
B29: PLANILHA | D29: NOME | E29: DESCRIÇÃO | F29: UNID. | G29: COEF. | H29: R$/UNIT. | I29: TOTAL | J29: Material | K29: Mão de obra
B30: DETRAN | D30: COMP.03 | E30: Conjunto para placa indicativa (Coluna, Braço, Montagem, Fundação) para placas até 3,00m² - Coluna Tipo I com projeção de 3,70m | F30: unid | I30: =SUM(I31:I36) -> 14004.57 | J30: =I31+I33+I35 -> 13608.95 | K30: =I30-J30 -> 395.62
B31: SCO/RJ | C31: ST 64.05.0600 (/) | E31: Coluna de aço, cônica continua tipo I para ate 4 (quatro) braços projetados capazes de sustentar, cada um, semáforo e placa de 3m2 (três metros quadrados); coluna galvanizada a fogo; altura útil total de 5,00m (cinco metros); diâmetro na base igual a 187mm (cento e oitenta e sete milímetros); conforme especificação CET-RIO. Fornecimento (desonerado) | F31: unid | G31: 1 | H31: =VLOOKUP(C31,scorj!B:G,4,FALSE) -> 7650 | I31: =ROUND(H31*G31,2) -> 7650
B32: SCO/RJ | C32: ST 64.15.0170 (A) | E32: Assentamento de coluna de aço cônica continua tipo I para ate 4 (quatro) braços projetados capazes de sustentar, cada um, semáforo e placa de 3m2 (três metros quadrados) fixada por chumbadores engastados em fundação de concreto, exclusive fundação, exclusive fornecimento da coluna (desonerado) | F32: unid | G32: 1 | H32: =VLOOKUP(C32,scorj!B:G,4,FALSE) -> 314.52 | I32: 314.52
B33: SCO/RJ | C33: ST 64.05.0700 (/) | E33: Braço projetado de aço para sustentação de semáforo e placa ate 3m2 (três metros quadrados), galvanizado a fogo; para fixação em coluna cônico continua tipo I, projeção de 3,70m (três metros e setenta centímetros); diâmetro junto a flange de 123mm (cento e vinte e três milímetros); conforme especificação CET-RIO. Fornecimento (desonerado) | F33: unid | G33: 1 | H33: =VLOOKUP(C33,scorj!B:G,4,FALSE) -> 5460 | I33: 5460
B34: SCO/RJ | C34: ST 64.15.0180 (/) | E34: Montagem de braço projetado de aço em coluna de aço cônica continua tipo I assentada, exclusive o fornecimento do braço (desonerado) | F34: unid | G34: 1 | H34: =VLOOKUP(C34,scorj!B:G,4,FALSE) -> 81.1 | I34: 81.1
B35: SCO/RJ | C35: ST 64.15.0340 (/) | E35: Bloco de concreto armado medindo (0,60 x 0,60 x 1,00)m para uma coluna de aco conica continua para instalacao de ate 4 bracos projetados para sinalizacao.(desonerado) | F35: unid | G35: 1 | H35: =VLOOKUP(C35,scorj!B:G,4,FALSE) -> 498.95 | I35: 498.95
B38: PLANILHA | D38: NOME | E38: DESCRIÇÃO | F38: UNID. | G38: COEF. | H38: R$/UNIT. | I38: TOTAL | J38: Material | K38: Mão de obra
B39: DETRAN | D39: COMP.04 | E39: Conjunto para placa indicativa (Coluna, Braço, Montagem, Fundação) para placas até 4,50m² - Coluna Tipo II com projeção de 6,00m | F39: unid | I39: =SUM(I40:I45) -> 15229.51 | J39: =I40+I42+I44 -> 14743.95 | K39: =I39-J39 -> 485.56
B40: SCO/RJ | C40: ST 64.05.0636 (/) | E40: Coluna de aço cônica continua tipo II para um braço projetado capaz de sustentar semáforo e placa de ate 4,50m2; coluna galvanizada a fogo; altura útil total de 5m; 300mm de diâmetro na base; conforme especificação da CET-RIO. Fornecimento (desonerado) | F40: unid | G40: 1 | H40: =VLOOKUP(C40,scorj!B:G,4,FALSE) -> 9600 | I40: =ROUND(H40*G40,2) -> 9600
B41: SCO/RJ | C41: ST 64.15.0173 (/) | E41: Assentamento de coluna de aço cônica continua tipo II para ate 1 (um) ou 2 (dois) braços projetados capazes de sustentar, cada um, semáforo e placa de 4,5m2 fixada por chumbadores engastados em fundação de concreto, exclusive fundação, exclusive fornecimento da coluna (desonerado) | F41: unid | G41: 1 | H41: =VLOOKUP(C41,scorj!B:G,4,FALSE) -> 330.07 | I41: 330.07
B42: SCO/RJ | C42: ST 64.05.0760 (/) | E42: Braço projetado de aço para sustentação de semáforo e placa de ate 4,50m2; galvanizado a fogo; para fixação em coluna cônica tipo II; projeção de 6m; 173mm de diâmetro junto a flange; conforme especificação da CET-RIO. Fornecimento (desonerado) | F42: unid | G42: 1 | H42: =VLOOKUP(C42,scorj!B:G,4,FALSE) -> 4645 | I42: 4645
B43: SCO/RJ | C43: ST 64.15.0186 (/) | E43: Montagem de braço projetado em coluna de aço cônica continua tipo II assentada, exclusive o fornecimento do braço (desonerado) | F43: unid | G43: 1 | H43: =VLOOKUP(C43,scorj!B:G,4,FALSE) -> 155.49 | I43: 155.49
B44: SCO/RJ | C44: ST 64.15.0340 (/) | E44: Bloco de concreto armado medindo (0,60 x 0,60 x 1,00)m para uma coluna de aco conica continua para instalacao de ate 4 bracos projetados para sinalizacao.(desonerado) | F44: unid | G44: 1 | H44: =VLOOKUP(C44,scorj!B:G,4,FALSE) -> 498.95 | I44: 498.95
B47: PLANILHA | D47: NOME | E47: DESCRIÇÃO | F47: UNID. | G47: COEF. | H47: R$/UNIT. | I47: TOTAL | J47: Material | K47: Mão de obra
B48: DETRAN | D48: COMP.05 | E48: Placa tipo R-1 - L = 0,25m. Com película refletiva tipo I A (prismática) - Área: 0,32 m² | F48: unid | I48: =VLOOKUP(C49,der!A:J,7,FALSE)*G49 -> 146.6496 | J48: =VLOOKUP(C49,der!A:J,10,FALSE)*G49 -> 87.5104 | K48: =VLOOKUP(C49,der!A:J,9,FALSE)*G49 -> 59.1392
B49: der-pr | C49: 820000 | E49: =VLOOKUP(C49,der!A:J,2,FALSE) -> Placa sinalização c/ película refletiva | F49: =VLOOKUP(C49,der!A:J,3,FALSE) -> m2 | G49: 0.32 | H49: =VLOOKUP(C49,der!A:J,7,FALSE) -> 458.28 | I49: =ROUND(H49*G49,2) -> 146.65
B51: PLANILHA | D51: NOME | E51: DESCRIÇÃO | F51: UNID. | G51: COEF. | H51: R$/UNIT. | I51: TOTAL | J51: Material | K51: Mão de obra
B52: DETRAN | D52: COMP.06 | E52: Placa tipo R-2 - L = 0,75m. Com película refletiva tipo I A (prismática) - Área: 0,24m² | F52: unid | I52: =VLOOKUP(C53,der!A:J,7,FALSE)*G53 -> 109.9872 | J52: =VLOOKUP(C53,der!A:J,10,FALSE)*G53 -> 65.6328 | K52: =VLOOKUP(C53,der!A:J,9,FALSE)*G53 -> 44.3544
B53: der-pr | C53: 820000 | E53: =VLOOKUP(C53,der!A:J,2,FALSE) -> Placa sinalização c/ película refletiva | F53: =VLOOKUP(C53,der!A:J,3,FALSE) -> m2 | G53: 0.24 | H53: =VLOOKUP(C53,der!A:J,7,FALSE) -> 458.28 | I53: =ROUND(H53*G53,2) -> 109.99
B55: PLANILHA | D55: NOME | E55: DESCRIÇÃO | F55: UNID. | G55: COEF. | H55: R$/UNIT. | I55: TOTAL | J55: Material | K55: Mão de obra
B56: DETRAN | D56: COMP.07 | E56: Placa tipo circular - D = 0,50m. Com película refletiva tipo I A (prismática) - Área: 0,21m² | F56: unid | I56: =VLOOKUP(C57,der!A:J,7,FALSE)*G57 -> 96.2388 | J56: =VLOOKUP(C57,der!A:J,10,FALSE)*G57 -> 57.4287 | K56: =VLOOKUP(C57,der!A:J,9,FALSE)*G57 -> 38.8101
B57: der-pr | C57: 820000 | E57: =VLOOKUP(C57,der!A:J,2,FALSE) -> Placa sinalização c/ película refletiva | F57: =VLOOKUP(C57,der!A:J,3,FALSE) -> m2 | G57: 0.21 | H57: =VLOOKUP(C57,der!A:J,7,FALSE) -> 458.28 | I57: =ROUND(H57*G57,2) -> 96.24
B59: PLANILHA | D59: NOME | E59: DESCRIÇÃO | F59: UNID. | G59: COEF. | H59: R$/UNIT. | I59: TOTAL | J59: Material | K59: Mão de obra
B60: DETRAN | D60: COMP.08 | E60: Placa tipo de advertência - L = 0,50m. Com película refletiva tipo I A (prismática) - Área: 0,27 m² | F60: unid | I60: =VLOOKUP(C61,der!A:J,7,FALSE)*G61 -> 123.7356 | J60: =VLOOKUP(C61,der!A:J,10,FALSE)*G61 -> 73.8369 | K60: =VLOOKUP(C61,der!A:J,9,FALSE)*G61 -> 49.8987
B61: der-pr | C61: 820000 | E61: =VLOOKUP(C61,der!A:J,2,FALSE) -> Placa sinalização c/ película refletiva | F61: =VLOOKUP(C61,der!A:J,3,FALSE) -> m2 | G61: 0.27 | H61: =VLOOKUP(C61,der!A:J,7,FALSE) -> 458.28 | I61: =ROUND(H61*G61,2) -> 123.74
B63: PLANILHA | D63: NOME | E63: DESCRIÇÃO | F63: UNID. | G63: COEF. | H63: R$/UNIT. | I63: TOTAL | J63: Material | K63: Mão de obra
B64: DETRAN | D64: COMP.09 | E64: Placa tipo retangular - L = 0,50m x h= 1,00 m. Com película refletiva tipo I A (prismática) | F64: unid | I64: =VLOOKUP(C65,der!A:J,7,FALSE)*G65 -> 229.14 | J64: =VLOOKUP(C65,der!A:J,10,FALSE)*G65 -> 136.735 | K64: =VLOOKUP(C65,der!A:J,9,FALSE)*G65 -> 92.405
B65: der-pr | C65: 820000 | E65: =VLOOKUP(C65,der!A:J,2,FALSE) -> Placa sinalização c/ película refletiva | F65: =VLOOKUP(C65,der!A:J,3,FALSE) -> m2 | G65: 0.5 | H65: =VLOOKUP(C65,der!A:J,7,FALSE) -> 458.28 | I65: =ROUND(H65*G65,2) -> 229.14

Sheet RESUMO
M4: EDITAR APENAS OS ITENS EM VERMELHO
B6: PLANILHA RESUMO DE SERVIÇOS
C7: DEPARTAMENTO ESTADUAL DE TRÂNSITO - DETRAN PR
C8: COORDENADORIA DE ENGENHARIA E ARQUITETURA - DIVISÃO DE SINALIZAÇÃO
C9: PROJETO DE SINALIZAÇÃO VIÁRIA URBANA | F9: ='FOLHA FECHAMENTO'!D12 ->  | I9: ART/RRT Nº: | J9: ='FOLHA FECHAMENTO'!M18 -> 
C10: RESPONSÁVEL TÉCNICO: | E10: ='FOLHA FECHAMENTO'!H17 ->  | H10: REG. CREA/CAU: | I10: ='FOLHA FECHAMENTO'!M17 -> 
C11: TABELAS DE REFERÊNCIA: SICRO (JAN/2023), DER (FEV/2023) e SCO-RIO (ABR/2023). | H11: BDI | I11: =BDI!E28 -> 0.2256052453
B14: ITEM | C14: DESCRIÇÃO | F14: SEM BDI | I14: TOTAL COM BDI | J14: %
F15: MATERIAL | G15: MÃO DE OBRA | H15: TOTAL
B16: 1 | C16: SINALIZAÇÃO VERTICAL | F16: ='PLANILHA_SINTÉTICA'!$M$13 -> 0 | G16: ='PLANILHA_SINTÉTICA'!$L$13 -> 0 | H16: ='PLANILHA_SINTÉTICA'!$N$13 -> 0 | I16: =H16*(1+BDI!E28) -> 0 | J16: =F20 -> #DIV/0!
B17: 2 | C17: SINALIZAÇÃO HORIZONTAL | F17: ='PLANILHA_SINTÉTICA'!$M$34 -> 0 | G17: ='PLANILHA_SINTÉTICA'!$L$34 -> 0 | H17: ='PLANILHA_SINTÉTICA'!$N$34 -> 0 | I17: =H17*(1+BDI!E28) -> 0 | J17: =G20 -> #DIV/0!
B19: TOTAL (R$) GERAL DA OBRA | F19: =F16+F17 -> 0 | G19: 0 | H19: =SUM(H16:H17) -> 0 | I19: ='PLANILHA_SINTÉTICA'!N50 -> INSIRA ART | J19: =SUM(J16:J17) -> #DIV/0!
B20: PERCENTAGEM (%) | F20: =F19/H19 -> #DIV/0! | G20: =G19/H19 -> #DIV/0! | H20: 1 | I20: - | J20: -
B22: PRAZO DE EXECUÇÃO (DIAS CORRIDOS): | E22: ='FOLHA FECHAMENTO'!G32 -> 90

Sheet CURVA ABC
O4: CLIQUE EM "% DO ITEM" E ORGANIZE DO MAIOR PARA O MENOR
B6: CURVA ABC DE SERVIÇOS
B7: DEPARTAMENTO ESTADUAL DE TRÂNSITO - DETRAN PR
B8: COORDENADORIA DE ENGENHARIA E ARQUITETURA - DIVISÃO DE SINALIZAÇÃO
B9: PROJETO DE SINALIZAÇÃO VIÁRIA URBANA | E9: ='FOLHA FECHAMENTO'!D12 ->  | J9: ART/RRT Nº: | K9: ='FOLHA FECHAMENTO'!M18 -> 
B10: TABELAS DE REFERÊNCIA: SICRO (JAN/2023), DER (FEV/2023) e SCO-RIO (ABR/2023). | E10: RESPONSÁVEL TÉCNICO: | G10: ='FOLHA FECHAMENTO'!H17 ->  | J10: REG. CREA/CAU: | K10: ='FOLHA FECHAMENTO'!M17 -> 
B12: ITEM | C12: CÓDIGO DO SERVIÇO | D12: DESCRIÇÃO DO SERVIÇO | E12: UNIDADE DE MEDIDA | F12: QUANTIDADE TOTAL | G12: CUSTO UNITÁRIO | H12: CUSTO TOTAL | I12: CUSTO TOTAL ACUMULADO | J12: % DO ITEM | K12: % ACUMULADO | L12: FAIXA
B13: ='PLANILHA REFERENCIA DETRAN PR'!A13 -> 1.7 | C13: =VLOOKUP(B13,'PLANILHA REFERENCIA DETRAN PR'!$A$6:$I$39,4,FALSE) -> 5213351-ed | D13: =VLOOKUP(B13,'PLANILHA REFERENCIA DETRAN PR'!$A$6:$I$39,2,FALSE) -> Suporte polimérico ecológico maciço colapsível D = 6,5 cm para placa de sinalização - fornecimento e implantação - 3,00 m | E13: =VLOOKUP(B13,'PLANILHA REFERENCIA DETRAN PR'!$A$6:$I$39,6,FALSE) -> un | F13: =VLOOKUP(B13,'PLANILHA_SINTÉTICA'!$B$13:$N$48,7,FALSE) ->  | G13: =VLOOKUP(B13,'PLANILHA REFERENCIA DETRAN PR'!$A$6:$I$39,9,FALSE) -> 573.6 | H13: =ROUND(G13*F13,2) -> 0 | I13: =IFERROR(IF((ISTEXT(I12))=TRUE,H13,H13+I12),"") -> 0 | J13: =IF('CURVA ABC'!$I13='CURVA ABC'!$I$12,"",H13/SUM($H$13:$H$37)) -> #DIV/0! | K13: =IFERROR(IF((ISTEXT(K12))=TRUE,J13,K12+J13),"") ->  | L13: =IFERROR(IF('CURVA ABC'!$J13=0,"",IF((K13-J13)>0.8,"C",IF((K13-J13)<0.5,"A","B"))),"") -> 
B14: ='PLANILHA REFERENCIA DETRAN PR'!A14 -> 1.8 | C14: =VLOOKUP(B14,'PLANILHA REFERENCIA DETRAN PR'!$A$6:$I$39,4,FALSE) -> 5213351 | D14: =VLOOKUP(B14,'PLANILHA REFERENCIA DETRAN PR'!$A$6:$I$39,2,FALSE) -> Suporte polimérico ecológico maciço colapsível D = 6,5 cm para placa de sinalização - fornecimento e implantação - 3,60 m | E14: =VLOOKUP(B14,'PLANILHA REFERENCIA DETRAN PR'!$A$6:$I$39,6,FALSE) -> un | F14: =VLOOKUP(B14,'PLANILHA_SINTÉTICA'!$B$13:$N$48,7,FALSE) ->  | G14: =VLOOKUP(B14,'PLANILHA REFERENCIA DETRAN PR'!$A$6:$I$39,9,FALSE) -> 688.32 | H14: 0 | I14: 0 | J14: =IF('CURVA ABC'!$I14='CURVA ABC'!$I$12,"",H14/SUM($H$13:$H$37)) -> #DIV/0! | L14: =IFERROR(IF('CURVA ABC'!$J14=0,"",IF((K14-J14)>0.8,"C",IF((K14-J14)<0.5,"A","B"))),"") -> 
B15: ='PLANILHA REFERENCIA DETRAN PR'!A15 -> 1.9 | C15: =VLOOKUP(B15,'PLANILHA REFERENCIA DETRAN PR'!$A$6:$I$39,4,FALSE) -> 821300 | D15: =VLOOKUP(B15,'PLANILHA REFERENCIA DETRAN PR'!$A$6:$I$39,2,FALSE) -> Suporte metál.galv.fogo d=2,5" c/tampa e aletas antigiro h=3,00m | E15: =VLOOKUP(B15,'PLANILHA REFERENCIA DETRAN PR'!$A$6:$I$39,6,FALSE) -> ud | F15: =VLOOKUP(B15,'PLANILHA_SINTÉTICA'!$B$13:$N$48,7,FALSE) ->  | G15: =VLOOKUP(B15,'PLANILHA REFERENCIA DETRAN PR'!$A$6:$I$39,9,FALSE) -> 404.66 | H15: 0 | I15: 0 | J15: =IF('CURVA ABC'!$I15='CURVA ABC'!$I$12,"",H15/SUM($H$13:$H$37)) -> #DIV/0! | L15: =IFERROR(IF('CURVA ABC'!$J15=0,"",IF((K15-J15)>0.8,"C",IF((K15-J15)<0.5,"A","B"))),"") -> 
B16: ='PLANILHA REFERENCIA DETRAN PR'!A16 -> 1.10 | C16: =VLOOKUP(B16,'PLANILHA REFERENCIA DETRAN PR'!$A$6:$I$39,4,FALSE) -> 821350 | D16: =VLOOKUP(B16,'PLANILHA REFERENCIA DETRAN PR'!$A$6:$I$39,2,FALSE) -> Suporte metál.galv.fogo d=2,5" c/tampa e aletas antigiro h=3,50m | E16: =VLOOKUP(B16,'PLANILHA REFERENCIA DETRAN PR'!$A$6:$I$39,6,FALSE) -> ud | F16: =VLOOKUP(B16,'PLANILHA_SINTÉTICA'!$B$13:$N$48,7,FALSE) ->  | G16: =VLOOKUP(B16,'PLANILHA REFERENCIA DETRAN PR'!$A$6:$I$39,9,FALSE) -> 460.66 | H16: 0 | I16: 0 | J16: =IF('CURVA ABC'!$I16='CURVA ABC'!$I$12,"",H16/SUM($H$13:$H$37)) -> #DIV/0! | L16: =IFERROR(IF('CURVA ABC'!$J16=0,"",IF((K16-J16)>0.8,"C",IF((K16-J16)<0.5,"A","B"))),"") -> 
B17: ='PLANILHA REFERENCIA DETRAN PR'!A17 -> 1.11 | C17: =VLOOKUP(B17,'PLANILHA REFERENCIA DETRAN PR'!$A$6:$I$39,4,FALSE) -> 821400 | D17: =VLOOKUP(B17,'PLANILHA REFERENCIA DETRAN PR'!$A$6:$I$39,2,FALSE) -> Suporte metál.galv.fogo d=2,5" c/tampa e aletas anti-giro h=4,00m | E17: =VLOOKUP(B17,'PLANILHA REFERENCIA DETRAN PR'!$A$6:$I$39,6,FALSE) -> ud | F17: =VLOOKUP(B17,'PLANILHA_SINTÉTICA'!$B$13:$N$48,7,FALSE) ->  | G17: =VLOOKUP(B17,'PLANILHA REFERENCIA DETRAN PR'!$A$6:$I$39,9,FALSE) -> 515.8 | H17: 0 | I17: 0 | J17: =IF('CURVA ABC'!$I17='CURVA ABC'!$I$12,"",H17/SUM($H$13:$H$37)) -> #DIV/0! | L17: =IFERROR(IF('CURVA ABC'!$J17=0,"",IF((K17-J17)>0.8,"C",IF((K17-J17)<0.5,"A","B"))),"") -> 
B18: ='PLANILHA REFERENCIA DETRAN PR'!A18 -> 1.12 | C18: =VLOOKUP(B18,'PLANILHA REFERENCIA DETRAN PR'!$A$6:$I$39,4,FALSE) -> COMP.02 | D18: =VLOOKUP(B18,'PLANILHA REFERENCIA DETRAN PR'!$A$6:$I$39,2,FALSE) -> Conjunto para placa indicativa (Coluna, Braço, Montagem, Fundação) para placas até 3,00m² - Coluna Tipo I com projeção de 2,80m | E18: =VLOOKUP(B18,'PLANILHA REFERENCIA DETRAN PR'!$A$6:$I$39,6,FALSE) -> unid | F18: =VLOOKUP(B18,'PLANILHA_SINTÉTICA'!$B$13:$N$48,7,FALSE) ->  | G18: =VLOOKUP(B18,'PLANILHA REFERENCIA DETRAN PR'!$A$6:$I$39,9,FALSE) -> 11534.57 | H18: 0 | I18: 0 | J18: =IF('CURVA ABC'!$I18='CURVA ABC'!$I$12,"",H18/SUM($H$13:$H$37)) -> #DIV/0! | L18: =IFERROR(IF('CURVA ABC'!$J18=0,"",IF((K18-J18)>0.8,"C",IF((K18-J18)<0.5,"A","B"))),"") -> 
B19: ='PLANILHA REFERENCIA DETRAN PR'!A19 -> 1.13 | C19: =VLOOKUP(B19,'PLANILHA REFERENCIA DETRAN PR'!$A$6:$I$39,4,FALSE) -> COMP.03 | D19: =VLOOKUP(B19,'PLANILHA REFERENCIA DETRAN PR'!$A$6:$I$39,2,FALSE) -> Conjunto para placa indicativa (Coluna, Braço, Montagem, Fundação) para placas até 3,00m² - Coluna Tipo I com projeção de 3,70m | E19: =VLOOKUP(B19,'PLANILHA REFERENCIA DETRAN PR'!$A$6:$I$39,6,FALSE) -> unid | F19: =VLOOKUP(B19,'PLANILHA_SINTÉTICA'!$B$13:$N$48,7,FALSE) ->  | G19: =VLOOKUP(B19,'PLANILHA REFERENCIA DETRAN PR'!$A$6:$I$39,9,FALSE) -> 14004.57 | H19: 0 | I19: 0 | J19: =IF('CURVA ABC'!$I19='CURVA ABC'!$I$12,"",H19/SUM($H$13:$H$37)) -> #DIV/0! | L19: =IFERROR(IF('CURVA ABC'!$J19=0,"",IF((K19-J19)>0.8,"C",IF((K19-J19)<0.5,"A","B"))),"") -> 
B20: ='PLANILHA REFERENCIA DETRAN PR'!A20 -> 1.14 | C20: =VLOOKUP(B20,'PLANILHA REFERENCIA DETRAN PR'!$A$6:$I$39,4,FALSE) -> COMP.04 | D20: =VLOOKUP(B20,'PLANILHA REFERENCIA DETRAN PR'!$A$6:$I$39,2,FALSE) -> Conjunto para placa indicativa (Coluna, Braço, Montagem, Fundação) para placas até 4,50m² - Coluna Tipo II com projeção de 6,00m | E20: =VLOOKUP(B20,'PLANILHA REFERENCIA DETRAN PR'!$A$6:$I$39,6,FALSE) -> unid | F20: =VLOOKUP(B20,'PLANILHA_SINTÉTICA'!$B$13:$N$48,7,FALSE) ->  | G20: =VLOOKUP(B20,'PLANILHA REFERENCIA DETRAN PR'!$A$6:$I$39,9,FALSE) -> 15229.51 | H20: 0 | I20: 0 | J20: =IF('CURVA ABC'!$I20='CURVA ABC'!$I$12,"",H20/SUM($H$13:$H$37)) -> #DIV/0! | L20: =IFERROR(IF('CURVA ABC'!$J20=0,"",IF((K20-J20)>0.8,"C",IF((K20-J20)<0.5,"A","B"))),"") -> 
B21: ='PLANILHA REFERENCIA DETRAN PR'!A21 -> 1.15 | C21: =VLOOKUP(B21,'PLANILHA REFERENCIA DETRAN PR'!$A$6:$I$39,4,FALSE) -> ST 64.15.0300 (/) | D21: =VLOOKUP(B21,'PLANILHA REFERENCIA DETRAN PR'!$A$6:$I$39,2,FALSE) -> Retirada de poste simples de aco, diametro maior que 4".(desonerado) | E21: =VLOOKUP(B21,'PLANILHA REFERENCIA DETRAN PR'!$A$6:$I$39,6,FALSE) -> un | F21: =VLOOKUP(B21,'PLANILHA_SINTÉTICA'!$B$13:$N$48,7,FALSE) ->  | G21: =VLOOKUP(B21,'PLANILHA REFERENCIA DETRAN PR'!$A$6:$I$39,9,FALSE) -> 409.65 | H21: 0 | I21: 0 | J21: =IF('CURVA ABC'!$I21='CURVA ABC'!$I$12,"",H21/SUM($H$13:$H$37)) -> #DIV/0! | L21: =IFERROR(IF('CURVA ABC'!$J21=0,"",IF((K21-J21)>0.8,"C",IF((K21-J21)<0.5,"A","B"))),"") -> 
B22: ='PLANILHA REFERENCIA DETRAN PR'!A22 -> 1.16 | C22: =VLOOKUP(B22,'PLANILHA REFERENCIA DETRAN PR'!$A$6:$I$39,4,FALSE) -> ST 64.15.0200 (A) | D22: =VLOOKUP(B22,'PLANILHA REFERENCIA DETRAN PR'!$A$6:$I$39,2,FALSE) -> Retirada de poste simples de aço, diâmetro de 2" (desonerado) | E22: =VLOOKUP(B22,'PLANILHA REFERENCIA DETRAN PR'!$A$6:$I$39,6,FALSE) -> un | F22: =VLOOKUP(B22,'PLANILHA_SINTÉTICA'!$B$13:$N$48,7,FALSE) ->  | G22: =VLOOKUP(B22,'PLANILHA REFERENCIA DETRAN PR'!$A$6:$I$39,9,FALSE) -> 48.51 | H22: 0 | I22: 0 | J22: =IF('CURVA ABC'!$I22='CURVA ABC'!$I$12,"",H22/SUM($H$13:$H$37)) -> #DIV/0! | L22: =IFERROR(IF('CURVA ABC'!$J22=0,"",IF((K22-J22)>0.8,"C",IF((K22-J22)<0.5,"A","B"))),"") -> 
B23: ='PLANILHA REFERENCIA DETRAN PR'!A23 -> 1.17 | C23: =VLOOKUP(B23,'PLANILHA REFERENCIA DETRAN PR'!$A$6:$I$39,4,FALSE) -> 5213364 | D23: =VLOOKUP(B23,'PLANILHA REFERENCIA DETRAN PR'!$A$6:$I$39,2,FALSE) -> Remoção de placa de sinalização | E23: =VLOOKUP(B23,'PLANILHA REFERENCIA DETRAN PR'!$A$6:$I$39,6,FALSE) -> m² | F23: =VLOOKUP(B23,'PLANILHA_SINTÉTICA'!$B$13:$N$48,7,FALSE) ->  | G23: =VLOOKUP(B23,'PLANILHA REFERENCIA DETRAN PR'!$A$6:$I$39,9,FALSE) -> 22.28 | H23: 0 | I23: 0 | J23: =IF('CURVA ABC'!$I23='CURVA ABC'!$I$12,"",H23/SUM($H$13:$H$37)) -> #DIV/0! | L23: =IFERROR(IF('CURVA ABC'!$J23=0,"",IF((K23-J23)>0.8,"C",IF((K23-J23)<0.5,"A","B"))),"") -> 
B24: ='PLANILHA REFERENCIA DETRAN PR'!A24 -> 1.18 | C24: =VLOOKUP(B24,'PLANILHA REFERENCIA DETRAN PR'!$A$6:$I$39,4,FALSE) -> COMP.01 | D24: =VLOOKUP(B24,'PLANILHA REFERENCIA DETRAN PR'!$A$6:$I$39,2,FALSE) -> Suporte metálico galv. fogo d=2,5" c/tampa e aletas anti-giro, h=2,00 | E24: =VLOOKUP(B24,'PLANILHA REFERENCIA DETRAN PR'!$A$6:$I$39,6,FALSE) -> unid | F24: =VLOOKUP(B24,'PLANILHA_SINTÉTICA'!$B$13:$N$48,7,FALSE) ->  | G24: =VLOOKUP(B24,'PLANILHA REFERENCIA DETRAN PR'!$A$6:$I$39,9,FALSE) -> 306.55 | H24: 0 | I24: 0 | J24: =IF('CURVA ABC'!$I24='CURVA ABC'!$I$12,"",H24/SUM($H$13:$H$37)) -> #DIV/0! | L24: =IFERROR(IF('CURVA ABC'!$J24=0,"",IF((K24-J24)>0.8,"C",IF((K24-J24)<0.5,"A","B"))),"") -> 
B25: ='PLANILHA REFERENCIA DETRAN PR'!A25 -> 1.19 | C25: =VLOOKUP(B25,'PLANILHA REFERENCIA DETRAN PR'!$A$6:$I$39,4,FALSE) -> 822030 | D25: =VLOOKUP(B25,'PLANILHA REFERENCIA DETRAN PR'!$A$6:$I$39,2,FALSE) -> Suporte metálico galv. fogo perfil "C" 250x85x25x2,70mm, h=5,00m | E25: =VLOOKUP(B25,'PLANILHA REFERENCIA DETRAN PR'!$A$6:$I$39,6,FALSE) -> ud | F25: =VLOOKUP(B25,'PLANILHA_SINTÉTICA'!$B$13:$N$48,7,FALSE) ->  | G25: =VLOOKUP(B25,'PLANILHA REFERENCIA DETRAN PR'!$A$6:$I$39,9,FALSE) -> 1427.52 | H25: 0 | I25: 0 | J25: =IF('CURVA ABC'!$I25='CURVA ABC'!$I$12,"",H25/SUM($H$13:$H$37)) -> #DIV/0! | L25: =IFERROR(IF('CURVA ABC'!$J25=0,"",IF((K25-J25)>0.8,"C",IF((K25-J25)<0.5,"A","B"))),"") -> 
B26: ='PLANILHA REFERENCIA DETRAN PR'!A26 -> 1.20 | C26: =VLOOKUP(B26,'PLANILHA REFERENCIA DETRAN PR'!$A$6:$I$39,4,FALSE) -> 820000 | D26: =VLOOKUP(B26,'PLANILHA REFERENCIA DETRAN PR'!$A$6:$I$39,2,FALSE) -> Placa sinalização em chapa de aço nº18 galvanizada c/ película refletiva Tipo I A (prismática) - Utilizar apenas para placas não listadas no orçamento | E26: =VLOOKUP(B26,'PLANILHA REFERENCIA DETRAN PR'!$A$6:$I$39,6,FALSE) -> m2 | F26: =VLOOKUP(B26,'PLANILHA_SINTÉTICA'!$B$13:$N$48,7,FALSE) -> 0 | G26: =VLOOKUP(B26,'PLANILHA REFERENCIA DETRAN PR'!$A$6:$I$39,9,FALSE) -> 458.28 | H26: 0 | I26: 0 | J26: =IF('CURVA ABC'!$I26='CURVA ABC'!$I$12,"",H26/SUM($H$13:$H$37)) -> #DIV/0! | L26: =IFERROR(IF('CURVA ABC'!$J26=0,"",IF((K26-J26)>0.8,"C",IF((K26-J26)<0.5,"A","B"))),"") -> 
B27: ='PLANILHA REFERENCIA DETRAN PR'!A28 -> 2.1 | C27: =VLOOKUP(B27,'PLANILHA REFERENCIA DETRAN PR'!$A$6:$I$39,4,FALSE) -> 822100 | D27: =VLOOKUP(B27,'PLANILHA REFERENCIA DETRAN PR'!$A$6:$I$39,2,FALSE) -> Faixa de sinalização horizontal c/tinta resina acrílica base água | E27: =VLOOKUP(B27,'PLANILHA REFERENCIA DETRAN PR'!$A$6:$I$39,6,FALSE) -> m2 | F27: =VLOOKUP(B27,'PLANILHA_SINTÉTICA'!$B$13:$N$48,7,FALSE) ->  | G27: =VLOOKUP(B27,'PLANILHA REFERENCIA DETRAN PR'!$A$6:$I$39,9,FALSE) -> 23.01 | H27: 0 | I27: 0 | J27: =IF('CURVA ABC'!$I27='CURVA ABC'!$I$12,"",H27/SUM($H$13:$H$37)) -> #DIV/0! | L27: =IFERROR(IF('CURVA ABC'!$J27=0,"",IF((K27-J27)>0.8,"C",IF((K27-J27)<0.5,"A","B"))),"") -> 
B28: ='PLANILHA REFERENCIA DETRAN PR'!A29 -> 2.2 | C28: =VLOOKUP(B28,'PLANILHA REFERENCIA DETRAN PR'!$A$6:$I$39,4,FALSE) -> 822000 | D28: =VLOOKUP(B28,'PLANILHA REFERENCIA DETRAN PR'!$A$6:$I$39,2,FALSE) -> Faixa de sinalização horizontal c/tinta resina acrílica base solvente | E28: =VLOOKUP(B28,'PLANILHA REFERENCIA DETRAN PR'!$A$6:$I$39,6,FALSE) -> m2 | F28: =VLOOKUP(B28,'PLANILHA_SINTÉTICA'!$B$13:$N$48,7,FALSE) ->  | G28: =VLOOKUP(B28,'PLANILHA REFERENCIA DETRAN PR'!$A$6:$I$39,9,FALSE) -> 31.74 | H28: 0 | I28: 0 | J28: =IF('CURVA ABC'!$I28='CURVA ABC'!$I$12,"",H28/SUM($H$13:$H$37)) -> #DIV/0! | L28: =IFERROR(IF('CURVA ABC'!$J28=0,"",IF((K28-J28)>0.8,"C",IF((K28-J28)<0.5,"A","B"))),"") -> 
B29: ='PLANILHA REFERENCIA DETRAN PR'!A30 -> 2.3 | C29: =VLOOKUP(B29,'PLANILHA REFERENCIA DETRAN PR'!$A$6:$I$39,4,FALSE) -> 822350 | D29: =VLOOKUP(B29,'PLANILHA REFERENCIA DETRAN PR'!$A$6:$I$39,2,FALSE) -> Faixa de sinalização horizontal - termoplástico por aspersão - e=1,5mm | E29: =VLOOKUP(B29,'PLANILHA REFERENCIA DETRAN PR'!$A$6:$I$39,6,FALSE) -> m2 | F29: =VLOOKUP(B29,'PLANILHA_SINTÉTICA'!$B$13:$N$48,7,FALSE) ->  | G29: =VLOOKUP(B29,'PLANILHA REFERENCIA DETRAN PR'!$A$6:$I$39,9,FALSE) -> 42.66 | H29: 0 | I29: 0 | J29: =IF('CURVA ABC'!$I29='CURVA ABC'!$I$12,"",H29/SUM($H$13:$H$37)) -> #DIV/0! | L29: =IFERROR(IF('CURVA ABC'!$J29=0,"",IF((K29-J29)>0.8,"C",IF((K29-J29)<0.5,"A","B"))),"") -> 
B30: ='PLANILHA REFERENCIA DETRAN PR'!A31 -> 2.4 | C30: =VLOOKUP(B30,'PLANILHA REFERENCIA DETRAN PR'!$A$6:$I$39,4,FALSE) -> 822330 | D30: =VLOOKUP(B30,'PLANILHA REFERENCIA DETRAN PR'!$A$6:$I$39,2,FALSE) -> Pintura de setas e zebrados - termoplástico por extrusão - e=3mm | E30: =VLOOKUP(B30,'PLANILHA REFERENCIA DETRAN PR'!$A$6:$I$39,6,FALSE) -> m2 | F30: =VLOOKUP(B30,'PLANILHA_SINTÉTICA'!$B$13:$N$48,7,FALSE) ->  | G30: =VLOOKUP(B30,'PLANILHA REFERENCIA DETRAN PR'!$A$6:$I$39,9,FALSE) -> 60.96 | H30: 0 | I30: 0 | J30: =IF('CURVA ABC'!$I30='CURVA ABC'!$I$12,"",H30/SUM($H$13:$H$37)) -> #DIV/0! | L30: =IFERROR(IF('CURVA ABC'!$J30=0,"",IF((K30-J30)>0.8,"C",IF((K30-J30)<0.5,"A","B"))),"") -> 
B31: ='PLANILHA REFERENCIA DETRAN PR'!A32 -> 2.5 | C31: =VLOOKUP(B31,'PLANILHA REFERENCIA DETRAN PR'!$A$6:$I$39,4,FALSE) -> 5214009 | D31: =VLOOKUP(B31,'PLANILHA REFERENCIA DETRAN PR'!$A$6:$I$39,2,FALSE) -> Pintura de faixa - plástico a frio bicomponente à base de resinas metacrílicas - espessura de 1,5 mm - plano | E31: =VLOOKUP(B31,'PLANILHA REFERENCIA DETRAN PR'!$A$6:$I$39,6,FALSE) -> m² | F31: =VLOOKUP(B31,'PLANILHA_SINTÉTICA'!$B$13:$N$48,7,FALSE) ->  | G31: =VLOOKUP(B31,'PLANILHA REFERENCIA DETRAN PR'!$A$6:$I$39,9,FALSE) -> 115.58 | H31: 0 | I31: 0 | J31: =IF('CURVA ABC'!$I31='CURVA ABC'!$I$12,"",H31/SUM($H$13:$H$37)) -> #DIV/0! | L31: =IFERROR(IF('CURVA ABC'!$J31=0,"",IF((K31-J31)>0.8,"C",IF((K31-J31)<0.5,"A","B"))),"") -> 
B32: ='PLANILHA REFERENCIA DETRAN PR'!A33 -> 2.6 | C32: =VLOOKUP(B32,'PLANILHA REFERENCIA DETRAN PR'!$A$6:$I$39,4,FALSE) -> 5213413 | D32: =VLOOKUP(B32,'PLANILHA REFERENCIA DETRAN PR'!$A$6:$I$39,2,FALSE) -> Pintura de faixa - plástico a frio tricomponente à base de resinas metacrílicas - espessura de 0,6 mm - aspersão | E32: =VLOOKUP(B32,'PLANILHA REFERENCIA DETRAN PR'!$A$6:$I$39,6,FALSE) -> m² | F32: =VLOOKUP(B32,'PLANILHA_SINTÉTICA'!$B$13:$N$48,7,FALSE) ->  | G32: =VLOOKUP(B32,'PLANILHA REFERENCIA DETRAN PR'!$A$6:$I$39,9,FALSE) -> 68.62 | H32: 0 | I32: 0 | J32: =IF('CURVA ABC'!$I32='CURVA ABC'!$I$12,"",H32/SUM($H$13:$H$37)) -> #DIV/0! | L32: =IFERROR(IF('CURVA ABC'!$J32=0,"",IF((K32-J32)>0.8,"C",IF((K32-J32)<0.5,"A","B"))),"") -> 
B33: ='PLANILHA REFERENCIA DETRAN PR'!A34 -> 2.7 | C33: =VLOOKUP(B33,'PLANILHA REFERENCIA DETRAN PR'!$A$6:$I$39,4,FALSE) -> 870000 | D33: =VLOOKUP(B33,'PLANILHA REFERENCIA DETRAN PR'!$A$6:$I$39,2,FALSE) -> Tacha refletiva monodirecional | E33: =VLOOKUP(B33,'PLANILHA REFERENCIA DETRAN PR'!$A$6:$I$39,6,FALSE) -> ud | F33: =VLOOKUP(B33,'PLANILHA_SINTÉTICA'!$B$13:$N$48,7,FALSE) ->  | G33: =VLOOKUP(B33,'PLANILHA REFERENCIA DETRAN PR'!$A$6:$I$39,9,FALSE) -> 18.9 | H33: 0 | I33: 0 | J33: =IF('CURVA ABC'!$I33='CURVA ABC'!$I$12,"",H33/SUM($H$13:$H$37)) -> #DIV/0! | L33: =IFERROR(IF('CURVA ABC'!$J33=0,"",IF((K33-J33)>0.8,"C",IF((K33-J33)<0.5,"A","B"))),"") -> 
B34: ='PLANILHA REFERENCIA DETRAN PR'!A35 -> 2.8 | C34: =VLOOKUP(B34,'PLANILHA REFERENCIA DETRAN PR'!$A$6:$I$39,4,FALSE) -> 871000 | D34: =VLOOKUP(B34,'PLANILHA REFERENCIA DETRAN PR'!$A$6:$I$39,2,FALSE) -> Tacha refletiva bidirecional | E34: =VLOOKUP(B34,'PLANILHA REFERENCIA DETRAN PR'!$A$6:$I$39,6,FALSE) -> ud | F34: =VLOOKUP(B34,'PLANILHA_SINTÉTICA'!$B$13:$N$48,7,FALSE) ->  | G34: =VLOOKUP(B34,'PLANILHA REFERENCIA DETRAN PR'!$A$6:$I$39,9,FALSE) -> 19.28 | H34: 0 | I34: 0 | J34: =IF('CURVA ABC'!$I34='CURVA ABC'!$I$12,"",H34/SUM($H$13:$H$37)) -> #DIV/0! | L34: =IFERROR(IF('CURVA ABC'!$J34=0,"",IF((K34-J34)>0.8,"C",IF((K34-J34)<0.5,"A","B"))),"") -> 
B35: ='PLANILHA REFERENCIA DETRAN PR'!A36 -> 2.9 | C35: =VLOOKUP(B35,'PLANILHA REFERENCIA DETRAN PR'!$A$6:$I$39,4,FALSE) -> 872000 | D35: =VLOOKUP(B35,'PLANILHA REFERENCIA DETRAN PR'!$A$6:$I$39,2,FALSE) -> Tachão refletivo monodirecional | E35: =VLOOKUP(B35,'PLANILHA REFERENCIA DETRAN PR'!$A$6:$I$39,6,FALSE) -> ud | F35: =VLOOKUP(B35,'PLANILHA_SINTÉTICA'!$B$13:$N$48,7,FALSE) ->  | G35: =VLOOKUP(B35,'PLANILHA REFERENCIA DETRAN PR'!$A$6:$I$39,9,FALSE) -> 43.54 | H35: 0 | I35: 0 | J35: =IF('CURVA ABC'!$I35='CURVA ABC'!$I$12,"",H35/SUM($H$13:$H$37)) -> #DIV/0! | L35: =IFERROR(IF('CURVA ABC'!$J35=0,"",IF((K35-J35)>0.8,"C",IF((K35-J35)<0.5,"A","B"))),"") -> 
B36: ='PLANILHA REFERENCIA DETRAN PR'!A37 -> 2.10 | C36: =VLOOKUP(B36,'PLANILHA REFERENCIA DETRAN PR'!$A$6:$I$39,4,FALSE) -> 873000 | D36: =VLOOKUP(B36,'PLANILHA REFERENCIA DETRAN PR'!$A$6:$I$39,2,FALSE) -> Tachão refletivo bidirecional | E36: =VLOOKUP(B36,'PLANILHA REFERENCIA DETRAN PR'!$A$6:$I$39,6,FALSE) -> ud | F36: =VLOOKUP(B36,'PLANILHA_SINTÉTICA'!$B$13:$N$48,7,FALSE) ->  | G36: =VLOOKUP(B36,'PLANILHA REFERENCIA DETRAN PR'!$A$6:$I$39,9,FALSE) -> 44.04 | H36: 0 | I36: 0 | J36: =IF('CURVA ABC'!$I36='CURVA ABC'!$I$12,"",H36/SUM($H$13:$H$37)) -> #DIV/0! | L36: =IFERROR(IF('CURVA ABC'!$J36=0,"",IF((K36-J36)>0.8,"C",IF((K36-J36)<0.5,"A","B"))),"") -> 
B37: ='PLANILHA REFERENCIA DETRAN PR'!A38 -> 2.11 | C37: =VLOOKUP(B37,'PLANILHA REFERENCIA DETRAN PR'!$A$6:$I$39,4,FALSE) -> 09.04.00 | D37: =VLOOKUP(B37,'PLANILHA REFERENCIA DETRAN PR'!$A$6:$I$39,2,FALSE) -> Fresagem de pavimento asfáltico com espessura de até 5cm, em vias arteriais, inclusive remoção do material fresado até 10km e varrição | E37: =VLOOKUP(B37,'PLANILHA REFERENCIA DETRAN PR'!$A$6:$I$39,6,FALSE) -> M2 | F37: =VLOOKUP(B37,'PLANILHA_SINTÉTICA'!$B$13:$N$48,7,FALSE) ->  | G37: =VLOOKUP(B37,'PLANILHA REFERENCIA DETRAN PR'!$A$6:$I$39,9,FALSE) -> 17.77 | H37: 0 | I37: 0 | J37: =IF('CURVA ABC'!$I37='CURVA ABC'!$I$12,"",H37/SUM($H$13:$H$37)) -> #DIV/0! | L37: =IFERROR(IF('CURVA ABC'!$J37=0,"",IF((K37-J37)>0.8,"C",IF((K37-J37)<0.5,"A","B"))),"") -> 

Sheet DECLARAÇÃO
L4: EDITAR APENAS OS ITENS EM VERMELHO
C9: PRÓPRIO: | D9: EXECUÇÃO DE SERVIÇOS DE SINALIZAÇÃO VIÁRIA
C10: MUNICÍPIO: | D10: ='FOLHA FECHAMENTO'!D12:I12 -> 
C11: EMPRESA: | D11: =IF([1]DADOS!D32<>"",[1]DADOS!D32," ") -> #ERROR!
D16: TERMO DE RESPONSABILIDADE
C18: O profissional signatário deste, abaixo identificado, se responsabiliza pelo atendimento integral do contido na Portaria PRED, que determina os procedimentos para elaboração e apresentação de orçamentos/projetos, bem como pelo correto uso dos modelos e tabelas DER PR / SICRO / SCO RJ vigentes. O objeto deste Termo refere-se à correspondente ART abaixo
C26: ART/RRT nº : | F26: ='FOLHA FECHAMENTO'!M18 -> 
C27: CREA: | F27: ='FOLHA FECHAMENTO'!M17 -> 
F29: ______________________________
G30: ='FOLHA FECHAMENTO'!H17 -> 
C32: TERMO DE LIBERAÇÃO DOS DIREITOS AUTORAIS
C34: O profissional signatário deste, abaixo identificado, concede ao DETRAN PR a liberação dos direitos autorais relativos às composições de serviços por ele elaboradas correspondente a ART/RRT abaixo
C39: ART/RRT nº : | F39: ='FOLHA FECHAMENTO'!M18 -> 
C40: CREA: | F40: ='FOLHA FECHAMENTO'!M17 -> 
F42: ______________________________
F43: =G30 -> 

Sheet PLANILHA REFERENCIA DETRAN PR
A1: PLANILHA DE CUSTOS DETRAN/PR
A4: ITEM | B4: DESCRIÇÃO | C4: FONTE | F4: UNIDADE | G4: MÃO DE OBRA | H4: MATERIAL | I4: CUSTO UNITÁRIO
C5: ÓRGÃO | D5: CÓDIGO | E5: DATA BASE
A6: 1 | B6: SINALIZAÇÃO VERTICAL
A7: 1.1 | B7: =IF(C7="derpr",VLOOKUP(D7,der!A:J,3,FALSE),IF(C7="dnit",VLOOKUP(D7,dnit!A:D,3,FALSE),IF(C7="detran-pr",VLOOKUP(D7,'Composições'!D:K,2,FALSE),IF(C7="sco/rj",VLOOKUP(D7,scorj!B:G,3,FALSE))))) -> Placa tipo R-1 - L = 0,25m. Com película refletiva tipo I A (prismática) - Área: 0,32 m² | C7: DETRAN-PR | D7: COMP.05 | E7: =IF(C7="derpr",der!$L$1,IF(C7="dnit",dnit!$A$1,IF(C7="detran-pr",scorj!$B$1,IF(C7="sco/rj",scorj!$B$1)))) -> 2025-04-07 | F7: =IF(C7="derpr",VLOOKUP(D7,der!A:J,3,FALSE),IF(C7="dnit",VLOOKUP(D7,dnit!A:D,3,FALSE),IF(C7="detran-pr",VLOOKUP(D7,'Composições'!D:K,3,FALSE),IF(C7="sco/rj",VLOOKUP(D7,scorj!B:G,3,FALSE))))) -> unid | G7: =IF(C7="derpr",VLOOKUP(D7,der!A:J,9,FALSE),IF(C7="dnit",VLOOKUP(D7,dnit!A:E,5,FALSE),IF(C7="detran-pr",VLOOKUP(D7,'Composições'!D:K,8,FALSE),IF(C7="sco/rj",VLOOKUP(D7,scorj!B:G,5,FALSE))))) -> 59.1392 | H7: =IF(C7="derpr",VLOOKUP(D7,der!A:J,10,FALSE),IF(C7="dnit",VLOOKUP(D7,dnit!A:E,4,FALSE),IF(C7="detran-pr",VLOOKUP(D7,'Composições'!D:K,7,FALSE),IF(C7="sco/rj",VLOOKUP(D7,scorj!B:G,4,FALSE))))) -> 87.5104 | I7: =IF(C7="derpr",VLOOKUP(D7,der!A:J,7,FALSE),IF(C7="dnit",VLOOKUP(D7,dnit!A:E,4,FALSE),IF(C7="detran-pr",VLOOKUP(D7,'Composições'!D:K,6,FALSE),IF(C7="sco/rj",VLOOKUP(D7,scorj!B:G,4,FALSE))))) -> 146.6496
A8: 1.2 | B8: =IF(C8="derpr",VLOOKUP(D8,der!A:J,3,FALSE),IF(C8="dnit",VLOOKUP(D8,dnit!A:D,3,FALSE),IF(C8="detran-pr",VLOOKUP(D8,'Composições'!D:K,2,FALSE),IF(C8="sco/rj",VLOOKUP(D8,scorj!B:G,3,FALSE))))) -> Placa tipo R-2 - L = 0,75m. Com película refletiva tipo I A (prismática) - Área: 0,24m² | C8: DETRAN-PR | D8: COMP.06 | E8: =IF(C8="derpr",der!$L$1,IF(C8="dnit",dnit!$A$1,IF(C8="detran-pr",scorj!$B$1,IF(C8="sco/rj",scorj!$B$1)))) -> 2025-04-07 | F8: =IF(C8="derpr",VLOOKUP(D8,der!A:J,3,FALSE),IF(C8="dnit",VLOOKUP(D8,dnit!A:D,3,FALSE),IF(C8="detran-pr",VLOOKUP(D8,'Composições'!D:K,3,FALSE),IF(C8="sco/rj",VLOOKUP(D8,scorj!B:G,3,FALSE))))) -> unid | G8: =IF(C8="derpr",VLOOKUP(D8,der!A:J,9,FALSE),IF(C8="dnit",VLOOKUP(D8,dnit!A:E,5,FALSE),IF(C8="detran-pr",VLOOKUP(D8,'Composições'!D:K,8,FALSE),IF(C8="sco/rj",VLOOKUP(D8,scorj!B:G,5,FALSE))))) -> 44.3544 | H8: =IF(C8="derpr",VLOOKUP(D8,der!A:J,10,FALSE),IF(C8="dnit",VLOOKUP(D8,dnit!A:E,4,FALSE),IF(C8="detran-pr",VLOOKUP(D8,'Composições'!D:K,7,FALSE),IF(C8="sco/rj",VLOOKUP(D8,scorj!B:G,4,FALSE))))) -> 65.6328 | I8: =IF(C8="derpr",VLOOKUP(D8,der!A:J,7,FALSE),IF(C8="dnit",VLOOKUP(D8,dnit!A:E,4,FALSE),IF(C8="detran-pr",VLOOKUP(D8,'Composições'!D:K,6,FALSE),IF(C8="sco/rj",VLOOKUP(D8,scorj!B:G,4,FALSE))))) -> 109.9872
A9: 1.3 | B9: =IF(C9="derpr",VLOOKUP(D9,der!A:J,3,FALSE),IF(C9="dnit",VLOOKUP(D9,dnit!A:D,3,FALSE),IF(C9="detran-pr",VLOOKUP(D9,'Composições'!D:K,2,FALSE),IF(C9="sco/rj",VLOOKUP(D9,scorj!B:G,3,FALSE))))) -> Placa tipo circular - D = 0,50m. Com película refletiva tipo I A (prismática) - Área: 0,21m² | C9: DETRAN-PR | D9: COMP.07 | E9: =IF(C9="derpr",der!$L$1,IF(C9="dnit",dnit!$A$1,IF(C9="detran-pr",scorj!$B$1,IF(C9="sco/rj",scorj!$B$1)))) -> 2025-04-07 | F9: =IF(C9="derpr",VLOOKUP(D9,der!A:J,3,FALSE),IF(C9="dnit",VLOOKUP(D9,dnit!A:D,3,FALSE),IF(C9="detran-pr",VLOOKUP(D9,'Composições'!D:K,3,FALSE),IF(C9="sco/rj",VLOOKUP(D9,scorj!B:G,3,FALSE))))) -> unid | G9: =IF(C9="derpr",VLOOKUP(D9,der!A:J,9,FALSE),IF(C9="dnit",VLOOKUP(D9,dnit!A:E,5,FALSE),IF(C9="detran-pr",VLOOKUP(D9,'Composições'!D:K,8,FALSE),IF(C9="sco/rj",VLOOKUP(D9,scorj!B:G,5,FALSE))))) -> 38.8101 | H9: =IF(C9="derpr",VLOOKUP(D9,der!A:J,10,FALSE),IF(C9="dnit",VLOOKUP(D9,dnit!A:E,4,FALSE),IF(C9="detran-pr",VLOOKUP(D9,'Composições'!D:K,7,FALSE),IF(C9="sco/rj",VLOOKUP(D9,scorj!B:G,4,FALSE))))) -> 57.4287 | I9: =IF(C9="derpr",VLOOKUP(D9,der!A:J,7,FALSE),IF(C9="dnit",VLOOKUP(D9,dnit!A:E,4,FALSE),IF(C9="detran-pr",VLOOKUP(D9,'Composições'!D:K,6,FALSE),IF(C9="sco/rj",VLOOKUP(D9,scorj!B:G,4,FALSE))))) -> 96.2388
A10: 1.4 | B10: =IF(C10="derpr",VLOOKUP(D10,der!A:J,3,FALSE),IF(C10="dnit",VLOOKUP(D10,dnit!A:D,3,FALSE),IF(C10="detran-pr",VLOOKUP(D10,'Composições'!D:K,2,FALSE),IF(C10="sco/rj",VLOOKUP(D10,scorj!B:G,3,FALSE))))) -> Placa tipo de advertência - L = 0,50m. Com película refletiva tipo I A (prismática) - Área: 0,27 m² | C10: DETRAN-PR | D10: COMP.08 | E10: =IF(C10="derpr",der!$L$1,IF(C10="dnit",dnit!$A$1,IF(C10="detran-pr",scorj!$B$1,IF(C10="sco/rj",scorj!$B$1)))) -> 2025-04-07 | F10: =IF(C10="derpr",VLOOKUP(D10,der!A:J,3,FALSE),IF(C10="dnit",VLOOKUP(D10,dnit!A:D,3,FALSE),IF(C10="detran-pr",VLOOKUP(D10,'Composições'!D:K,3,FALSE),IF(C10="sco/rj",VLOOKUP(D10,scorj!B:G,3,FALSE))))) -> unid | G10: =IF(C10="derpr",VLOOKUP(D10,der!A:J,9,FALSE),IF(C10="dnit",VLOOKUP(D10,dnit!A:E,5,FALSE),IF(C10="detran-pr",VLOOKUP(D10,'Composições'!D:K,8,FALSE),IF(C10="sco/rj",VLOOKUP(D10,scorj!B:G,5,FALSE))))) -> 49.8987 | H10: =IF(C10="derpr",VLOOKUP(D10,der!A:J,10,FALSE),IF(C10="dnit",VLOOKUP(D10,dnit!A:E,4,FALSE),IF(C10="detran-pr",VLOOKUP(D10,'Composições'!D:K,7,FALSE),IF(C10="sco/rj",VLOOKUP(D10,scorj!B:G,4,FALSE))))) -> 73.8369 | I10: =IF(C10="derpr",VLOOKUP(D10,der!A:J,7,FALSE),IF(C10="dnit",VLOOKUP(D10,dnit!A:E,4,FALSE),IF(C10="detran-pr",VLOOKUP(D10,'Composições'!D:K,6,FALSE),IF(C10="sco/rj",VLOOKUP(D10,scorj!B:G,4,FALSE))))) -> 123.7356
A11: 1.5 | B11: =IF(C11="derpr",VLOOKUP(D11,der!A:J,3,FALSE),IF(C11="dnit",VLOOKUP(D11,dnit!A:D,3,FALSE),IF(C11="detran-pr",VLOOKUP(D11,'Composições'!D:K,2,FALSE),IF(C11="sco/rj",VLOOKUP(D11,scorj!B:G,3,FALSE))))) -> Placa tipo retangular - L = 0,50m x h= 1,00 m. Com película refletiva tipo I A (prismática) | C11: DETRAN-PR | D11: COMP.09 | E11: =IF(C11="derpr",der!$L$1,IF(C11="dnit",dnit!$A$1,IF(C11="detran-pr",scorj!$B$1,IF(C11="sco/rj",scorj!$B$1)))) -> 2025-04-07 | F11: =IF(C11="derpr",VLOOKUP(D11,der!A:J,3,FALSE),IF(C11="dnit",VLOOKUP(D11,dnit!A:D,3,FALSE),IF(C11="detran-pr",VLOOKUP(D11,'Composições'!D:K,3,FALSE),IF(C11="sco/rj",VLOOKUP(D11,scorj!B:G,3,FALSE))))) -> unid | G11: =IF(C11="derpr",VLOOKUP(D11,der!A:J,9,FALSE),IF(C11="dnit",VLOOKUP(D11,dnit!A:E,5,FALSE),IF(C11="detran-pr",VLOOKUP(D11,'Composições'!D:K,8,FALSE),IF(C11="sco/rj",VLOOKUP(D11,scorj!B:G,5,FALSE))))) -> 92.405 | H11: =IF(C11="derpr",VLOOKUP(D11,der!A:J,10,FALSE),IF(C11="dnit",VLOOKUP(D11,dnit!A:E,4,FALSE),IF(C11="detran-pr",VLOOKUP(D11,'Composições'!D:K,7,FALSE),IF(C11="sco/rj",VLOOKUP(D11,scorj!B:G,4,FALSE))))) -> 136.735 | I11: =IF(C11="derpr",VLOOKUP(D11,der!A:J,7,FALSE),IF(C11="dnit",VLOOKUP(D11,dnit!A:E,4,FALSE),IF(C11="detran-pr",VLOOKUP(D11,'Composições'!D:K,6,FALSE),IF(C11="sco/rj",VLOOKUP(D11,scorj!B:G,4,FALSE))))) -> 229.14
A12: 1.6 | B12: Placa sinalização em chapa de aço nº18 galvanizada c/ película refletiva Tipo I A (prismática) - Utilizar apenas para placas não listadas no orçamento | C12: DERPR | D12: 820000 | E12: =IF(C12="derpr",der!$L$1,IF(C12="dnit",dnit!$A$1,IF(C12="detran-pr",scorj!$B$1,IF(C12="sco/rj",scorj!$B$1)))) -> 2024-10-31 | F12: =IF(C12="derpr",VLOOKUP(D12,der!A:J,3,FALSE),IF(C12="dnit",VLOOKUP(D12,dnit!A:D,3,FALSE),IF(C12="detran-pr",VLOOKUP(D12,'Composições'!D:K,3,FALSE),IF(C12="sco/rj",VLOOKUP(D12,scorj!B:G,3,FALSE))))) -> m2 | G12: =IF(C12="derpr",VLOOKUP(D12,der!A:J,9,FALSE),IF(C12="dnit",VLOOKUP(D12,dnit!A:E,5,FALSE),IF(C12="detran-pr",VLOOKUP(D12,'Composições'!D:K,8,FALSE),IF(C12="sco/rj",VLOOKUP(D12,scorj!B:G,5,FALSE))))) -> 184.81 | H12: =IF(C12="derpr",VLOOKUP(D12,der!A:J,10,FALSE),IF(C12="dnit",VLOOKUP(D12,dnit!A:E,4,FALSE),IF(C12="detran-pr",VLOOKUP(D12,'Composições'!D:K,7,FALSE),IF(C12="sco/rj",VLOOKUP(D12,scorj!B:G,4,FALSE))))) -> 273.47 | I12: =IF(C12="derpr",VLOOKUP(D12,der!A:J,7,FALSE),IF(C12="dnit",VLOOKUP(D12,dnit!A:E,4,FALSE),IF(C12="detran-pr",VLOOKUP(D12,'Composições'!D:K,6,FALSE),IF(C12="sco/rj",VLOOKUP(D12,scorj!B:G,4,FALSE))))) -> 458.28
A13: 1.7 | B13: Suporte polimérico ecológico maciço colapsível D = 6,5 cm para placa de sinalização - fornecimento e implantação - 3,00 m | C13: DNIT | D13: 5213351-ed | E13: =IF(C13="derpr",der!$L$1,IF(C13="dnit",dnit!$A$1,IF(C13="detran-pr",scorj!$B$1,IF(C13="sco/rj",scorj!$B$1)))) -> 2025-01-01 | F13: =IF(C13="derpr",VLOOKUP(D13,der!A:J,3,FALSE),IF(C13="dnit",VLOOKUP(D13,dnit!A:D,3,FALSE),IF(C13="detran-pr",VLOOKUP(D13,'Composições'!D:K,3,FALSE),IF(C13="sco/rj",VLOOKUP(D13,scorj!B:G,3,FALSE))))) -> un | G13: =IF(C13="derpr",VLOOKUP(D13,der!A:J,9,FALSE),IF(C13="dnit",VLOOKUP(D13,dnit!A:E,5,FALSE),IF(C13="detran-pr",VLOOKUP(D13,'Composições'!D:K,8,FALSE),IF(C13="sco/rj",VLOOKUP(D13,scorj!B:G,5,FALSE))))) ->  | H13: =IF(C13="derpr",VLOOKUP(D13,der!A:J,10,FALSE),IF(C13="dnit",VLOOKUP(D13,dnit!A:E,4,FALSE),IF(C13="detran-pr",VLOOKUP(D13,'Composições'!D:K,7,FALSE),IF(C13="sco/rj",VLOOKUP(D13,scorj!B:G,4,FALSE))))) -> 573.6 | I13: =IF(C13="derpr",VLOOKUP(D13,der!A:J,7,FALSE),IF(C13="dnit",VLOOKUP(D13,dnit!A:E,4,FALSE),IF(C13="detran-pr",VLOOKUP(D13,'Composições'!D:K,6,FALSE),IF(C13="sco/rj",VLOOKUP(D13,scorj!B:G,4,FALSE))))) -> 573.6
A14: 1.8 | B14: Suporte polimérico ecológico maciço colapsível D = 6,5 cm para placa de sinalização - fornecimento e implantação - 3,60 m | C14: DNIT | D14: 5213351 | E14: =IF(C14="derpr",der!$L$1,IF(C14="dnit",dnit!$A$1,IF(C14="detran-pr",scorj!$B$1,IF(C14="sco/rj",scorj!$B$1)))) -> 2025-01-01 | F14: =IF(C14="derpr",VLOOKUP(D14,der!A:J,3,FALSE),IF(C14="dnit",VLOOKUP(D14,dnit!A:D,3,FALSE),IF(C14="detran-pr",VLOOKUP(D14,'Composições'!D:K,3,FALSE),IF(C14="sco/rj",VLOOKUP(D14,scorj!B:G,3,FALSE))))) -> un | G14: =IF(C14="derpr",VLOOKUP(D14,der!A:J,9,FALSE),IF(C14="dnit",VLOOKUP(D14,dnit!A:E,5,FALSE),IF(C14="detran-pr",VLOOKUP(D14,'Composições'!D:K,8,FALSE),IF(C14="sco/rj",VLOOKUP(D14,scorj!B:G,5,FALSE))))) ->  | H14: =IF(C14="derpr",VLOOKUP(D14,der!A:J,10,FALSE),IF(C14="dnit",VLOOKUP(D14,dnit!A:E,4,FALSE),IF(C14="detran-pr",VLOOKUP(D14,'Composições'!D:K,7,FALSE),IF(C14="sco/rj",VLOOKUP(D14,scorj!B:G,4,FALSE))))) -> 688.32 | I14: =IF(C14="derpr",VLOOKUP(D14,der!A:J,7,FALSE),IF(C14="dnit",VLOOKUP(D14,dnit!A:E,4,FALSE),IF(C14="detran-pr",VLOOKUP(D14,'Composições'!D:K,6,FALSE),IF(C14="sco/rj",VLOOKUP(D14,scorj!B:G,4,FALSE))))) -> 688.32
A15: 1.9 | B15: Suporte metál.galv.fogo d=2,5" c/tampa e aletas antigiro h=3,00m | C15: DERPR | D15: 821300 | E15: =IF(C15="derpr",der!$L$1,IF(C15="dnit",dnit!$A$1,IF(C15="detran-pr",scorj!$B$1,IF(C15="sco/rj",scorj!$B$1)))) -> 2024-10-31 | F15: =IF(C15="derpr",VLOOKUP(D15,der!A:J,3,FALSE),IF(C15="dnit",VLOOKUP(D15,dnit!A:D,3,FALSE),IF(C15="detran-pr",VLOOKUP(D15,'Composições'!D:K,3,FALSE),IF(C15="sco/rj",VLOOKUP(D15,scorj!B:G,3,FALSE))))) -> ud | G15: =IF(C15="derpr",VLOOKUP(D15,der!A:J,9,FALSE),IF(C15="dnit",VLOOKUP(D15,dnit!A:E,5,FALSE),IF(C15="detran-pr",VLOOKUP(D15,'Composições'!D:K,8,FALSE),IF(C15="sco/rj",VLOOKUP(D15,scorj!B:G,5,FALSE))))) -> 68.52 | H15: =IF(C15="derpr",VLOOKUP(D15,der!A:J,10,FALSE),IF(C15="dnit",VLOOKUP(D15,dnit!A:E,4,FALSE),IF(C15="detran-pr",VLOOKUP(D15,'Composições'!D:K,7,FALSE),IF(C15="sco/rj",VLOOKUP(D15,scorj!B:G,4,FALSE))))) -> 336.14 | I15: =IF(C15="derpr",VLOOKUP(D15,der!A:J,7,FALSE),IF(C15="dnit",VLOOKUP(D15,dnit!A:E,4,FALSE),IF(C15="detran-pr",VLOOKUP(D15,'Composições'!D:K,6,FALSE),IF(C15="sco/rj",VLOOKUP(D15,scorj!B:G,4,FALSE))))) -> 404.66
A16: 1.10 | B16: Suporte metál.galv.fogo d=2,5" c/tampa e aletas antigiro h=3,50m | C16: DERPR | D16: 821350 | E16: =IF(C16="derpr",der!$L$1,IF(C16="dnit",dnit!$A$1,IF(C16="detran-pr",scorj!$B$1,IF(C16="sco/rj",scorj!$B$1)))) -> 2024-10-31 | F16: =IF(C16="derpr",VLOOKUP(D16,der!A:J,3,FALSE),IF(C16="dnit",VLOOKUP(D16,dnit!A:D,3,FALSE),IF(C16="detran-pr",VLOOKUP(D16,'Composições'!D:K,3,FALSE),IF(C16="sco/rj",VLOOKUP(D16,scorj!B:G,3,FALSE))))) -> ud | G16: =IF(C16="derpr",VLOOKUP(D16,der!A:J,9,FALSE),IF(C16="dnit",VLOOKUP(D16,dnit!A:E,5,FALSE),IF(C16="detran-pr",VLOOKUP(D16,'Composições'!D:K,8,FALSE),IF(C16="sco/rj",VLOOKUP(D16,scorj!B:G,5,FALSE))))) -> 68.52 | H16: =IF(C16="derpr",VLOOKUP(D16,der!A:J,10,FALSE),IF(C16="dnit",VLOOKUP(D16,dnit!A:E,4,FALSE),IF(C16="detran-pr",VLOOKUP(D16,'Composições'!D:K,7,FALSE),IF(C16="sco/rj",VLOOKUP(D16,scorj!B:G,4,FALSE))))) -> 392.14 | I16: =IF(C16="derpr",VLOOKUP(D16,der!A:J,7,FALSE),IF(C16="dnit",VLOOKUP(D16,dnit!A:E,4,FALSE),IF(C16="detran-pr",VLOOKUP(D16,'Composições'!D:K,6,FALSE),IF(C16="sco/rj",VLOOKUP(D16,scorj!B:G,4,FALSE))))) -> 460.66
A17: 1.11 | B17: Suporte metál.galv.fogo d=2,5" c/tampa e aletas anti-giro h=4,00m | C17: DERPR | D17: 821400 | E17: =IF(C17="derpr",der!$L$1,IF(C17="dnit",dnit!$A$1,IF(C17="detran-pr",scorj!$B$1,IF(C17="sco/rj",scorj!$B$1)))) -> 2024-10-31 | F17: =IF(C17="derpr",VLOOKUP(D17,der!A:J,3,FALSE),IF(C17="dnit",VLOOKUP(D17,dnit!A:D,3,FALSE),IF(C17="detran-pr",VLOOKUP(D17,'Composições'!D:K,3,FALSE),IF(C17="sco/rj",VLOOKUP(D17,scorj!B:G,3,FALSE))))) -> ud | G17: =IF(C17="derpr",VLOOKUP(D17,der!A:J,9,FALSE),IF(C17="dnit",VLOOKUP(D17,dnit!A:E,5,FALSE),IF(C17="detran-pr",VLOOKUP(D17,'Composições'!D:K,8,FALSE),IF(C17="sco/rj",VLOOKUP(D17,scorj!B:G,5,FALSE))))) -> 68.52 | H17: =IF(C17="derpr",VLOOKUP(D17,der!A:J,10,FALSE),IF(C17="dnit",VLOOKUP(D17,dnit!A:E,4,FALSE),IF(C17="detran-pr",VLOOKUP(D17,'Composições'!D:K,7,FALSE),IF(C17="sco/rj",VLOOKUP(D17,scorj!B:G,4,FALSE))))) -> 447.28 | I17: =IF(C17="derpr",VLOOKUP(D17,der!A:J,7,FALSE),IF(C17="dnit",VLOOKUP(D17,dnit!A:E,4,FALSE),IF(C17="detran-pr",VLOOKUP(D17,'Composições'!D:K,6,FALSE),IF(C17="sco/rj",VLOOKUP(D17,scorj!B:G,4,FALSE))))) -> 515.8
A18: 1.12 | B18: Conjunto para placa indicativa (Coluna, Braço, Montagem, Fundação) para placas até 3,00m² - Coluna Tipo I com projeção de 2,80m | C18: DETRAN-PR | D18: COMP.02 | E18: =IF(C18="derpr",der!$L$1,IF(C18="dnit",dnit!$A$1,IF(C18="detran-pr",scorj!$B$1,IF(C18="sco/rj",scorj!$B$1)))) -> 2025-04-07 | F18: =IF(C18="derpr",VLOOKUP(D18,der!A:J,3,FALSE),IF(C18="dnit",VLOOKUP(D18,dnit!A:D,3,FALSE),IF(C18="detran-pr",VLOOKUP(D18,'Composições'!D:K,3,FALSE),IF(C18="sco/rj",VLOOKUP(D18,scorj!B:G,3,FALSE))))) -> unid | G18: =IF(C18="derpr",VLOOKUP(D18,der!A:J,9,FALSE),IF(C18="dnit",VLOOKUP(D18,dnit!A:E,5,FALSE),IF(C18="detran-pr",VLOOKUP(D18,'Composições'!D:K,8,FALSE),IF(C18="sco/rj",VLOOKUP(D18,scorj!B:G,5,FALSE))))) -> 395.62 | H18: =IF(C18="derpr",VLOOKUP(D18,der!A:J,10,FALSE),IF(C18="dnit",VLOOKUP(D18,dnit!A:E,4,FALSE),IF(C18="detran-pr",VLOOKUP(D18,'Composições'!D:K,7,FALSE),IF(C18="sco/rj",VLOOKUP(D18,scorj!B:G,4,FALSE))))) -> 11138.95 | I18: =IF(C18="derpr",VLOOKUP(D18,der!A:J,7,FALSE),IF(C18="dnit",VLOOKUP(D18,dnit!A:E,4,FALSE),IF(C18="detran-pr",VLOOKUP(D18,'Composições'!D:K,6,FALSE),IF(C18="sco/rj",VLOOKUP(D18,scorj!B:G,4,FALSE))))) -> 11534.57
A19: 1.13 | B19: Conjunto para placa indicativa (Coluna, Braço, Montagem, Fundação) para placas até 3,00m² - Coluna Tipo I com projeção de 3,70m | C19: DETRAN-PR | D19: COMP.03 | E19: =IF(C19="derpr",der!$L$1,IF(C19="dnit",dnit!$A$1,IF(C19="detran-pr",scorj!$B$1,IF(C19="sco/rj",scorj!$B$1)))) -> 2025-04-07 | F19: =IF(C19="derpr",VLOOKUP(D19,der!A:J,3,FALSE),IF(C19="dnit",VLOOKUP(D19,dnit!A:D,3,FALSE),IF(C19="detran-pr",VLOOKUP(D19,'Composições'!D:K,3,FALSE),IF(C19="sco/rj",VLOOKUP(D19,scorj!B:G,3,FALSE))))) -> unid | G19: =IF(C19="derpr",VLOOKUP(D19,der!A:J,9,FALSE),IF(C19="dnit",VLOOKUP(D19,dnit!A:E,5,FALSE),IF(C19="detran-pr",VLOOKUP(D19,'Composições'!D:K,8,FALSE),IF(C19="sco/rj",VLOOKUP(D19,scorj!B:G,5,FALSE))))) -> 395.62 | H19: =IF(C19="derpr",VLOOKUP(D19,der!A:J,10,FALSE),IF(C19="dnit",VLOOKUP(D19,dnit!A:E,4,FALSE),IF(C19="detran-pr",VLOOKUP(D19,'Composições'!D:K,7,FALSE),IF(C19="sco/rj",VLOOKUP(D19,scorj!B:G,4,FALSE))))) -> 13608.95 | I19: =IF(C19="derpr",VLOOKUP(D19,der!A:J,7,FALSE),IF(C19="dnit",VLOOKUP(D19,dnit!A:E,4,FALSE),IF(C19="detran-pr",VLOOKUP(D19,'Composições'!D:K,6,FALSE),IF(C19="sco/rj",VLOOKUP(D19,scorj!B:G,4,FALSE))))) -> 14004.57
A20: 1.14 | B20: Conjunto para placa indicativa (Coluna, Braço, Montagem, Fundação) para placas até 4,50m² - Coluna Tipo II com projeção de 6,00m | C20: DETRAN-PR | D20: COMP.04 | E20: =IF(C20="derpr",der!$L$1,IF(C20="dnit",dnit!$A$1,IF(C20="detran-pr",scorj!$B$1,IF(C20="sco/rj",scorj!$B$1)))) -> 2025-04-07 | F20: =IF(C20="derpr",VLOOKUP(D20,der!A:J,3,FALSE),IF(C20="dnit",VLOOKUP(D20,dnit!A:D,3,FALSE),IF(C20="detran-pr",VLOOKUP(D20,'Composições'!D:K,3,FALSE),IF(C20="sco/rj",VLOOKUP(D20,scorj!B:G,3,FALSE))))) -> unid | G20: =IF(C20="derpr",VLOOKUP(D20,der!A:J,9,FALSE),IF(C20="dnit",VLOOKUP(D20,dnit!A:E,5,FALSE),IF(C20="detran-pr",VLOOKUP(D20,'Composições'!D:K,8,FALSE),IF(C20="sco/rj",VLOOKUP(D20,scorj!B:G,5,FALSE))))) -> 485.56 | H20: =IF(C20="derpr",VLOOKUP(D20,der!A:J,10,FALSE),IF(C20="dnit",VLOOKUP(D20,dnit!A:E,4,FALSE),IF(C20="detran-pr",VLOOKUP(D20,'Composições'!D:K,7,FALSE),IF(C20="sco/rj",VLOOKUP(D20,scorj!B:G,4,FALSE))))) -> 14743.95 | I20: =IF(C20="derpr",VLOOKUP(D20,der!A:J,7,FALSE),IF(C20="dnit",VLOOKUP(D20,dnit!A:E,4,FALSE),IF(C20="detran-pr",VLOOKUP(D20,'Composições'!D:K,6,FALSE),IF(C20="sco/rj",VLOOKUP(D20,scorj!B:G,4,FALSE))))) -> 15229.51
A21: 1.15 | B21: Retirada de poste simples de aco, diametro maior que 4".(desonerado) | C21: SCO/RJ | D21: ST 64.15.0300 (/) | E21: =IF(C21="derpr",der!$L$1,IF(C21="dnit",dnit!$A$1,IF(C21="detran-pr",scorj!$B$1,IF(C21="sco/rj",scorj!$B$1)))) -> 2025-04-07 | F21: =IF(C21="derpr",VLOOKUP(D21,der!A:J,3,FALSE),IF(C21="dnit",VLOOKUP(D21,dnit!A:D,3,FALSE),IF(C21="detran-pr",VLOOKUP(D21,'Composições'!D:K,3,FALSE),IF(C21="sco/rj",VLOOKUP(D21,scorj!B:G,3,FALSE))))) -> un | G21: =IF(C21="derpr",VLOOKUP(D21,der!A:J,9,FALSE),IF(C21="dnit",VLOOKUP(D21,dnit!A:E,5,FALSE),IF(C21="detran-pr",VLOOKUP(D21,'Composições'!D:K,8,FALSE),IF(C21="sco/rj",VLOOKUP(D21,scorj!B:G,5,FALSE))))) ->  | H21: =IF(C21="derpr",VLOOKUP(D21,der!A:J,10,FALSE),IF(C21="dnit",VLOOKUP(D21,dnit!A:E,4,FALSE),IF(C21="detran-pr",VLOOKUP(D21,'Composições'!D:K,7,FALSE),IF(C21="sco/rj",VLOOKUP(D21,scorj!B:G,4,FALSE))))) -> 409.65 | I21: =IF(C21="derpr",VLOOKUP(D21,der!A:J,7,FALSE),IF(C21="dnit",VLOOKUP(D21,dnit!A:E,4,FALSE),IF(C21="detran-pr",VLOOKUP(D21,'Composições'!D:K,6,FALSE),IF(C21="sco/rj",VLOOKUP(D21,scorj!B:G,4,FALSE))))) -> 409.65
A22: 1.16 | B22: Retirada de poste simples de aço, diâmetro de 2" (desonerado) | C22: SCO/RJ | D22: ST 64.15.0200 (A) | E22: =IF(C22="derpr",der!$L$1,IF(C22="dnit",dnit!$A$1,IF(C22="detran-pr",scorj!$B$1,IF(C22="sco/rj",scorj!$B$1)))) -> 2025-04-07 | F22: =IF(C22="derpr",VLOOKUP(D22,der!A:J,3,FALSE),IF(C22="dnit",VLOOKUP(D22,dnit!A:D,3,FALSE),IF(C22="detran-pr",VLOOKUP(D22,'Composições'!D:K,3,FALSE),IF(C22="sco/rj",VLOOKUP(D22,scorj!B:G,3,FALSE))))) -> un | G22: =IF(C22="derpr",VLOOKUP(D22,der!A:J,9,FALSE),IF(C22="dnit",VLOOKUP(D22,dnit!A:E,5,FALSE),IF(C22="detran-pr",VLOOKUP(D22,'Composições'!D:K,8,FALSE),IF(C22="sco/rj",VLOOKUP(D22,scorj!B:G,5,FALSE))))) ->  | H22: =IF(C22="derpr",VLOOKUP(D22,der!A:J,10,FALSE),IF(C22="dnit",VLOOKUP(D22,dnit!A:E,4,FALSE),IF(C22="detran-pr",VLOOKUP(D22,'Composições'!D:K,7,FALSE),IF(C22="sco/rj",VLOOKUP(D22,scorj!B:G,4,FALSE))))) -> 48.51 | I22: =IF(C22="derpr",VLOOKUP(D22,der!A:J,7,FALSE),IF(C22="dnit",VLOOKUP(D22,dnit!A:E,4,FALSE),IF(C22="detran-pr",VLOOKUP(D22,'Composições'!D:K,6,FALSE),IF(C22="sco/rj",VLOOKUP(D22,scorj!B:G,4,FALSE))))) -> 48.51
A23: 1.17 | B23: Remoção de placa de sinalização | C23: DNIT | D23: 5213364 | E23: =IF(C23="derpr",der!$L$1,IF(C23="dnit",dnit!$A$1,IF(C23="detran-pr",scorj!$B$1,IF(C23="sco/rj",scorj!$B$1)))) -> 2025-01-01 | F23: =IF(C23="derpr",VLOOKUP(D23,der!A:J,3,FALSE),IF(C23="dnit",VLOOKUP(D23,dnit!A:D,3,FALSE),IF(C23="detran-pr",VLOOKUP(D23,'Composições'!D:K,3,FALSE),IF(C23="sco/rj",VLOOKUP(D23,scorj!B:G,3,FALSE))))) -> m² | G23: =IF(C23="derpr",VLOOKUP(D23,der!A:J,9,FALSE),IF(C23="dnit",VLOOKUP(D23,dnit!A:E,5,FALSE),IF(C23="detran-pr",VLOOKUP(D23,'Composições'!D:K,8,FALSE),IF(C23="sco/rj",VLOOKUP(D23,scorj!B:G,5,FALSE))))) ->  | H23: =IF(C23="derpr",VLOOKUP(D23,der!A:J,10,FALSE),IF(C23="dnit",VLOOKUP(D23,dnit!A:E,4,FALSE),IF(C23="detran-pr",VLOOKUP(D23,'Composições'!D:K,7,FALSE),IF(C23="sco/rj",VLOOKUP(D23,scorj!B:G,4,FALSE))))) -> 22.28 | I23: =IF(C23="derpr",VLOOKUP(D23,der!A:J,7,FALSE),IF(C23="dnit",VLOOKUP(D23,dnit!A:E,4,FALSE),IF(C23="detran-pr",VLOOKUP(D23,'Composições'!D:K,6,FALSE),IF(C23="sco/rj",VLOOKUP(D23,scorj!B:G,4,FALSE))))) -> 22.28
A24: 1.18 | B24: Suporte metálico galv. fogo d=2,5" c/tampa e aletas anti-giro, h=2,00 | C24: DETRAN-PR | D24: COMP.01 | E24: =IF(C24="derpr",der!$L$1,IF(C24="dnit",dnit!$A$1,IF(C24="detran-pr",scorj!$B$1,IF(C24="sco/rj",scorj!$B$1)))) -> 2025-04-07 | F24: =IF(C24="derpr",VLOOKUP(D24,der!A:J,3,FALSE),IF(C24="dnit",VLOOKUP(D24,dnit!A:D,3,FALSE),IF(C24="detran-pr",VLOOKUP(D24,'Composições'!D:K,3,FALSE),IF(C24="sco/rj",VLOOKUP(D24,scorj!B:G,3,FALSE))))) -> unid | G24: =IF(C24="derpr",VLOOKUP(D24,der!A:J,9,FALSE),IF(C24="dnit",VLOOKUP(D24,dnit!A:E,5,FALSE),IF(C24="detran-pr",VLOOKUP(D24,'Composições'!D:K,8,FALSE),IF(C24="sco/rj",VLOOKUP(D24,scorj!B:G,5,FALSE))))) -> 44.69 | H24: =IF(C24="derpr",VLOOKUP(D24,der!A:J,10,FALSE),IF(C24="dnit",VLOOKUP(D24,dnit!A:E,4,FALSE),IF(C24="detran-pr",VLOOKUP(D24,'Composições'!D:K,7,FALSE),IF(C24="sco/rj",VLOOKUP(D24,scorj!B:G,4,FALSE))))) -> 261.86 | I24: =IF(C24="derpr",VLOOKUP(D24,der!A:J,7,FALSE),IF(C24="dnit",VLOOKUP(D24,dnit!A:E,4,FALSE),IF(C24="detran-pr",VLOOKUP(D24,'Composições'!D:K,6,FALSE),IF(C24="sco/rj",VLOOKUP(D24,scorj!B:G,4,FALSE))))) -> 306.55
A25: 1.19 | B25: Suporte metálico galv. fogo perfil "C" 250x85x25x2,70mm, h=5,00m | C25: DERPR | D25: 822030 | E25: =IF(C25="derpr",der!$L$1,IF(C25="dnit",dnit!$A$1,IF(C25="detran-pr",scorj!$B$1,IF(C25="sco/rj",scorj!$B$1)))) -> 2024-10-31 | F25: =IF(C25="derpr",VLOOKUP(D25,der!A:J,3,FALSE),IF(C25="dnit",VLOOKUP(D25,dnit!A:D,3,FALSE),IF(C25="detran-pr",VLOOKUP(D25,'Composições'!D:K,3,FALSE),IF(C25="sco/rj",VLOOKUP(D25,scorj!B:G,3,FALSE))))) -> ud | G25: =IF(C25="derpr",VLOOKUP(D25,der!A:J,9,FALSE),IF(C25="dnit",VLOOKUP(D25,dnit!A:E,5,FALSE),IF(C25="detran-pr",VLOOKUP(D25,'Composições'!D:K,8,FALSE),IF(C25="sco/rj",VLOOKUP(D25,scorj!B:G,5,FALSE))))) -> 108.15 | H25: =IF(C25="derpr",VLOOKUP(D25,der!A:J,10,FALSE),IF(C25="dnit",VLOOKUP(D25,dnit!A:E,4,FALSE),IF(C25="detran-pr",VLOOKUP(D25,'Composições'!D:K,7,FALSE),IF(C25="sco/rj",VLOOKUP(D25,scorj!B:G,4,FALSE))))) -> 1319.37 | I25: =IF(C25="derpr",VLOOKUP(D25,der!A:J,7,FALSE),IF(C25="dnit",VLOOKUP(D25,dnit!A:E,4,FALSE),IF(C25="detran-pr",VLOOKUP(D25,'Composições'!D:K,6,FALSE),IF(C25="sco/rj",VLOOKUP(D25,scorj!B:G,4,FALSE))))) -> 1427.52
A26: 1.20 | B26: Placa sinalização em chapa de aço nº18 galvanizada c/ película refletiva Tipo I A (prismática) - Utilizar apenas para placas não listadas no orçamento | C26: DERPR | D26: 820000 | E26: =IF(C26="derpr",der!$L$1,IF(C26="dnit",dnit!$A$1,IF(C26="detran-pr",scorj!$B$1,IF(C26="sco/rj",scorj!$B$1)))) -> 2024-10-31 | F26: =IF(C26="derpr",VLOOKUP(D26,der!A:J,3,FALSE),IF(C26="dnit",VLOOKUP(D26,dnit!A:D,3,FALSE),IF(C26="detran-pr",VLOOKUP(D26,'Composições'!D:K,3,FALSE),IF(C26="sco/rj",VLOOKUP(D26,scorj!B:G,3,FALSE))))) -> m2 | G26: =IF(C26="derpr",VLOOKUP(D26,der!A:J,9,FALSE),IF(C26="dnit",VLOOKUP(D26,dnit!A:E,5,FALSE),IF(C26="detran-pr",VLOOKUP(D26,'Composições'!D:K,8,FALSE),IF(C26="sco/rj",VLOOKUP(D26,scorj!B:G,5,FALSE))))) -> 184.81 | H26: =IF(C26="derpr",VLOOKUP(D26,der!A:J,10,FALSE),IF(C26="dnit",VLOOKUP(D26,dnit!A:E,4,FALSE),IF(C26="detran-pr",VLOOKUP(D26,'Composições'!D:K,7,FALSE),IF(C26="sco/rj",VLOOKUP(D26,scorj!B:G,4,FALSE))))) -> 273.47 | I26: =IF(C26="derpr",VLOOKUP(D26,der!A:J,7,FALSE),IF(C26="dnit",VLOOKUP(D26,dnit!A:E,4,FALSE),IF(C26="detran-pr",VLOOKUP(D26,'Composições'!D:K,6,FALSE),IF(C26="sco/rj",VLOOKUP(D26,scorj!B:G,4,FALSE))))) -> 458.28
A27: 2 | B27: SINALIZAÇÃO HORIZONTAL
A28: 2.1 | B28: Faixa de sinalização horizontal c/tinta resina acrílica base água | C28: DERPR | D28: 822100 | E28: =IF(C28="derpr",der!$L$1,IF(C28="dnit",dnit!$A$1,IF(C28="detran-pr",scorj!$B$1,IF(C28="sco/rj",scorj!$B$1)))) -> 2024-10-31 | F28: =IF(C28="derpr",VLOOKUP(D28,der!A:J,3,FALSE),IF(C28="dnit",VLOOKUP(D28,dnit!A:D,3,FALSE),IF(C28="detran-pr",VLOOKUP(D28,'Composições'!D:K,3,FALSE),IF(C28="sco/rj",VLOOKUP(D28,scorj!B:G,3,FALSE))))) -> m2 | G28: =VLOOKUP(D28,der!A:J,9,FALSE) -> 9.81 | H28: =VLOOKUP(D28,der!A:J,10,FALSE) -> 13.2 | I28: =VLOOKUP('PLANILHA REFERENCIA DETRAN PR'!D28,der!A:J,7,FALSE) -> 23.01
A29: 2.2 | B29: Faixa de sinalização horizontal c/tinta resina acrílica base solvente | C29: DERPR | D29: 822000 | E29: =IF(C29="derpr",der!$L$1,IF(C29="dnit",dnit!$A$1,IF(C29="detran-pr",scorj!$B$1,IF(C29="sco/rj",scorj!$B$1)))) -> 2024-10-31 | F29: =IF(C29="derpr",VLOOKUP(D29,der!A:J,3,FALSE),IF(C29="dnit",VLOOKUP(D29,dnit!A:D,3,FALSE),IF(C29="detran-pr",VLOOKUP(D29,'Composições'!D:K,3,FALSE),IF(C29="sco/rj",VLOOKUP(D29,scorj!B:G,3,FALSE))))) -> m2 | G29: =VLOOKUP(D29,der!A:J,9,FALSE) -> 9.81 | H29: =VLOOKUP(D29,der!A:J,10,FALSE) -> 21.93 | I29: =VLOOKUP('PLANILHA REFERENCIA DETRAN PR'!D29,der!A:J,7,FALSE) -> 31.74
A30: 2.3 | B30: Faixa de sinalização horizontal - termoplástico por aspersão - e=1,5mm | C30: DERPR | D30: 822350 | E30: =IF(C30="derpr",der!$L$1,IF(C30="dnit",dnit!$A$1,IF(C30="detran-pr",scorj!$B$1,IF(C30="sco/rj",scorj!$B$1)))) -> 2024-10-31 | F30: =IF(C30="derpr",VLOOKUP(D30,der!A:J,3,FALSE),IF(C30="dnit",VLOOKUP(D30,dnit!A:D,3,FALSE),IF(C30="detran-pr",VLOOKUP(D30,'Composições'!D:K,3,FALSE),IF(C30="sco/rj",VLOOKUP(D30,scorj!B:G,3,FALSE))))) -> m2 | G30: =VLOOKUP(D30,der!A:J,9,FALSE) -> 17.44 | H30: =VLOOKUP(D30,der!A:J,10,FALSE) -> 25.22 | I30: =VLOOKUP('PLANILHA REFERENCIA DETRAN PR'!D30,der!A:J,7,FALSE) -> 42.66
A31: 2.4 | B31: Pintura de setas e zebrados - termoplástico por extrusão - e=3mm | C31: DERPR | D31: 822330 | E31: =IF(C31="derpr",der!$L$1,IF(C31="dnit",dnit!$A$1,IF(C31="detran-pr",scorj!$B$1,IF(C31="sco/rj",scorj!$B$1)))) -> 2024-10-31 | F31: =IF(C31="derpr",VLOOKUP(D31,der!A:J,3,FALSE),IF(C31="dnit",VLOOKUP(D31,dnit!A:D,3,FALSE),IF(C31="detran-pr",VLOOKUP(D31,'Composições'!D:K,3,FALSE),IF(C31="sco/rj",VLOOKUP(D31,scorj!B:G,3,FALSE))))) -> m2 | G31: =VLOOKUP(D31,der!A:J,9,FALSE) -> 17.44 | H31: =VLOOKUP(D31,der!A:J,10,FALSE) -> 43.52 | I31: =VLOOKUP('PLANILHA REFERENCIA DETRAN PR'!D31,der!A:J,7,FALSE) -> 60.96
A32: 2.5 | B32: Pintura de faixa - plástico a frio bicomponente à base de resinas metacrílicas - espessura de 1,5 mm - plano | C32: DNIT | D32: 5214009 | E32: =IF(C32="derpr",der!$L$1,IF(C32="dnit",dnit!$A$1,IF(C32="detran-pr",scorj!$B$1,IF(C32="sco/rj",scorj!$B$1)))) -> 2025-01-01 | F32: =IF(C32="derpr",VLOOKUP(D32,der!A:J,3,FALSE),IF(C32="dnit",VLOOKUP(D32,dnit!A:D,3,FALSE),IF(C32="detran-pr",VLOOKUP(D32,'Composições'!D:K,3,FALSE),IF(C32="sco/rj",VLOOKUP(D32,scorj!B:G,3,FALSE))))) -> m² | G32: =I32-H32 -> 5.779 | H32: =I32*0.95 -> 109.801 | I32: =VLOOKUP(D32,dnit!A:D,4,FALSE) -> 115.58
A33: 2.6 | B33: Pintura de faixa - plástico a frio tricomponente à base de resinas metacrílicas - espessura de 0,6 mm - aspersão | C33: DNIT | D33: 5213413 | E33: =IF(C33="derpr",der!$L$1,IF(C33="dnit",dnit!$A$1,IF(C33="detran-pr",scorj!$B$1,IF(C33="sco/rj",scorj!$B$1)))) -> 2025-01-01 | F33: =IF(C33="derpr",VLOOKUP(D33,der!A:J,3,FALSE),IF(C33="dnit",VLOOKUP(D33,dnit!A:D,3,FALSE),IF(C33="detran-pr",VLOOKUP(D33,'Composições'!D:K,3,FALSE),IF(C33="sco/rj",VLOOKUP(D33,scorj!B:G,3,FALSE))))) -> m² | G33: 3.431 | H33: 65.189 | I33: =VLOOKUP(D33,dnit!A:D,4,FALSE) -> 68.62
A34: 2.7 | B34: Tacha refletiva monodirecional | C34: DERPR | D34: 870000 | E34: =IF(C34="derpr",der!$L$1,IF(C34="dnit",dnit!$A$1,IF(C34="detran-pr",scorj!$B$1,IF(C34="sco/rj",scorj!$B$1)))) -> 2024-10-31 | F34: =IF(C34="derpr",VLOOKUP(D34,der!A:J,3,FALSE),IF(C34="dnit",VLOOKUP(D34,dnit!A:D,3,FALSE),IF(C34="detran-pr",VLOOKUP(D34,'Composições'!D:K,3,FALSE),IF(C34="sco/rj",VLOOKUP(D34,scorj!B:G,3,FALSE))))) -> ud | G34: =VLOOKUP(D34,der!A:J,9,FALSE) -> 8.05 | H34: =VLOOKUP(D34,der!A:J,10,FALSE) -> 10.85 | I34: =VLOOKUP('PLANILHA REFERENCIA DETRAN PR'!D34,der!A:J,7,FALSE) -> 18.9
A35: 2.8 | B35: Tacha refletiva bidirecional | C35: DERPR | D35: 871000 | E35: =IF(C35="derpr",der!$L$1,IF(C35="dnit",dnit!$A$1,IF(C35="detran-pr",scorj!$B$1,IF(C35="sco/rj",scorj!$B$1)))) -> 2024-10-31 | F35: =IF(C35="derpr",VLOOKUP(D35,der!A:J,3,FALSE),IF(C35="dnit",VLOOKUP(D35,dnit!A:D,3,FALSE),IF(C35="detran-pr",VLOOKUP(D35,'Composições'!D:K,3,FALSE),IF(C35="sco/rj",VLOOKUP(D35,scorj!B:G,3,FALSE))))) -> ud | G35: =VLOOKUP(D35,der!A:J,9,FALSE) -> 8.05 | H35: =VLOOKUP(D35,der!A:J,10,FALSE) -> 11.23 | I35: =VLOOKUP('PLANILHA REFERENCIA DETRAN PR'!D35,der!A:J,7,FALSE) -> 19.28
A36: 2.9 | B36: Tachão refletivo monodirecional | C36: DERPR | D36: 872000 | E36: =IF(C36="derpr",der!$L$1,IF(C36="dnit",dnit!$A$1,IF(C36="detran-pr",scorj!$B$1,IF(C36="sco/rj",scorj!$B$1)))) -> 2024-10-31 | F36: =IF(C36="derpr",VLOOKUP(D36,der!A:J,3,FALSE),IF(C36="dnit",VLOOKUP(D36,dnit!A:D,3,FALSE),IF(C36="detran-pr",VLOOKUP(D36,'Composições'!D:K,3,FALSE),IF(C36="sco/rj",VLOOKUP(D36,scorj!B:G,3,FALSE))))) -> ud | G36: =VLOOKUP(D36,der!A:J,9,FALSE) -> 8.05 | H36: =VLOOKUP(D36,der!A:J,10,FALSE) -> 35.49 | I36: =VLOOKUP('PLANILHA REFERENCIA DETRAN PR'!D36,der!A:J,7,FALSE) -> 43.54
A37: 2.10 | B37: Tachão refletivo bidirecional | C37: DERPR | D37: 873000 | E37: =IF(C37="derpr",der!$L$1,IF(C37="dnit",dnit!$A$1,IF(C37="detran-pr",scorj!$B$1,IF(C37="sco/rj",scorj!$B$1)))) -> 2024-10-31 | F37: =IF(C37="derpr",VLOOKUP(D37,der!A:J,3,FALSE),IF(C37="dnit",VLOOKUP(D37,dnit!A:D,3,FALSE),IF(C37="detran-pr",VLOOKUP(D37,'Composições'!D:K,3,FALSE),IF(C37="sco/rj",VLOOKUP(D37,scorj!B:G,3,FALSE))))) -> ud | G37: =VLOOKUP(D37,der!A:J,9,FALSE) -> 8.05 | H37: =VLOOKUP(D37,der!A:J,10,FALSE) -> 35.99 | I37: =VLOOKUP('PLANILHA REFERENCIA DETRAN PR'!D37,der!A:J,7,FALSE) -> 44.04
A38: 2.11 | B38: Fresagem de pavimento asfáltico com espessura de até 5cm, em vias arteriais, inclusive remoção do material fresado até 10km e varrição | C38: SIURB-INFRA | D38: 09.04.00 | E38: 2024-07-10 | F38: M2 | G38: =0.26 -> 0.26 | H38: =17.77-G38 -> 17.51 | I38: =H38+G38 -> 17.77

Sheet der (hidden)
A1: Código | B1: Descrição do Serviço | C1: Unidade | D1: Custo Execução | E1: Custo Material | F1: Custo Sub-Serviço | G1: Custo Unitário | H1: Transporte | I1: Material | J1: Mão de obra | L1: 2024-10-31
A2: 400500 | B2: Colchão drenante de areia para fundação de aterros | C2: m3 | D2: 1.08 | E2: 88.46 | F2: 0 | G2: 89.54 | H2: A acrescer | I2: =D2+F2 -> 1.08 | J2: =E2 -> 88.46
A3: 400950 | B3: Compactação de aterros 95% PN (A) | C3: m3 | D3: 5.08 | E3: 0 | F3: 0 | G3: 5.08 | I3: 5.08 | J3: 0
A4: 401950 | B4: Compactação de aterros 95% PN (B) | C4: m3 | D4: 5.1 | E4: 0 | F4: 0 | G4: 5.1 | I4: 5.1 | J4: 0
A5: 401200 | B5: Compactação de aterros c/controle visual | C5: m3 | D5: 1.5 | E5: 0 | F5: 0 | G5: 1.5 | I5: 1.5 | J5: 0
A6: 402000 | B6: Compactação de aterros em 2a. cat. | C6: m3 | D6: 6.68 | E6: 0 | F6: 0 | G6: 6.68 | I6: 6.68 | J6: 0
A7: 403000 | B7: Compactação de aterros em 3a. cat. | C7: m3 | D7: 6.53 | E7: 0 | F7: 0 | G7: 6.53 | I7: 6.53 | J7: 0
A8: 401000 | B8: Compactação de aterros 100% PN (A) | C8: m3 | D8: 6.2 | E8: 0 | F8: 0 | G8: 6.2 | I8: 6.2 | J8: 0
A9: 401100 | B9: Compactação de aterros 100% PN (B) | C9: m3 | D9: 6.11 | E9: 0 | F9: 0 | G9: 6.11 | I9: 6.11 | J9: 0
A10: 401025 | B10: Corte/limpeza, classificação e enleiramento de árvores (volume estéreo), inclusive transporte | C10: m3 | D10: 156.22 | E10: 0 | F10: 0 | G10: 156.22 | H10: A acrescer | I10: 156.22 | J10: 0
A11: 400000 | B11: Desmatamento e limpeza diam. até 30cm | C11: m2 | D11: 1.12 | E11: 0 | F11: 0 | G11: 1.12 | I11: 1.12 | J11: 0
A12: 400300 | B12: Destocamento árvores diam. > 30cm | C12: ud | D12: 47.81 | E12: 0 | F12: 0 | G12: 47.81 | I12: 47.81 | J12: 0
A13: 410200 | B13: Esc. carga e transp. 1a. cat. 0-200m | C13: m3 | D13: 8.05 | E13: 0 | F13: 0 | G13: 8.05 | I13: 8.05 | J13: 0
A14: 410400 | B14: Esc. carga e transp. 1a. cat. 200-400m | C14: m3 | D14: 8.32 | E14: 0 | F14: 0 | G14: 8.32 | I14: 8.32 | J14: 0
A15: 410600 | B15: Esc. carga e transp. 1a. cat. 400-600m | C15: m3 | D15: 8.67 | E15: 0 | F15: 0 | G15: 8.67 | I15: 8.67 | J15: 0
A16: 410800 | B16: Esc. carga e transp. 1a. cat. 600-800m | C16: m3 | D16: 9.02 | E16: 0 | F16: 0 | G16: 9.02 | I16: 9.02 | J16: 0
A17: 411000 | B17: Esc. carga e transp. 1a. cat. 800-1000m | C17: m3 | D17: 9.42 | E17: 0 | F17: 0 | G17: 9.42 | I17: 9.42 | J17: 0
A18: 411200 | B18: Esc. carga e transp. 1a. cat. 1000-1200m | C18: m3 | D18: 9.77 | E18: 0 | F18: 0 | G18: 9.77 | I18: 9.77 | J18: 0
A19: 411400 | B19: Esc. carga e transp. 1a. cat. 1200-1400m | C19: m3 | D19: 10.88 | E19: 0 | F19: 0 | G19: 10.88 | I19: 10.88 | J19: 0
A20: 411600 | B20: Esc. carga e transp. 1a. cat. 1400-1600m | C20: m3 | D20: 11.28 | E20: 0 | F20: 0 | G20: 11.28 | I20: 11.28 | J20: 0
A21: 412000 | B21: Esc. carga e transp. 1a. cat. 1600-2000m | C21: m3 | D21: 11.94 | E21: 0 | F21: 0 | G21: 11.94 | I21: 11.94 | J21: 0
A22: 413000 | B22: Esc. carga e transp. 1a. cat. 2000-3000m | C22: m3 | D22: 13.94 | E22: 0 | F22: 0 | G22: 13.94 | I22: 13.94 | J22: 0
A23: 414000 | B23: Esc. carga e transp. 1a. cat. 3000-4000m | C23: m3 | D23: 15.79 | E23: 0 | F23: 0 | G23: 15.79 | I23: 15.79 | J23: 0
A24: 415000 | B24: Esc. carga e transp. 1a. cat. 4000-5000m | C24: m3 | D24: 18.38 | E24: 0 | F24: 0 | G24: 18.38 | I24: 18.38 | J24: 0
A25: 416010 | B25: Esc. carga e transp. 1a. cat. 5000-6000m | C25: m3 | D25: 21.1 | E25: 0 | F25: 0 | G25: 21.1 | I25: 21.1 | J25: 0
A26: 418000 | B26: Esc. carga e transp. 1a. cat. 6000-8000m | C26: m3 | D26: 24.55 | E26: 0 | F26: 0 | G26: 24.55 | I26: 24.55 | J26: 0
A27: 419000 | B27: Esc. carga e transp. 1a. cat. 8000-10000m | C27: m3 | D27: 29.79 | E27: 0 | F27: 0 | G27: 29.79 | I27: 29.79 | J27: 0
A28: 420200 | B28: Esc. carga e transp. 2a. cat. 0-200m | C28: m3 | D28: 11.22 | E28: 0 | F28: 0 | G28: 11.22 | I28: 11.22 | J28: 0
A29: 420400 | B29: Esc. carga e transp. 2a. cat. 200-400m | C29: m3 | D29: 11.51 | E29: 0 | F29: 0 | G29: 11.51 | I29: 11.51 | J29: 0
A30: 420600 | B30: Esc. carga e transp. 2a. cat. 400-600m | C30: m3 | D30: 11.94 | E30: 0 | F30: 0 | G30: 11.94 | I30: 11.94 | J30: 0
A31: 420800 | B31: Esc. carga e transp. 2a. cat. 600-800m | C31: m3 | D31: 12.38 | E31: 0 | F31: 0 | G31: 12.38 | I31: 12.38 | J31: 0
A32: 421000 | B32: Esc. carga e transp. 2a. cat. 800-1000m | C32: m3 | D32: 12.81 | E32: 0 | F32: 0 | G32: 12.81 | I32: 12.81 | J32: 0
A33: Data Base: 31/10/2024 (Sem desoneração) Valores expressos em Reais (R$) | I33: 0
A34: Grupo de serviço: TERRAPLENAGEM | I34: 0
A35: 421200 | B35: Esc. carga e transp. 2a. cat. 1000-1200m | C35: m3 | D35: 13.14 | E35: 0 | F35: 0 | G35: 13.14 | I35: 13.14 | J35: 0
A36: 421400 | B36: Esc. carga e transp. 2a. cat. 1200-1400m | C36: m3 | D36: 13.78 | E36: 0 | F36: 0 | G36: 13.78 | I36: 13.78 | J36: 0
A37: 421600 | B37: Esc. carga e transp. 2a. cat. 1400-1600m | C37: m3 | D37: 15.29 | E37: 0 | F37: 0 | G37: 15.29 | I37: 15.29 | J37: 0
A38: 422000 | B38: Esc. carga e transp. 2a. cat. 1600-2000m | C38: m3 | D38: 16.02 | E38: 0 | F38: 0 | G38: 16.02 | I38: 16.02 | J38: 0
A39: 423000 | B39: Esc. carga e transp. 2a. cat. 2000-3000m | C39: m3 | D39: 17.68 | E39: 0 | F39: 0 | G39: 17.68 | I39: 17.68 | J39: 0
A40: 424000 | B40: Esc. carga e transp. 2a. cat. 3000-4000m | C40: m3 | D40: 21.03 | E40: 0 | F40: 0 | G40: 21.03 | I40: 21.03 | J40: 0
A41: 425000 | B41: Esc. carga e transp. 2a. cat. 4000-5000m | C41: m3 | D41: 24.37 | E41: 0 | F41: 0 | G41: 24.37 | I41: 24.37 | J41: 0
A42: 426010 | B42: Esc. carga e transp. 2a. cat. 5000-6000m | C42: m3 | D42: 27.72 | E42: 0 | F42: 0 | G42: 27.72 | I42: 27.72 | J42: 0
A43: 428000 | B43: Esc. carga e transp. 2a. cat. 6000-8000m | C43: m3 | D43: 32.23 | E43: 0 | F43: 0 | G43: 32.23 | I43: 32.23 | J43: 0
A44: 429000 | B44: Esc. carga e transp. 2a. cat. 8000-10000m | C44: m3 | D44: 37.97 | E44: 0 | F44: 0 | G44: 37.97 | I44: 37.97 | J44: 0
A45: 430210 | B45: Esc. carga e transp. 3a. cat. 0-200m | C45: m3 | D45: 10.48 | E45: 0 | F45: 25.84 | G45: 36.32 | I45: 36.32 | J45: 0
A46: 430410 | B46: Esc. carga e transp. 3a. cat. 200-400m | C46: m3 | D46: 12.13 | E46: 0 | F46: 25.84 | G46: 37.97 | I46: 37.97 | J46: 0
A47: 430610 | B47: Esc. carga e transp. 3a. cat. 400-600m | C47: m3 | D47: 13.56 | E47: 0 | F47: 25.84 | G47: 39.4 | I47: 39.4 | J47: 0
A48: 430810 | B48: Esc. carga e transp. 3a. cat. 600-800m | C48: m3 | D48: 13.72 | E48: 0 | F48: 25.84 | G48: 39.56 | I48: 39.56 | J48: 0
A49: 431010 | B49: Esc. carga e transp. 3a. cat. 800-1000m | C49: m3 | D49: 14.52 | E49: 0 | F49: 25.84 | G49: 40.36 | I49: 40.36 | J49: 0
A50: 431210 | B50: Esc. carga e transp. 3a. cat. 1000-1200m | C50: m3 | D50: 15.31 | E50: 0 | F50: 25.84 | G50: 41.15 | I50: 41.15 | J50: 0
A51: 431410 | B51: Esc. carga e transp. 3a. cat. 1200-1400m | C51: m3 | D51: 15.55 | E51: 0 | F51: 25.84 | G51: 41.39 | I51: 41.39 | J51: 0
A52: 431610 | B52: Esc. carga e transp. 3a. cat. 1400-1600m | C52: m3 | D52: 17.38 | E52: 0 | F52: 25.84 | G52: 43.22 | I52: 43.22 | J52: 0
A53: 432010 | B53: Esc. carga e transp. 3a. cat. 1600-2000m | C53: m3 | D53: 18.45 | E53: 0 | F53: 25.84 | G53: 44.29 | I53: 44.29 | J53: 0
A54: 433010 | B54: Esc. carga e transp. 3a. cat. 2000-3000m | C54: m3 | D54: 22.03 | E54: 0 | F54: 25.84 | G54: 47.87 | I54: 47.87 | J54: 0
A55: 434010 | B55: Esc. carga e transp. 3a. cat. 3000-4000m | C55: m3 | D55: 26.14 | E55: 0 | F55: 25.84 | G55: 51.98 | I55: 51.98 | J55: 0
A56: 435010 | B56: Esc. carga e transp. 3a. cat. 4000-5000m | C56: m3 | D56: 33.31 | E56: 0 | F56: 25.84 | G56: 59.15 | I56: 59.15 | J56: 0
A57: 436010 | B57: Esc. carga e transp. 3a. cat. 5000-6000m | C57: m3 | D57: 36.17 | E57: 0 | F57: 25.84 | G57: 62.01 | I57: 62.01 | J57: 0
A58: 438010 | B58: Esc. carga e transp. 3a. cat. 6000-8000m | C58: m3 | D58: 43.77 | E58: 0 | F58: 25.84 | G58: 69.61 | I58: 69.61 | J58: 0
A59: 439010 | B59: Esc. carga e transp. 3a. cat. 8000-10000m | C59: m3 | D59: 52.61 | E59: 0 | F59: 25.84 | G59: 78.45 | I59: 78.45 | J59: 0
A60: 404300 | B60: Espalhamento e conformação de bota-fora | C60: m3 | D60: 0.8 | E60: 0 | F60: 0 | G60: 0.8 | I60: 0.8 | J60: 0
A61: 430010 | B61: Extração de material 3a. cat. | C61: m3 | D61: 16.49 | E61: 9.35 | F61: 0 | G61: 25.84 | I61: 16.49 | J61: 9.35
A62: 401160 | B62: Regularização, conformação e compactação de leito | C62: m2 | D62: 0.25 | E62: 0 | F62: 0 | G62: 0.25 | I62: 0.25 | J62: 0
A63: 404000 | B63: Remoção de solos moles | C63: m3 | D63: 7.75 | E63: 0 | F63: 0 | G63: 7.75 | H63: A acrescer | I63: 7.75 | J63: 0
A64: 450000 | B64: Revestimento primário | C64: m3 | D64: 6.56 | E64: 0 | F64: 5.35 | G64: 11.91 | H64: A acrescer | I64: 11.91 | J64: 0
A65: 416000 | B65: Valetões laterais (fundo) 1a. cat. 200 - 600m (A) | C65: m3 | D65: 9.07 | E65: 0 | F65: 0 | G65: 9.07 | I65: 9.07 | J65: 0
A66: 416100 | B66: Valetões laterais (fundo) 1a. cat. 200 - 600m (B) | C66: m3 | D66: 10.52 | E66: 0 | F66: 0 | G66: 10.52 | I66: 10.52 | J66: 0
A67: Data Base: 31/10/2024 (Sem desoneração) Valores expressos em Reais (R$) | I67: 0
A68: Grupo de serviço: TERRAPLENAGEM | I68: 0
A69: 416200 | B69: Valetões laterais (fundo) 1a. cat. 600 -1000m (A) | C69: m3 | D69: 10.04 | E69: 0 | F69: 0 | G69: 10.04 | I69: 10.04 | J69: 0
A70: 416300 | B70: Valetões laterais (fundo) 1a. cat. 600 -1000m (B) | C70: m3 | D70: 11.47 | E70: 0 | F70: 0 | G70: 11.47 | I70: 11.47 | J70: 0
A71: 426000 | B71: Valetões laterais (fundo) 2a. cat. 200 - 600m (A) | C71: m3 | D71: 12.19 | E71: 0 | F71: 0 | G71: 12.19 | I71: 12.19 | J71: 0
A72: 426100 | B72: Valetões laterais (fundo) 2a. cat. 200 - 600m (B) | C72: m3 | D72: 14.08 | E72: 0 | F72: 0 | G72: 14.08 | I72: 14.08 | J72: 0
A73: 426200 | B73: Valetões laterais (fundo) 2a. cat. 600 -1000m (A) | C73: m3 | D73: 13.24 | E73: 0 | F73: 0 | G73: 13.24 | I73: 13.24 | J73: 0
A74: 426300 | B74: Valetões laterais (fundo) 2a. cat. 600 -1000m (B) | C74: m3 | D74: 15.25 | E74: 0 | F74: 0 | G74: 15.25 | I74: 15.25 | J74: 0
A75: Data Base: 31/10/2024 (Sem desoneração) Valores expressos em Reais (R$) | I75: 0
A76: Grupo de serviço: PAVIMENTAÇÃO | I76: 0
A77: 530200 | B77: Bica corrida | C77: m3 | D77: 11.24 | E77: 87.28 | F77: 0 | G77: 98.52 | H77: A acrescer | I77: 11.24 | J77: 87.28
A78: 570210 | B78: Binder exclusive fornecimento e transporte do CAP (acima de 10.000 t) | C78: t | D78: 68.45 | E78: 97.91 | F78: 0 | G78: 166.36 | H78: A acrescer | I78: 68.45 | J78: 97.91
A79: 570200 | B79: Binder exclusive fornecimento e transporte do CAP (até 10.000 t) | C79: t | D79: 84.12 | E79: 101.54 | F79: 0 | G79: 185.66 | H79: A acrescer | I79: 84.12 | J79: 101.54
A80: 531200 | B80: Brita graduada - na usina | C80: m3 | D80: 8.15 | E80: 67.14 | F80: 0 | G80: 75.29 | H80: A acrescer | I80: 8.15 | J80: 67.14
A81: 531215 | B81: Brita graduada c/ cimento - na usina | C81: m3 | D81: 7.18 | E81: 101.04 | F81: 0 | G81: 108.22 | H81: A acrescer | I81: 7.18 | J81: 101.04
A82: 531120 | B82: Brita graduada tratada c/cimento (Cp=4%) 100% PI | C82: m3 | D82: 12.94 | E82: 0 | F82: 173.15 | G82: 186.09 | H82: A acrescer | I82: 186.09 | J82: 0
A83: 531130 | B83: Brita graduada tratada c/cimento (Cp=4%) 100% PM | C83: m3 | D83: 13.88 | E83: 0 | F83: 180.29 | G83: 194.17 | H83: A acrescer | I83: 194.17 | J83: 0
A84: 531000 | B84: Brita graduada 100% PI | C84: m3 | D84: 12.58 | E84: 0 | F84: 120.46 | G84: 133.04 | H84: A acrescer | I84: 133.04 | J84: 0
A85: 531100 | B85: Brita graduada 100% PM | C85: m3 | D85: 13.49 | E85: 0 | F85: 125.43 | G85: 138.92 | H85: A acrescer | I85: 138.92 | J85: 0
A86: 532100 | B86: Camada de bloqueio c/ pedra o < 3/4" | C86: m3 | D86: 6.41 | E86: 87.28 | F86: 0 | G86: 93.69 | H86: A acrescer | I86: 6.41 | J86: 87.28
A87: 563100 | B87: Capa selante exclusive fornecimento e transporte da emulsão | C87: m2 | D87: 0.9 | E87: 0.31 | F87: 0 | G87: 1.21 | H87: A acrescer | I87: 0.9 | J87: 0.31
A88: 535150 | B88: Carga de cordão pedra p/ pav. poliédrico | C88: m | D88: 0.87 | E88: 0 | F88: 0 | G88: 0.87 | I88: 0.87 | J88: 0
A89: 535100 | B89: Carga de pedra p/ pav. poliédrico | C89: m2 | D89: 1.75 | E89: 0 | F89: 0 | G89: 1.75 | I89: 1.75 | J89: 0
A90: 570100 | B90: C.B.U.Q. - na usina excl. fornec. e transporte do CAP (até 10.000 t) | C90: t | D90: 51.22 | E90: 108.89 | F90: 0 | G90: 160.11 | H90: A acrescer | I90: 51.22 | J90: 108.89
A91: 570160 | B91: C.B.U.Q. - na usina exclusive fornecimento e transporte do CAP (acima de 10.000 t) | C91: t | D91: 41.4 | E91: 101.63 | F91: 0 | G91: 143.03 | H91: A acrescer | I91: 41.4 | J91: 101.63
A92: 570350 | B92: C.B.U.Q. c/asf.modificado por borracha exclusive fornecimento e transporte asfalto | C92: t | D92: 73.77 | E92: 126.9 | F92: 0 | G92: 200.67 | H92: A acrescer | I92: 73.77 | J92: 126.9
A93: 570360 | B93: C.B.U.Q. c/asf.modificado por polímero exclusive fornecimento e transporte do asfalto | C93: t | D93: 69.2 | E93: 119.69 | F93: 0 | G93: 188.89 | H93: A acrescer | I93: 69.2 | J93: 119.69
A94: 570000 | B94: C.B.U.Q. exclusive fornec. e transporte do CAP (até 10.000 t) | C94: t | D94: 33.31 | E94: 0 | F94: 160.11 | G94: 193.42 | H94: A acrescer | I94: 193.42 | J94: 0
A95: 570400 | B95: C.B.U.Q. exclusive fornecimento e transporte do CAP (acima de 10.000 t) | C95: t | D95: 31.68 | E95: 0 | F95: 143.03 | G95: 174.71 | H95: A acrescer | I95: 174.71 | J95: 0
A96: 532500 | B96: Colchão de areia para paralelepípedo | C96: m3 | D96: 14.76 | E96: 88.46 | F96: 0 | G96: 103.22 | H96: A acrescer | I96: 14.76 | J96: 88.46
A97: 532600 | B97: Colchão de argila p/ pav. poliédrico | C97: m2 | D97: 1.21 | E97: 0 | F97: 0.54 | G97: 1.75 | H97: A acrescer | I97: 1.75 | J97: 0
A98: 532700 | B98: Compactação de pavimento poliédrico | C98: m2 | D98: 0.62 | E98: 0 | F98: 0 | G98: 0.62 | I98: 0.62 | J98: 0
A99: 575100 | B99: Contenção lateral c/ solo local p/ pav. poliédrico | C99: m2 | D99: 1.5 | E99: 0 | F99: 0 | G99: 1.5 | I99: 1.5 | J99: 0
A100: 575000 | B100: Contenção lateral com solo local | C100: m3 | D100: 29.73 | E100: 0 | F100: 4.74 | G100: 34.47 | I100: 34.47 | J100: 0
A101: 521500 | B101: Corte e preparo cordão pedra p/ pav. poliédrico | C101: m | D101: 3.27 | E101: 0 | F101: 0 | G101: 3.27 | I101: 3.27 | J101: 0
A102: 521400 | B102: Corte e preparo de pedra p/ pav. poliédrico | C102: m2 | D102: 10.9 | E102: 0 | F102: 0 | G102: 10.9 | I102: 10.9 | J102: 0
A103: 510300 | B103: Decapagem pedreira e limpeza periódica p/ pav. poliédrico | C103: m2 | D103: 2.57 | E103: 0 | F103: 0.23 | G103: 2.8 | I103: 2.8 | J103: 0
A104: 521550 | B104: Desmonte manual de pedra p/ pav. poliédrico | C104: m2 | D104: 1.18 | E104: 0 | F104: 0 | G104: 1.18 | I104: 1.18 | J104: 0
A105: 532650 | B105: Enchimento c/ argila p/ pav. poliédrico | C105: m2 | D105: 0.73 | E105: 0 | F105: 0.1 | G105: 0.83 | H105: A acrescer | I105: 0.83 | J105: 0
A106: Data Base: 31/10/2024 (Sem desoneração) Valores expressos em Reais (R$) | I106: 0
A107: Grupo de serviço: PAVIMENTAÇÃO | I107: 0
A108: 501000 | B108: Escarificação e remoção revestimento primário | C108: m3 | D108: 5.82 | E108: 0 | F108: 0 | G108: 5.82 | H108: A acrescer | I108: 5.82 | J108: 0
A109: 500000 | B109: Escarificação, regularização compac. subleito | C109: m2 | D109: 4.02 | E109: 0 | F109: 0 | G109: 4.02 | I109: 4.02 | J109: 0
A110: 520100 | B110: Escavação e carga mat. jazida 1a. cat. | C110: m3 | D110: 3.65 | E110: 0 | F110: 0 | G110: 3.65 | I110: 3.65 | J110: 0
A111: 520200 | B111: Escavação e carga mat. jazida 2a. cat. | C111: m3 | D111: 4.46 | E111: 0 | F111: 0 | G111: 4.46 | I111: 4.46 | J111: 0
A112: 521300 | B112: Extração, carga e transp. rocha jazida p/ britagem | C112: m3 | D112: 28.05 | E112: 11.37 | F112: 2.37 | G112: 41.79 | I112: 30.42 | J112: 11.37
A113: 535200 | B113: Extração, carga, transp. assent. cordão lat. pedra p/ pav. poliédrico | C113: m | D113: 5.68 | E113: 0 | F113: 4.14 | G113: 9.82 | H113: A acrescer | I113: 9.82 | J113: 0
A114: 521450 | B114: Extração, carga, transp. preparo e assentamento do poliedro | C114: m2 | D114: 6.27 | E114: 0 | F114: 13.83 | G114: 20.1 | H114: A acrescer | I114: 20.1 | J114: 0
A115: 560100 | B115: Imprimação impermeabilizante exclusive fornecimento e transporte da emulsão | C115: m2 | D115: 0.49 | E115: 0 | F115: 0 | G115: 0.49 | I115: 0.49 | J115: 0
A116: 560400 | B116: Imprimação impermeabilizante exclusive fornecimento e transporte do CM | C116: m2 | D116: 0.49 | E116: 0 | F116: 0 | G116: 0.49 | I116: 0.49 | J116: 0
A117: 510100 | B117: Limpeza de jazida 1a. cat. | C117: m3 | D117: 8.24 | E117: 0 | F117: 0 | G117: 8.24 | I117: 8.24 | J117: 0
A118: 510200 | B118: Limpeza de jazida 2a. cat. | C118: m3 | D118: 11.61 | E118: 0 | F118: 0 | G118: 11.61 | I118: 11.61 | J118: 0
A119: 515580 | B119: Limpeza de pavimento com jato de água | C119: m2 | D119: 2.39 | E119: 0 | F119: 0 | G119: 2.39 | I119: 2.39 | J119: 0
A120: 564000 | B120: Macadame betuminoso exclusive fornecimento e transporte da emulsão | C120: m3 | D120: 29.44 | E120: 91.31 | F120: 0 | G120: 120.75 | H120: A acrescer | I120: 29.44 | J120: 91.31
A121: 564300 | B121: Macadame betuminoso exclusive fornecimento e transporte do CAP | C121: m3 | D121: 35.52 | E121: 92.65 | F121: 0 | G121: 128.17 | H121: A acrescer | I121: 35.52 | J121: 92.65
A122: 532000 | B122: Macadame hidráulico | C122: m3 | D122: 24.25 | E122: 96.91 | F122: 0 | G122: 121.16 | H122: A acrescer | I122: 24.25 | J122: 96.91
A123: 531350 | B123: Macadame seco britado preenchido c/bica corrida | C123: m3 | D123: 19.33 | E123: 85.81 | F123: 0 | G123: 105.14 | H123: A acrescer | I123: 19.33 | J123: 85.81
A124: 531300 | B124: Macadame seco britado preenchido c/brita graduada | C124: m3 | D124: 19.33 | E124: 58.96 | F124: 30.11 | G124: 108.4 | H124: A acrescer | I124: 49.44 | J124: 58.96
A125: 531500 | B125: Macadame seco britado preenchido c/pó de pedra | C125: m3 | D125: 19.33 | E125: 86.36 | F125: 0 | G125: 105.69 | H125: A acrescer | I125: 19.33 | J125: 86.36
A126: 535000 | B126: Paralelepípedo(revestimento) | C126: m2 | D126: 37.25 | E126: 66.3 | F126: 0 | G126: 103.55 | H126: A acrescer | I126: 37.25 | J126: 66.3
A127: 534906 | B127: Pavimento c/ bloco intertravado concreto (Paver-cor natural) e=6cm, incl. colchão areia | C127: m2 | D127: 22.45 | E127: 52.19 | F127: 0 | G127: 74.64 | H127: A acrescer | I127: 22.45 | J127: 52.19
A128: 534916 | B128: Pavimento c/ bloco intertravado concreto (Paver-cor natural) e=6cm, incl. colchão pó de pedra | C128: m2 | D128: 22.45 | E128: 51.77 | F128: 0 | G128: 74.22 | H128: A acrescer | I128: 22.45 | J128: 51.77
A129: 534908 | B129: Pavimento c/ bloco intertravado concreto (Paver-cor natural) e=8cm, incl. colchão areia | C129: m2 | D129: 22.45 | E129: 64.84 | F129: 0 | G129: 87.29 | H129: A acrescer | I129: 22.45 | J129: 64.84
A130: 534918 | B130: Pavimento c/ bloco intertravado concreto (Paver-cor natural) e=8cm, incl. colchão pó de pedra | C130: m2 | D130: 22.45 | E130: 64.42 | F130: 0 | G130: 86.87 | H130: A acrescer | I130: 22.45 | J130: 64.42
A131: 530000 | B131: Pedra britada (produzida) | C131: m3 | D131: 23.78 | E131: 0 | F131: 21.73 | G131: 45.51 | I131: 45.51 | J131: 0
A132: 530060 | B132: Pedra britada 4" (produzida) | C132: m3 | D132: 22.28 | E132: 0 | F132: 20.05 | G132: 42.33 | I132: 42.33 | J132: 0
A133: 561100 | B133: Pintura de ligação exclusive fornecimento e transporte da emulsão | C133: m2 | D133: 0.34 | E133: 0 | F133: 0 | G133: 0.34 | I133: 0.34 | J133: 0
A134: Data Base: 31/10/2024 (Sem desoneração) Valores expressos em Reais (R$) | I134: 0
A135: Grupo de serviço: PAVIMENTAÇÃO | I135: 0
A136: 561130 | B136: Pintura de ligação exclusive fornecimento e transporte de emulsão c/ polímero | C136: m2 | D136: 0.35 | E136: 0 | F136: 0 | G136: 0.35 | I136: 0.35 | J136: 0
A137: 516300 | B137: Preenchimento rebaixo c/ aprov. corte 3a. cat. | C137: m3 | D137: 14.38 | E137: 0 | F137: 0 | G137: 14.38 | H137: A acrescer | I137: 14.38 | J137: 0
A138: 516000 | B138: Preenchimento rebaixo c/ brita | C138: m3 | D138: 4.8 | E138: 87.28 | F138: 0 | G138: 92.08 | H138: A acrescer | I138: 4.8 | J138: 87.28
A139: 516100 | B139: Preenchimento rebaixo c/ rachão | C139: m3 | D139: 10.83 | E139: 85.17 | F139: 0 | G139: 96 | H139: A acrescer | I139: 10.83 | J139: 85.17
A140: 516200 | B140: Preenchimento rebaixo c/ rachão s/ britagem | C140: m3 | D140: 10.83 | E140: 78 | F140: 0 | G140: 88.83 | H140: A acrescer | I140: 10.83 | J140: 78
A141: 534600 | B141: Pré-mist. a frio p/ reforço - na usina excl. fornec. e transporte da emulsão | C141: m3 | D141: 26.91 | E141: 67.14 | F141: 0 | G141: 94.05 | H141: A acrescer | I141: 26.91 | J141: 67.14
A142: 534000 | B142: Pré-mist. a frio p/ reforço exclusive fornec. e transporte da emulsão | C142: m3 | D142: 48.56 | E142: 94.86 | F142: 0 | G142: 143.42 | H142: A acrescer | I142: 48.56 | J142: 94.86
A143: 534650 | B143: Pré-mist. a frio p/ revest. - na usina excl. fornec. e transporte da emulsão | C143: m3 | D143: 26.91 | E143: 67.14 | F143: 0 | G143: 94.05 | H143: A acrescer | I143: 26.91 | J143: 67.14
A144: 534300 | B144: Pré-mist. a frio p/ revestimento exclusive fornec. e transporte da emulsão | C144: m3 | D144: 48.33 | E144: 93.52 | F144: 0 | G144: 141.85 | H144: A acrescer | I144: 48.33 | J144: 93.52
A145: 570310 | B145: Pré-misturado a quente excl. fornec. e transporte do CAP (acima de 10.000 t) | C145: t | D145: 68.49 | E145: 94.48 | F145: 0 | G145: 162.97 | H145: A acrescer | I145: 68.49 | J145: 94.48
A146: 570300 | B146: Pré-misturado a quente excl. fornec. e transporte do CAP (até 10.000 t) | C146: t | D146: 84.16 | E146: 98.11 | F146: 0 | G146: 182.27 | H146: A acrescer | I146: 84.16 | J146: 98.11
A147: 530160 | B147: Rachão sem britagem (produzido) | C147: m3 | D147: 0 | E147: 0 | F147: 41.79 | G147: 41.79 | I147: 41.79 | J147: 0
A148: 511000 | B148: Regularização compac.subleito S.A.F. 100% PI | C148: m2 | D148: 4.54 | E148: 0 | F148: 0 | G148: 4.54 | I148: 4.54 | J148: 0
A149: 511100 | B149: Regularização compac.subleito 100% PN (A) | C149: m2 | D149: 3.98 | E149: 0 | F149: 0 | G149: 3.98 | I149: 3.98 | J149: 0
A150: 511200 | B150: Regularização compac.subleito 100% PN (B) | C150: m2 | D150: 4.36 | E150: 0 | F150: 0 | G150: 4.36 | I150: 4.36 | J150: 0
A151: 511300 | B151: Regularização do subleito sem compactação | C151: m2 | D151: 0.28 | E151: 0 | F151: 0 | G151: 0.28 | I151: 0.28 | J151: 0
A152: 550000 | B152: Solo - brita (40/60) mistura na usina 100% PI | C152: m3 | D152: 24.06 | E152: 59.08 | F152: 2.14 | G152: 85.28 | H152: A acrescer | I152: 26.2 | J152: 59.08
A153: 550500 | B153: Solo - brita (50/50) mistura na usina 100% PI | C153: m3 | D153: 24.06 | E153: 49.21 | F153: 2.67 | G153: 75.94 | H153: A acrescer | I153: 26.73 | J153: 49.21
A154: 541000 | B154: Solo arenoso fino (base) 100% PI | C154: m3 | D154: 20.81 | E154: 0 | F154: 4.92 | G154: 25.73 | H154: A acrescer | I154: 25.73 | J154: 0
A155: 541100 | B155: Solo arenoso fino (base) 100% PM | C155: m3 | D155: 24.84 | E155: 0 | F155: 5 | G155: 29.84 | H155: A acrescer | I155: 29.84 | J155: 0
A156: 541300 | B156: Solo arenoso fino (local) p/ base 100% PI | C156: m3 | D156: 20.95 | E156: 0 | F156: 0 | G156: 20.95 | I156: 20.95 | J156: 0
A157: 541200 | B157: Solo arenoso fino (local) p/ base 100% PM | C157: m3 | D157: 25.01 | E157: 0 | F157: 0 | G157: 25.01 | I157: 25.01 | J157: 0
A158: 542000 | B158: Solo cimento mist. pista (2%) 100% PI | C158: m3 | D158: 27.88 | E158: 20.9 | F158: 4.53 | G158: 53.31 | H158: A acrescer | I158: 32.41 | J158: 20.9
A159: 543000 | B159: Solo cimento mist. pista (3%) 100% PI | C159: m3 | D159: 30.79 | E159: 31.08 | F159: 4.48 | G159: 66.35 | H159: A acrescer | I159: 35.27 | J159: 31.08
A160: 544200 | B160: Solo cimento mist. pista (4%) 100% PI | C160: m3 | D160: 33.76 | E160: 41.25 | F160: 4.44 | G160: 79.45 | H160: A acrescer | I160: 38.2 | J160: 41.25
A161: 544000 | B161: Solo cimento mist. pista (4%) 100% PN | C161: m3 | D161: 27.01 | E161: 40.12 | F161: 4.32 | G161: 71.45 | H161: A acrescer | I161: 31.33 | J161: 40.12
A162: 545200 | B162: Solo cimento mist. pista (5%) 100% PI | C162: m3 | D162: 36.6 | E162: 51.42 | F162: 4.4 | G162: 92.42 | H162: A acrescer | I162: 41 | J162: 51.42
A163: 545000 | B163: Solo cimento mist. pista (5%) 100% PN | C163: m3 | D163: 29.26 | E163: 49.72 | F163: 4.28 | G163: 83.26 | H163: A acrescer | I163: 33.54 | J163: 49.72
A164: 546000 | B164: Solo cimento mist. pista (6%) 100% PN | C164: m3 | D164: 31.5 | E164: 59.33 | F164: 4.24 | G164: 95.07 | H164: A acrescer | I164: 35.74 | J164: 59.33
A165: 547000 | B165: Solo cimento mist. pista (7%) 100% PN | C165: m3 | D165: 35.24 | E165: 68.37 | F165: 4.2 | G165: 107.81 | H165: A acrescer | I165: 39.44 | J165: 68.37
A166: Data Base: 31/10/2024 (Sem desoneração) Valores expressos em Reais (R$) | I166: 0
A167: Grupo de serviço: PAVIMENTAÇÃO | I167: 0
A168: 542100 | B168: Solo cimento mist. usina (2%) 100% PI | C168: m3 | D168: 29.28 | E168: 23.24 | F168: 4.53 | G168: 57.05 | H168: A acrescer | I168: 33.81 | J168: 23.24
A169: 543100 | B169: Solo cimento mist. usina (3%) 100% PI | C169: m3 | D169: 29.28 | E169: 34.55 | F169: 4.48 | G169: 68.31 | H169: A acrescer | I169: 33.76 | J169: 34.55
A170: 544300 | B170: Solo cimento mist. usina (4%) 100% PI | C170: m3 | D170: 29.28 | E170: 45.85 | F170: 4.44 | G170: 79.57 | H170: A acrescer | I170: 33.72 | J170: 45.85
A171: 544100 | B171: Solo cimento mist. usina (4%) 100% PN | C171: m3 | D171: 23 | E171: 44.6 | F171: 4.32 | G171: 71.92 | H171: A acrescer | I171: 27.32 | J171: 44.6
A172: 545300 | B172: Solo cimento mist. usina (5%) 100% PI | C172: m3 | D172: 29.28 | E172: 57.16 | F172: 4.4 | G172: 90.84 | H172: A acrescer | I172: 33.68 | J172: 57.16
A173: 545100 | B173: Solo cimento mist. usina (5%) 100% PN | C173: m3 | D173: 23 | E173: 55.28 | F173: 4.28 | G173: 82.56 | H173: A acrescer | I173: 27.28 | J173: 55.28
A174: 546100 | B174: Solo cimento mist. usina (6%) 100% PN | C174: m3 | D174: 23 | E174: 65.95 | F174: 4.24 | G174: 93.19 | H174: A acrescer | I174: 27.24 | J174: 65.95
A175: 547100 | B175: Solo cimento mist. usina (7%) 100% PN | C175: m3 | D175: 23 | E175: 76.01 | F175: 4.2 | G175: 103.21 | H175: A acrescer | I175: 27.2 | J175: 76.01
A176: 533000 | B176: Solo estabilizado s/ mistura 100% PI (1a. cat.) | C176: m3 | D176: 20.81 | E176: 0 | F176: 4.92 | G176: 25.73 | H176: A acrescer | I176: 25.73 | J176: 0
A177: 533100 | B177: Solo estabilizado s/ mistura 100% PI (2a. cat.) | C177: m3 | D177: 20.81 | E177: 0 | F177: 6.02 | G177: 26.83 | H177: A acrescer | I177: 26.83 | J177: 0
A178: 533200 | B178: Solo estabilizado s/ mistura 100% PM (1a. cat.) | C178: m3 | D178: 23.8 | E178: 0 | F178: 5.03 | G178: 28.83 | H178: A acrescer | I178: 28.83 | J178: 0
A179: 533300 | B179: Solo estabilizado s/ mistura 100% PM (2a. cat.) | C179: m3 | D179: 23.8 | E179: 0 | F179: 6.15 | G179: 29.95 | H179: A acrescer | I179: 29.95 | J179: 0
A180: 533500 | B180: Solo estabilizado s/ mistura 100% PN (1a. cat.) | C180: m3 | D180: 17.79 | E180: 0 | F180: 4.92 | G180: 22.71 | H180: A acrescer | I180: 22.71 | J180: 0
A181: 533600 | B181: Solo estabilizado s/ mistura 100% PN (2a. cat.) | C181: m3 | D181: 17.79 | E181: 0 | F181: 6.02 | G181: 23.81 | H181: A acrescer | I181: 23.81 | J181: 0
A182: 581030 | B182: Transporte de asfalto diluido CM-30 (trecho) | C182: t.km | D182: 0.85 | E182: 0 | F182: 0 | G182: 0.85 | I182: 0.85 | J182: 0
A183: 581054 | B183: Transporte de asfalto modificado por borracha (usina) | C183: t.km | D183: 0.94 | E183: 0 | F183: 0 | G183: 0.94 | I183: 0.94 | J183: 0
A184: 581052 | B184: Transporte de cimento asfáltico CAP-50/70 c/polímero (trecho) | C184: t.km | D184: 0.94 | E184: 0 | F184: 0 | G184: 0.94 | I184: 0.94 | J184: 0
A185: 581053 | B185: Transporte de cimento asfáltico CAP-50/70 c/polímero (usina) | C185: t.km | D185: 0.94 | E185: 0 | F185: 0 | G185: 0.94 | I185: 0.94 | J185: 0
A186: 581051 | B186: Transporte de cimento asfáltico CAP-50/70 (trecho) | C186: t.km | D186: 0.94 | E186: 0 | F186: 0 | G186: 0.94 | I186: 0.94 | J186: 0
A187: 581050 | B187: Transporte de cimento asfáltico CAP-50/70 (usina) | C187: t.km | D187: 0.94 | E187: 0 | F187: 0 | G187: 0.94 | I187: 0.94 | J187: 0
A188: 581020 | B188: Transporte de emulsão com polímero (trecho) | C188: t.km | D188: 0.85 | E188: 0 | F188: 0 | G188: 0.85 | I188: 0.85 | J188: 0
A189: 581011 | B189: Transporte de emulsão (trecho) | C189: t.km | D189: 0.85 | E189: 0 | F189: 0 | G189: 0.85 | I189: 0.85 | J189: 0
A190: 581010 | B190: Transporte de emulsão (usina) | C190: t.km | D190: 0.85 | E190: 0 | F190: 0 | G190: 0.85 | I190: 0.85 | J190: 0
A191: 583100 | B191: TSD exclusive fornecimento e transporte da emulsão | C191: m2 | D191: 4.77 | E191: 1.67 | F191: 0 | G191: 6.44 | H191: A acrescer | I191: 4.77 | J191: 1.67
A192: 587000 | B192: TSS exclusive fornecimento e transporte da emulsão | C192: m2 | D192: 3.58 | E192: 0.67 | F192: 0 | G192: 4.25 | H192: A acrescer | I192: 3.58 | J192: 0.67
A193: 584200 | B193: TST exclusive fornecimento e transporte da emulsão | C193: m2 | D193: 5.21 | E193: 2.14 | F193: 0 | G193: 7.35 | H193: A acrescer | I193: 5.21 | J193: 2.14
A194: Data Base: 31/10/2024 (Sem desoneração) Valores expressos em Reais (R$) | I194: 0
A195: Grupo de serviço: DRENAGEM E OBRAS ARTE CORRENTES | I195: 0
A196: 602600 | B196: Aço CA-25 fornec. dobr. colocação | C196: kg | D196: 7.54 | E196: 7.75 | F196: 0 | G196: 15.29 | I196: 7.54 | J196: 7.75
A197: 603000 | B197: Aço CA-50 fornec. dobr. colocação | C197: kg | D197: 7.54 | E197: 7.54 | F197: 0 | G197: 15.08 | I197: 7.54 | J197: 7.54
A198: 603300 | B198: Aço CA-60 fornec. dobr. colocação | C198: kg | D198: 7.54 | E198: 8.64 | F198: 0 | G198: 16.18 | I198: 7.54 | J198: 8.64
A199: 603500 | B199: Alvenaria de tijolos maciços | C199: m3 | D199: 447.32 | E199: 891 | F199: 0 | G199: 1338.32 | H199: A acrescer | I199: 447.32 | J199: 891
A200: 603600 | B200: Alvenaria pedra de mão argamassada | C200: m3 | D200: 125.66 | E200: 143.11 | F200: 0 | G200: 268.77 | H200: A acrescer | I200: 125.66 | J200: 143.11
... 578 more rows

Sheet dnit (hidden)
A1: 2025-01-01
A2: 5213351-ed | B2: Suporte polimérico ecológico maciço colapsível D = 6,5 cm para placa de sinalização - fornecimento e implantação - 3,00 m | C2: un | D2: =VLOOKUP(5213351,dnit!A:D,4,FALSE)-0.6*$G$3 -> 573.6
A3: 307731 | B3: Aparelho de apoio de neoprene fretado para estruturas moldadas no local - fornecimento e instalação | C3: dm³ | D3: 145.56 | F3: suporte ecológico d = 6,5 | G3: =VLOOKUP(5213351,dnit!A:D,4,FALSE)/3.6 -> 191.2
A4: 307732 | B4: Aparelho de apoio de neoprene fretado para estruturas pré-moldadas - fornecimento e instalação | C4: dm³ | D4: 113.56
A5: 308308 | B5: Aparelho de apoio metálico elastomérico fixo com capacidade de 1.500 kN - fornecimento e instalação | C5: un | D5: 5539.47
A6: 308313 | B6: Aparelho de apoio metálico elastomérico fixo com capacidade de 10.000 kN - fornecimento e instalação | C6: un | D6: 34338.15
A7: 308309 | B7: Aparelho de apoio metálico elastomérico fixo com capacidade de 2.500 kN - fornecimento e instalação | C7: un | D7: 9112.06
A8: 308310 | B8: Aparelho de apoio metálico elastomérico fixo com capacidade de 4.000 kN - fornecimento e instalação | C8: un | D8: 12629.13
A9: 308311 | B9: Aparelho de apoio metálico elastomérico fixo com capacidade de 5.500 kN - fornecimento e instalação | C9: un | D9: 17718.97
A10: 308312 | B10: Aparelho de apoio metálico elastomérico fixo com capacidade de 7.500 kN - fornecimento e instalação | C10: un | D10: 24661.26
A11: 308307 | B11: Aparelho de apoio metálico elastomérico fixo com capacidade de 700 kN - fornecimento e instalação | C11: un | D11: 3423.5
A12: 308322 | B12: Aparelho de apoio metálico elastomérico multidirecional com capacidade de 1.500 kN - fornecimento e instalação | C12: un | D12: 4862.41
A13: 308327 | B13: Aparelho de apoio metálico elastomérico multidirecional com capacidade de 10.000 kN - fornecimento e instalação | C13: un | D13: 29398.24
A14: 308323 | B14: Aparelho de apoio metálico elastomérico multidirecional com capacidade de 2.500 kN - fornecimento e instalação | C14: un | D14: 7473.31
A15: 308324 | B15: Aparelho de apoio metálico elastomérico multidirecional com capacidade de 4.000 kN - fornecimento e instalação | C15: un | D15: 11142.54
A16: 308325 | B16: Aparelho de apoio metálico elastomérico multidirecional com capacidade de 5.500 kN - fornecimento e instalação | C16: un | D16: 15703.67
A17: 308326 | B17: Aparelho de apoio metálico elastomérico multidirecional com capacidade de 7.500 kN - fornecimento e instalação | C17: un | D17: 21772.68
A18: 308321 | B18: Aparelho de apoio metálico elastomérico multidirecional com capacidade de 700 kN - fornecimento e instalação | C18: un | D18: 4479.17
A19: 308315 | B19: Aparelho de apoio metálico elastomérico unidirecional com capacidade de 1.500 kN - fornecimento e instalação | C19: un | D19: 6226.19
A20: 308320 | B20: Aparelho de apoio metálico elastomérico unidirecional com capacidade de 10.000 kN - fornecimento e instalação | C20: un | D20: 43233.42
A21: 308316 | B21: Aparelho de apoio metálico elastomérico unidirecional com capacidade de 2.500 kN - fornecimento e instalação | C21: un | D21: 8913.24
A22: 308317 | B22: Aparelho de apoio metálico elastomérico unidirecional com capacidade de 4.000 kN - fornecimento e instalação | C22: un | D22: 17003.98
A23: 308318 | B23: Aparelho de apoio metálico elastomérico unidirecional com capacidade de 5.500 kN - fornecimento e instalação | C23: un | D23: 22228.05
A24: 308319 | B24: Aparelho de apoio metálico elastomérico unidirecional com capacidade de 7.500 kN - fornecimento e instalação | C24: un | D24: 25214.4
A25: 308314 | B25: Aparelho de apoio metálico elastomérico unidirecional com capacidade de 700 kN - fornecimento e instalação | C25: un | D25: 4478.41
A26: 308250 | B26: Aparelho de apoio metálico esférico fixo com capacidade de 1.000 kN - fornecimento e instalação | C26: un | D26: 7092.19
A27: 308251 | B27: Aparelho de apoio metálico esférico fixo com capacidade de 1.500 kN - fornecimento e instalação | C27: un | D27: 11039.52
A28: 308268 | B28: Aparelho de apoio metálico esférico fixo com capacidade de 10.000 kN - fornecimento e instalação | C28: un | D28: 71744.45
A29: 308252 | B29: Aparelho de apoio metálico esférico fixo com capacidade de 2.000 kN - fornecimento e instalação | C29: un | D29: 12827.47
A30: 308253 | B30: Aparelho de apoio metálico esférico fixo com capacidade de 2.500 kN - fornecimento e instalação | C30: un | D30: 15536.95
A31: 308254 | B31: Aparelho de apoio metálico esférico fixo com capacidade de 3.000 kN - fornecimento e instalação | C31: un | D31: 18535.5
A32: 308255 | B32: Aparelho de apoio metálico esférico fixo com capacidade de 3.500 kN - fornecimento e instalação | C32: un | D32: 21418.74
A33: 308256 | B33: Aparelho de apoio metálico esférico fixo com capacidade de 4.000 kN - fornecimento e instalação | C33: un | D33: 28692.12
A34: 308257 | B34: Aparelho de apoio metálico esférico fixo com capacidade de 4.500 kN - fornecimento e instalação | C34: un | D34: 30705.81
A35: 308258 | B35: Aparelho de apoio metálico esférico fixo com capacidade de 5.000 kN - fornecimento e instalação | C35: un | D35: 34291.2
A36: 308259 | B36: Aparelho de apoio metálico esférico fixo com capacidade de 5.500 kN - fornecimento e instalação | C36: un | D36: 36262.51
A37: 308260 | B37: Aparelho de apoio metálico esférico fixo com capacidade de 6.000 kN - fornecimento e instalação | C37: un | D37: 40841.85
A38: 308261 | B38: Aparelho de apoio metálico esférico fixo com capacidade de 6.500 kN - fornecimento e instalação | C38: un | D38: 44099.41
A39: 308262 | B39: Aparelho de apoio metálico esférico fixo com capacidade de 7.000 kN - fornecimento e instalação | C39: un | D39: 52292.47
A40: 308263 | B40: Aparelho de apoio metálico esférico fixo com capacidade de 7.500 kN - fornecimento e instalação | C40: un | D40: 56322.32
A41: 308264 | B41: Aparelho de apoio metálico esférico fixo com capacidade de 8.000 kN - fornecimento e instalação | C41: un | D41: 56481.19
A42: 308265 | B42: Aparelho de apoio metálico esférico fixo com capacidade de 8.500 kN - fornecimento e instalação | C42: un | D42: 56984.59
A43: 308266 | B43: Aparelho de apoio metálico esférico fixo com capacidade de 9.000 kN - fornecimento e instalação | C43: un | D43: 64400.01
A44: 308267 | B44: Aparelho de apoio metálico esférico fixo com capacidade de 9.500 kN - fornecimento e instalação | C44: un | D44: 68321.61
A45: 308288 | B45: Aparelho de apoio metálico esférico multidirecional com capacidade de 1.000 kN - fornecimento e instalação | C45: un | D45: 7922.28
A46: 308289 | B46: Aparelho de apoio metálico esférico multidirecional com capacidade de 1.500 kN - fornecimento e instalação | C46: un | D46: 10979.21
A47: 308306 | B47: Aparelho de apoio metálico esférico multidirecional com capacidade de 10.000 kN - fornecimento e instalação | C47: un | D47: 72754.94
A48: 308290 | B48: Aparelho de apoio metálico esférico multidirecional com capacidade de 2.000 kN - fornecimento e instalação | C48: un | D48: 14385.26
A49: 308291 | B49: Aparelho de apoio metálico esférico multidirecional com capacidade de 2.500 kN - fornecimento e instalação | C49: un | D49: 17190.11
A50: 308292 | B50: Aparelho de apoio metálico esférico multidirecional com capacidade de 3.000 kN - fornecimento e instalação | C50: un | D50: 19839.52
A51: 308293 | B51: Aparelho de apoio metálico esférico multidirecional com capacidade de 3.500 kN - fornecimento e instalação | C51: un | D51: 22425.55
A52: 308294 | B52: Aparelho de apoio metálico esférico multidirecional com capacidade de 4.000 kN - fornecimento e instalação | C52: un | D52: 25420.82
A53: 308295 | B53: Aparelho de apoio metálico esférico multidirecional com capacidade de 4.500 kN - fornecimento e instalação | C53: un | D53: 29332.37
A54: 308296 | B54: Aparelho de apoio metálico esférico multidirecional com capacidade de 5.000 kN - fornecimento e instalação | C54: un | D54: 32642.27
A55: 308297 | B55: Aparelho de apoio metálico esférico multidirecional com capacidade de 5.500 kN - fornecimento e instalação | C55: un | D55: 35285.71
A56: 308298 | B56: Aparelho de apoio metálico esférico multidirecional com capacidade de 6.000 kN - fornecimento e instalação | C56: un | D56: 41631.95
A57: 308299 | B57: Aparelho de apoio metálico esférico multidirecional com capacidade de 6.500 kN - fornecimento e instalação | C57: un | D57: 44984.46
A58: 308300 | B58: Aparelho de apoio metálico esférico multidirecional com capacidade de 7.000 kN - fornecimento e instalação | C58: un | D58: 48424.36
A59: 308301 | B59: Aparelho de apoio metálico esférico multidirecional com capacidade de 7.500 kN - fornecimento e instalação | C59: un | D59: 52218.69
A60: 308302 | B60: Aparelho de apoio metálico esférico multidirecional com capacidade de 8.000 kN - fornecimento e instalação | C60: un | D60: 56681.89
A61: 308303 | B61: Aparelho de apoio metálico esférico multidirecional com capacidade de 8.500 kN - fornecimento e instalação | C61: un | D61: 61840.45
A62: 308304 | B62: Aparelho de apoio metálico esférico multidirecional com capacidade de 9.000 kN - fornecimento e instalação | C62: un | D62: 65318.55
A63: 308305 | B63: Aparelho de apoio metálico esférico multidirecional com capacidade de 9.500 kN - fornecimento e instalação | C63: un | D63: 69302.89
A64: 308269 | B64: Aparelho de apoio metálico esférico unidirecional com capacidade de 1.000 kN - fornecimento e instalação | C64: un | D64: 10552.73
A65: 308270 | B65: Aparelho de apoio metálico esférico unidirecional com capacidade de 1.500 kN - fornecimento e instalação | C65: un | D65: 14290.93
A66: 308287 | B66: Aparelho de apoio metálico esférico unidirecional com capacidade de 10.000 kN - fornecimento e instalação | C66: un | D66: 78038.38
A67: 308271 | B67: Aparelho de apoio metálico esférico unidirecional com capacidade de 2.000 kN - fornecimento e instalação | C67: un | D67: 17410.6
A68: 308272 | B68: Aparelho de apoio metálico esférico unidirecional com capacidade de 2.500 kN - fornecimento e instalação | C68: un | D68: 20652.47
A69: 308273 | B69: Aparelho de apoio metálico esférico unidirecional com capacidade de 3.000 kN - fornecimento e instalação | C69: un | D69: 23612.08
A70: 308274 | B70: Aparelho de apoio metálico esférico unidirecional com capacidade de 3.500 kN - fornecimento e instalação | C70: un | D70: 27361.05
A71: 308275 | B71: Aparelho de apoio metálico esférico unidirecional com capacidade de 4.000 kN - fornecimento e instalação | C71: un | D71: 30541.13
A72: 308276 | B72: Aparelho de apoio metálico esférico unidirecional com capacidade de 4.500 kN - fornecimento e instalação | C72: un | D72: 35018.5
A73: 308277 | B73: Aparelho de apoio metálico esférico unidirecional com capacidade de 5.000 kN - fornecimento e instalação | C73: un | D73: 38761.53
A74: 308278 | B74: Aparelho de apoio metálico esférico unidirecional com capacidade de 5.500 kN - fornecimento e instalação | C74: un | D74: 41933.19
A75: 308279 | B75: Aparelho de apoio metálico esférico unidirecional com capacidade de 6.000 kN - fornecimento e instalação | C75: un | D75: 46845.39
A76: 308280 | B76: Aparelho de apoio metálico esférico unidirecional com capacidade de 6.500 kN - fornecimento e instalação | C76: un | D76: 50208.44
A77: 308281 | B77: Aparelho de apoio metálico esférico unidirecional com capacidade de 7.000 kN - fornecimento e instalação | C77: un | D77: 53907.35
A78: 308282 | B78: Aparelho de apoio metálico esférico unidirecional com capacidade de 7.500 kN - fornecimento e instalação | C78: un | D78: 57829.6
A79: 308283 | B79: Aparelho de apoio metálico esférico unidirecional com capacidade de 8.000 kN - fornecimento e instalação | C79: un | D79: 61455.91
A80: 308284 | B80: Aparelho de apoio metálico esférico unidirecional com capacidade de 8.500 kN - fornecimento e instalação | C80: un | D80: 66224.7
A81: 308285 | B81: Aparelho de apoio metálico esférico unidirecional com capacidade de 9.000 kN - fornecimento e instalação | C81: un | D81: 70094.12
A82: 308286 | B82: Aparelho de apoio metálico esférico unidirecional com capacidade de 9.500 kN - fornecimento e instalação | C82: un | D82: 74110.51
A83: 307733 | B83: Junta de dilatação em elastômero e perfil VV - L = 20 mm e H = 40 mm - fornecimento e instalação | C83: m | D83: 269.67
A84: 307734 | B84: Junta de dilatação em elastômero e perfil VV - L = 25 mm e H = 50 mm - fornecimento e instalação | C84: m | D84: 325.19
A85: 307735 | B85: Junta de dilatação em elastômero e perfil VV - L = 35 mm e H = 60 mm - fornecimento e instalação | C85: m | D85: 425.25
A86: 307736 | B86: Junta de dilatação em elastômero e perfil VV - L = 40 mm e H = 70 mm - fornecimento e instalação | C86: m | D86: 565.74
A87: 307737 | B87: Junta de dilatação em elastômero e perfil VV - L = 50 mm e H = 80 mm - fornecimento e instalação | C87: m | D87: 596.16
A88: 307730 | B88: Junta de dilatação em perfil extrudado de borracha vulcanizada | C88: m | D88: 0
A89: 307084 | B89: Lábios poliméricos em junta de pavimento de concreto - L = 20 mm e H = 30 mm - confecção e assentamento | C89: m | D89: 37.31
A90: 407818 | B90: Armação em aço CA-25 - fornecimento, preparo e colocação | C90: kg | D90: 12.5
A91: 407819 | B91: Armação em aço CA-50 - fornecimento, preparo e colocação | C91: kg | D91: 13
A92: 407820 | B92: Armação em aço CA-60 - fornecimento, preparo e colocação | C92: kg | D92: 13.74
A93: 407740 | B93: Chumbador tipo espera em aço CA-25 para fixação de estrutura metálica em concreto - fornecimento e instalação | C93: kg | D93: 16.09
A94: 408037 | B94: Luva de emenda com rosca cônica para aço CA-50 - D = 12,5 mm - fornecimento e instalação | C94: un | D94: 21.11
A95: 408038 | B95: Luva de emenda com rosca cônica para aço CA-50 - D = 16 mm - fornecimento e instalação | C95: un | D95: 32.4
A96: 408039 | B96: Luva de emenda com rosca cônica para aço CA-50 - D = 20 mm - fornecimento e instalação | C96: un | D96: 43.59
A97: 408041 | B97: Luva de emenda com rosca cônica para aço CA-50 - D = 25 mm - fornecimento e instalação | C97: un | D97: 56.26
A98: 408042 | B98: Luva de emenda com rosca cônica para aço CA-50 - D = 32 mm - fornecimento e instalação | C98: un | D98: 80.16
A99: 408031 | B99: Luva de emenda prensada para aço CA-50 - D = 12,5 mm - fornecimento e instalação | C99: un | D99: 22.27
A100: 408032 | B100: Luva de emenda prensada para aço CA-50 - D = 16 mm - fornecimento e instalação | C100: un | D100: 30.23
A101: 408033 | B101: Luva de emenda prensada para aço CA-50 - D = 20 mm - fornecimento e instalação | C101: un | D101: 41.1
A102: 408035 | B102: Luva de emenda prensada para aço CA-50 - D = 25 mm - fornecimento e instalação | C102: un | D102: 68.65
A103: 408036 | B103: Luva de emenda prensada para aço CA-50 - D = 32 mm - fornecimento e instalação | C103: un | D103: 151.32
A104: 408067 | B104: Tela de aço eletrossoldada - fornecimento, preparo e colocação | C104: kg | D104: 11.3
A105: 407743 | B105: Treliça nervurada três barras longitudinais interligadas por duas diagonais sinusoidal - fornecimento e instalação | C105: kg | D105: 11.89
A106: 607137 | B106: Arco metálico galvanizado tipo MP 152S - arco alto - vão = 10,08 m e altura = 6,12 m - aterro rodoviário mínimo = 0,90 m e máximo = 5,00 m - areia e brita comerciais | C106: m | D106: 60798.83
A107: 606785 | B107: Arco metálico galvanizado tipo MP 152S - arco alto - vão = 10,08 m e altura = 6,12 m - aterro rodoviário mínimo = 0,90 m e máximo = 5,00 m - areia extraída e brita produzida | C107: m | D107: 60237.44
A108: 607139 | B108: Arco metálico galvanizado tipo MP 152S - arco alto - vão = 10,31 m e altura = 6,17 m - aterro rodoviário mínimo = 0,90 m e máximo = 4,90 m - areia e brita comerciais | C108: m | D108: 61623.09
A109: 606787 | B109: Arco metálico galvanizado tipo MP 152S - arco alto - vão = 10,31 m e altura = 6,17 m - aterro rodoviário mínimo = 0,90 m e máximo = 4,90 m - areia extraída e brita produzida | C109: m | D109: 60720.92
A110: 607140 | B110: Arco metálico galvanizado tipo MP 152S - arco alto - vão = 10,36 m e altura = 5,38 m - aterro rodoviário mínimo = 1,20 m e máximo = 3,60 m - areia e brita comerciais | C110: m | D110: 56186.7
A111: 606788 | B111: Arco metálico galvanizado tipo MP 152S - arco alto - vão = 10,36 m e altura = 5,38 m - aterro rodoviário mínimo = 1,20 m e máximo = 3,60 m - areia extraída e brita produzida | C111: m | D111: 56026.42
A112: 607141 | B112: Arco metálico galvanizado tipo MP 152S - arco alto - vão = 10,54 m e altura = 6,05 m - aterro rodoviário mínimo = 1,20 m e máximo = 4,20 m - areia e brita comerciais | C112: m | D112: 62795.43
A113: 606789 | B113: Arco metálico galvanizado tipo MP 152S - arco alto - vão = 10,54 m e altura = 6,05 m - aterro rodoviário mínimo = 1,20 m e máximo = 4,20 m - areia extraída e brita produzida | C113: m | D113: 62212
A114: 607144 | B114: Arco metálico galvanizado tipo MP 152S - arco alto - vão = 10,57 m e altura = 5,41 m - aterro rodoviário mínimo = 1,20 m e máximo = 4,10 m - areia e brita comerciais | C114: m | D114: 73308.04
A115: 606792 | B115: Arco metálico galvanizado tipo MP 152S - arco alto - vão = 10,57 m e altura = 5,41 m - aterro rodoviário mínimo = 1,20 m e máximo = 4,10 m - areia extraída e brita produzida | C115: m | D115: 72775.14
A116: 607142 | B116: Arco metálico galvanizado tipo MP 152S - arco alto - vão = 10,74 m e altura = 6,48 m - aterro rodoviário mínimo = 1,20 m e máximo = 4,70 m - areia e brita comerciais | C116: m | D116: 65934.59
A117: 606790 | B117: Arco metálico galvanizado tipo MP 152S - arco alto - vão = 10,74 m e altura = 6,48 m - aterro rodoviário mínimo = 1,20 m e máximo = 4,70 m - areia extraída e brita produzida | C117: m | D117: 65307.04
A118: 607145 | B118: Arco metálico galvanizado tipo MP 152S - arco alto - vão = 10,77 m e altura = 6,10 m - aterro rodoviário mínimo = 1,20 m e máximo = 4,70 m - areia e brita comerciais | C118: m | D118: 81129.18
A119: 606793 | B119: Arco metálico galvanizado tipo MP 152S - arco alto - vão = 10,77 m e altura = 6,10 m - aterro rodoviário mínimo = 1,20 m e máximo = 4,70 m - areia extraída e brita produzida | C119: m | D119: 80533.18
A120: 607146 | B120: Arco metálico galvanizado tipo MP 152S - arco alto - vão = 10,97 m e altura = 6,53 m - aterro rodoviário mínimo = 1,20 m e máximo = 4,70 m - areia e brita comerciais | C120: m | D120: 84593.7
A121: 606794 | B121: Arco metálico galvanizado tipo MP 152S - arco alto - vão = 10,97 m e altura = 6,53 m - aterro rodoviário mínimo = 1,20 m e máximo = 4,70 m - areia extraída e brita produzida | C121: m | D121: 83946.82
A122: 607143 | B122: Arco metálico galvanizado tipo MP 152S - arco alto - vão = 11,35 m e altura = 7,12 m - aterro rodoviário mínimo = 1,20 m e máximo = 4,70 m - areia e brita comerciais | C122: m | D122: 71216.65
A123: 606791 | B123: Arco metálico galvanizado tipo MP 152S - arco alto - vão = 11,35 m e altura = 7,12 m - aterro rodoviário mínimo = 1,20 m e máximo = 4,70 m - areia extraída e brita produzida | C123: m | D123: 70494.17
A124: 607147 | B124: Arco metálico galvanizado tipo MP 152S - arco alto - vão = 11,58 m e altura = 7,16 m - aterro rodoviário mínimo = 1,20 m e máximo = 6,40 m - areia e brita comerciais | C124: m | D124: 91248.64
A125: 606795 | B125: Arco metálico galvanizado tipo MP 152S - arco alto - vão = 11,58 m e altura = 7,16 m - aterro rodoviário mínimo = 1,20 m e máximo = 6,40 m - areia extraída e brita produzida | C125: m | D125: 90503.24
A126: 607112 | B126: Arco metálico galvanizado tipo MP 152S - arco alto - vão = 6,12 m e altura = 2,77 m - aterro rodoviário mínimo = 0,75 m e máximo = 5,40 m - areia e brita comerciais | C126: m | D126: 29592.55
A127: 606760 | B127: Arco metálico galvanizado tipo MP 152S - arco alto - vão = 6,12 m e altura = 2,77 m - aterro rodoviário mínimo = 0,75 m e máximo = 5,40 m - areia extraída e brita produzida | C127: m | D127: 29397.15
A128: 607113 | B128: Arco metálico galvanizado tipo MP 152S - arco alto - vão = 6,30 m e altura = 3,68 m - aterro rodoviário mínimo = 0,75 m e máximo = 7,50 m - areia e brita comerciais | C128: m | D128: 36340.41
A129: 606761 | B129: Arco metálico galvanizado tipo MP 152S - arco alto - vão = 6,30 m e altura = 3,68 m - aterro rodoviário mínimo = 0,75 m e máximo = 7,50 m - areia extraída e brita produzida | C129: m | D129: 36115.8
A130: 606762 | B130: Arco metálico galvanizado tipo MP 152S - arco alto - vão = 6,55 m e altura = 3,56 m - aterro rodoviário mínimo = 0,75 m e máximo = 4,9 m - areia extraída e brita produzida | C130: m | D130: 34180.77
A131: 607114 | B131: Arco metálico galvanizado tipo MP 152S - arco alto - vão = 6,55 m e altura = 3,56 m - aterro rodoviário mínimo = 0,75 m e máximo = 4,90 m - areia e brita comerciais | C131: m | D131: 34409.62
A132: 607116 | B132: Arco metálico galvanizado tipo MP 152S - arco alto - vão = 6,78 m e altura = 3,61 m - aterro rodoviário mínimo = 0,75 m e máximo = 4,80 m - areia e brita comerciais | C132: m | D132: 36470.71
A133: 606764 | B133: Arco metálico galvanizado tipo MP 152S - arco alto - vão = 6,78 m e altura = 3,61 m - aterro rodoviário mínimo = 0,75 m e máximo = 4,80 m - areia extraída e brita produzida | C133: m | D133: 36232.23
A134: 607115 | B134: Arco metálico galvanizado tipo MP 152S - arco alto - vão = 6,96 m e altura = 4,42 m - aterro rodoviário mínimo = 0,75 m e máximo = 8,10 m - areia e brita comerciais | C134: m | D134: 41419.05
A135: 606763 | B135: Arco metálico galvanizado tipo MP 152S - arco alto - vão = 6,96 m e altura = 4,42 m - aterro rodoviário mínimo = 0,75 m e máximo = 8,10 m - areia extraída e brita produzida | C135: m | D135: 41132.14
A136: 607117 | B136: Arco metálico galvanizado tipo MP 152S - arco alto - vão = 6,99 m e altura = 4,27 m - aterro rodoviário mínimo = 0,75 m e máximo = 5,70 m - areia e brita comerciais | C136: m | D136: 41432.14
A137: 606765 | B137: Arco metálico galvanizado tipo MP 152S - arco alto - vão = 6,99 m e altura = 4,27 m - aterro rodoviário mínimo = 0,75 m e máximo = 5,70 m - areia extraída e brita produzida | C137: m | D137: 41153.11
A138: 607118 | B138: Arco metálico galvanizado tipo MP 152S - arco alto - vão = 7,01 m e altura = 3,63 m - aterro rodoviário mínimo = 0,75 m e máximo = 4,60 m - areia e brita comerciais | C138: m | D138: 37111.21
A139: 606766 | B139: Arco metálico galvanizado tipo MP 152S - arco alto - vão = 7,01 m e altura = 3,63 m - aterro rodoviário mínimo = 0,75 m e máximo = 4,60 m - areia extraída e brita produzida | C139: m | D139: 36865.01
A140: 607120 | B140: Arco metálico galvanizado tipo MP 152S - arco alto - vão = 7,24 m e altura = 3,68 m - aterro rodoviário mínimo = 0,90 m e máximo = 4,4 m - areia e brita comerciais | C140: m | D140: 37791.99
A141: 606768 | B141: Arco metálico galvanizado tipo MP 152S - arco alto - vão = 7,24 m e altura = 3,68 m - aterro rodoviário mínimo = 0,90 m e máximo = 4,40 m - areia extraída e brita produzida | C141: m | D141: 37532.73
A142: 607119 | B142: Arco metálico galvanizado tipo MP 152S - arco alto - vão = 7,42 m e altura = 4,52 m - aterro rodoviário mínimo = 0,90 m e máximo = 6,40 m - areia e brita comerciais | C142: m | D142: 43463.06
A143: 606767 | B143: Arco metálico galvanizado tipo MP 152S - arco alto - vão = 7,42 m e altura = 4,52 m - aterro rodoviário mínimo = 0,90 m e máximo = 6,40 m - areia extraída e brita produzida | C143: m | D143: 43146.88
A144: 607121 | B144: Arco metálico galvanizado tipo MP 152S - arco alto - vão = 7,47 m e altura = 4,19 m - aterro rodoviário mínimo = 0,90 m e máximo = 4,30 m - areia e brita comerciais | C144: m | D144: 40912.44
A145: 606769 | B145: Arco metálico galvanizado tipo MP 152S - arco alto - vão = 7,47 m e altura = 4,19 m - aterro rodoviário mínimo = 0,90 m e máximo = 4,30 m - areia extraída e brita produzida | C145: m | D145: 40616.85
A146: 607123 | B146: Arco metálico galvanizado tipo MP 152S - arco alto - vão = 7,67 m e altura = 3,99 m - aterro rodoviário mínimo = 0,90 m e máximo = 4,10 m - areia e brita comerciais | C146: m | D146: 40374.31
A147: 606771 | B147: Arco metálico galvanizado tipo MP 152S - arco alto - vão = 7,67 m e altura = 3,99 m - aterro rodoviário mínimo = 0,90 m e máximo = 4,10 m - areia extraída e brita produzida | C147: m | D147: 40079.82
A148: 607122 | B148: Arco metálico galvanizado tipo MP 152S - arco alto - vão = 7,85 m e altura = 4,60 m - aterro rodoviário mínimo = 0,90 m e máximo = 6,00 m - areia e brita comerciais | C148: m | D148: 44812.59
A149: 606770 | B149: Arco metálico galvanizado tipo MP 152S - arco alto - vão = 7,85 m e altura = 4,60 m - aterro rodoviário mínimo = 0,90 m e máximo = 6,00 m - areia extraída e brita produzida | C149: m | D149: 44472.97
A150: 607125 | B150: Arco metálico galvanizado tipo MP 152S - arco alto - vão = 7,90 m e altura = 4,04 m - aterro rodoviário mínimo = 0,90 m e máximo = 4,00 m - areia e brita comerciais | C150: m | D150: 41781.07
A151: 606773 | B151: Arco metálico galvanizado tipo MP 152S - arco alto - vão = 7,90 m e altura = 4,04 m - aterro rodoviário mínimo = 0,90 m e máximo = 4,00 m - areia extraída e brita produzida | C151: m | D151: 41471.23
A152: 607124 | B152: Arco metálico galvanizado tipo MP 152S - arco alto - vão = 8,08 m e altura = 4,65 m - aterro rodoviário mínimo = 0,90 m e máximo = 5,80 m - areia e brita comerciais | C152: m | D152: 45485.71
A153: 606772 | B153: Arco metálico galvanizado tipo MP 152S - arco alto - vão = 8,08 m e altura = 4,65 m - aterro rodoviário mínimo = 0,90 m e máximo = 5,80 m - areia extraída e brita produzida | C153: m | D153: 45135.21
A154: 607126 | B154: Arco metálico galvanizado tipo MP 152S - arco alto - vão = 8,31 m e altura = 4,70 m - aterro rodoviário mínimo = 0,90 m e máximo = 5,60 m - areia e brita comerciais | C154: m | D154: 46777.45
A155: 606774 | B155: Arco metálico galvanizado tipo MP 152S - arco alto - vão = 8,31 m e altura = 4,70 m - aterro rodoviário mínimo = 0,90 m e máximo = 5,60 m - areia extraída e brita produzida | C155: m | D155: 46410.07
A156: 607127 | B156: Arco metálico galvanizado tipo MP 152S - arco alto - vão = 8,36 m e altura = 4,11 m - aterro rodoviário mínimo = 0,90 m e máximo = 3,70 m - areia e brita comerciais | C156: m | D156: 43067.56
A157: 606775 | B157: Arco metálico galvanizado tipo MP 152S - arco alto - vão = 8,36 m e altura = 4,11 m - aterro rodoviário mínimo = 0,90 m e máximo = 3,70 m - areia extraída e brita produzida | C157: m | D157: 42739.1
A158: 607129 | B158: Arco metálico galvanizado tipo MP 152S - arco alto - vão = 8,59 m e altura = 4,39 m - aterro rodoviário mínimo = 0,90 m e máximo = 3,60 m - areia e brita comerciais | C158: m | D158: 45071.38
A159: 606777 | B159: Arco metálico galvanizado tipo MP 152S - arco alto - vão = 8,59 m e altura = 4,39 m - aterro rodoviário mínimo = 0,90 m e máximo = 3,60 m - areia extraída e brita produzida | C159: m | D159: 44711.65
A160: 607128 | B160: Arco metálico galvanizado tipo MP 152S - arco alto - vão = 8,97 m e altura = 5,00 m - aterro rodoviário mínimo = 0,90 m e máximo = 5,80 m - areia e brita comerciais | C160: m | D160: 49574.39
A161: 606776 | B161: Arco metálico galvanizado tipo MP 152S - arco alto - vão = 8,97 m e altura = 5,00 m - aterro rodoviário mínimo = 0,90 m e máximo = 5,80 m - areia extraída e brita produzida | C161: m | D161: 49154.08
A162: 607130 | B162: Arco metálico galvanizado tipo MP 152S - arco alto - vão = 9,17 m e altura = 5,49 m - aterro rodoviário mínimo = 0,90 m e máximo = 5,60 m - areia e brita comerciais | C162: m | D162: 52829.64
A163: 606778 | B163: Arco metálico galvanizado tipo MP 152S - arco alto - vão = 9,17 m e altura = 5,49 m - aterro rodoviário mínimo = 0,90 m e máximo = 5,60 m - areia extraída e brita produzida | C163: m | D163: 52367.65
A164: 607131 | B164: Arco metálico galvanizado tipo MP 152S - arco alto - vão = 9,22 m e altura = 4,70 m - aterro rodoviário mínimo = 0,90 m e máximo = 4,10 m - areia e brita comerciais | C164: m | D164: 49612.98
A165: 606779 | B165: Arco metálico galvanizado tipo MP 152S - arco alto - vão = 9,22 m e altura = 4,70 m - aterro rodoviário mínimo = 0,90 m e máximo = 4,10 m - areia extraída e brita produzida | C165: m | D165: 49204.27
A166: 607133 | B166: Arco metálico galvanizado tipo MP 152S - arco alto - vão = 9,45 m e altura = 4,75 m - aterro rodoviário mínimo = 0,90 m e máximo = 4,00 m - areia e brita comerciais | C166: m | D166: 50376.89
A167: 606781 | B167: Arco metálico galvanizado tipo MP 152S - arco alto - vão = 9,45 m e altura = 4,75 m - aterro rodoviário mínimo = 0,90 m e máximo = 4,00 m - areia extraída e brita produzida | C167: m | D167: 49955.89
A168: 607132 | B168: Arco metálico galvanizado tipo MP 152S - arco alto - vão = 9,63 m e altura = 5,59 m - aterro rodoviário mínimo = 0,90 m e máximo = 5,30 m - areia e brita comerciais | C168: m | D168: 54900.58
A169: 606780 | B169: Arco metálico galvanizado tipo MP 152S - arco alto - vão = 9,63 m e altura = 5,59 m - aterro rodoviário mínimo = 0,90 m e máximo = 5,30 m - areia extraída e brita produzida | C169: m | D169: 54406.2
A170: 607134 | B170: Arco metálico galvanizado tipo MP 152S - arco alto - vão = 9,65 m e altura = 5,41 m - aterro rodoviário mínimo = 0,90 m e máximo = 4,70 m - areia e brita comerciais | C170: m | D170: 54373.97
A171: 606782 | B171: Arco metálico galvanizado tipo MP 152S - arco alto - vão = 9,65 m e altura = 5,41 m - aterro rodoviário mínimo = 0,90 m e máximo = 4,70 m - areia extraída e brita produzida | C171: m | D171: 53890.9
A172: 607136 | B172: Arco metálico galvanizado tipo MP 152S - arco alto - vão = 9,68 m e altura = 5,23 m - aterro rodoviário mínimo = 0,90 m e máximo = 3,90 m - areia e brita comerciais | C172: m | D172: 53652.36
A173: 606784 | B173: Arco metálico galvanizado tipo MP 152S - arco alto - vão = 9,68 m e altura = 5,23 m - aterro rodoviário mínimo = 0,90 m e máximo = 3,90 m - areia extraída e brita produzida | C173: m | D173: 53184.72
A174: 607135 | B174: Arco metálico galvanizado tipo MP 152S - arco alto - vão = 9,86 m e altura = 6,07 m - aterro rodoviário mínimo = 0,90 m e máximo = 5,20 m - areia e brita comerciais | C174: m | D174: 59914.68
A175: 606783 | B175: Arco metálico galvanizado tipo MP 152S - arco alto - vão = 9,86 m e altura = 6,07 m - aterro rodoviário mínimo = 0,90 m e máximo = 5,20 m - areia extraída e brita produzida | C175: m | D175: 59372.56
A176: 607138 | B176: Arco metálico galvanizado tipo MP 152S - arco alto - vão = 9,91 m e altura = 5,28 m - aterro rodoviário mínimo = 0,90 m e máximo = 3,80 m - areia e brita comerciais | C176: m | D176: 54579.31
A177: 606786 | B177: Arco metálico galvanizado tipo MP 152S - arco alto - vão = 9,91 m e altura = 5,28 m - aterro rodoviário mínimo = 0,90 m e máximo = 3,80 m - areia extraída e brita produzida | C177: m | D177: 54081.14
A178: 606842 | B178: Arco metálico galvanizado tipo MP 152S - ovoide - vão = 7,21 m e altura = 7,82 m - aterro rodoviário mínimo = 0,75 m e máximo = 6,70 m - areia e brita comerciais | C178: m | D178: 67736.47
A179: 606832 | B179: Arco metálico galvanizado tipo MP 152S - ovoide - vão = 7,21 m e altura = 7,82 m - aterro rodoviário mínimo = 0,75 m e máximo = 6,70 m - areia extraída e brita produzida | C179: m | D179: 67485.35
A180: 606843 | B180: Arco metálico galvanizado tipo MP 152S - ovoide - vão = 7,31 m e altura = 7,87 m - aterro rodoviário mínimo = 0,90 m e máximo = 6,80 m - areia e brita comerciais | C180: m | D180: 70396.33
A181: 606833 | B181: Arco metálico galvanizado tipo MP 152S - ovoide - vão = 7,31 m e altura = 7,87 m - aterro rodoviário mínimo = 0,90 m e máximo = 6,80 m - areia extraída e brita produzida | C181: m | D181: 70131.26
A182: 606845 | B182: Arco metálico galvanizado tipo MP 152S - ovoide - vão = 7,57 m e altura = 8,44 m - aterro rodoviário mínimo = 0,90 m e máximo = 5,60 m - areia e brita comerciais | C182: m | D182: 73049.28
A183: 606835 | B183: Arco metálico galvanizado tipo MP 152S - ovoide - vão = 7,57 m e altura = 8,44 m - aterro rodoviário mínimo = 0,90 m e máximo = 5,60 m - areia extraída e brita produzida | C183: m | D183: 72786.11
A184: 606844 | B184: Arco metálico galvanizado tipo MP 152S - ovoide - vão = 7,77 m e altura = 7,90 m - aterro rodoviário mínimo = 0,90 m e máximo = 6,80 m - areia e brita comerciais | C184: m | D184: 71486.86
A185: 606834 | B185: Arco metálico galvanizado tipo MP 152S - ovoide - vão = 7,77 m e altura = 7,90 m - aterro rodoviário mínimo = 0,90 m e máximo = 6,80 m - areia extraída e brita produzida | C185: m | D185: 71215.74
A186: 606847 | B186: Arco metálico galvanizado tipo MP 152S - ovoide - vão = 8,13 m e altura = 8,01 m - aterro rodoviário mínimo = 0,90 m e máximo = 3,50 m - areia e brita comerciais | C186: m | D186: 76374.23
A187: 606837 | B187: Arco metálico galvanizado tipo MP 152S - ovoide - vão = 8,13 m e altura = 8,01 m - aterro rodoviário mínimo = 0,90 m e máximo = 3,50 m - areia extraída e brita produzida | C187: m | D187: 76076.09
A188: 606846 | B188: Arco metálico galvanizado tipo MP 152S - ovoide - vão = 8,36 m e altura = 8,23 m - aterro rodoviário mínimo = 0,90 m e máximo = 4,30 m - areia e brita comerciais | C188: m | D188: 78271.64
A189: 606836 | B189: Arco metálico galvanizado tipo MP 152S - ovoide - vão = 8,36 m e altura = 8,23 m - aterro rodoviário mínimo = 0,90 m e máximo = 4,30 m - areia extraída e brita produzida | C189: m | D189: 77970.68
A190: 606848 | B190: Arco metálico galvanizado tipo MP 152S - ovoide - vão = 8,56 m e altura = 8,48 m - aterro rodoviário mínimo = 0,90 m e máximo = 5,30 m - areia e brita comerciais | C190: m | D190: 76862.72
A191: 606838 | B191: Arco metálico galvanizado tipo MP 152S - ovoide - vão = 8,56 m e altura = 8,48 m - aterro rodoviário mínimo = 0,90 m e máximo = 5,30 m - areia extraída e brita produzida | C191: m | D191: 76548.99
A192: 606849 | B192: Arco metálico galvanizado tipo MP 152S - ovoide - vão = 8,71 m e altura = 9,32 m - aterro rodoviário mínimo = 0,90 m e máximo = 6,00 m - areia e brita comerciais | C192: m | D192: 83512.57
A193: 606839 | B193: Arco metálico galvanizado tipo MP 152S - ovoide - vão = 8,71 m e altura = 9,32 m - aterro rodoviário mínimo = 0,90 m e máximo = 6,00 m - areia extraída e brita produzida | C193: m | D193: 83207.97
A194: 606850 | B194: Arco metálico galvanizado tipo MP 152S - ovoide - vão = 9,15 m e altura = 9,04 m - aterro rodoviário mínimo = 0,90 m e máximo = 4,70 m - areia e brita comerciais | C194: m | D194: 84205.17
A195: 606840 | B195: Arco metálico galvanizado tipo MP 152S - ovoide - vão = 9,15 m e altura = 9,04 m - aterro rodoviário mínimo = 0,90 m e máximo = 4,70 m - areia extraída e brita produzida | C195: m | D195: 83870.26
A196: 606851 | B196: Arco metálico galvanizado tipo MP 152S - ovoide - vão = 9,15 m e altura = 9,50 m - aterro rodoviário mínimo = 0,90 m e máximo = 5,70 m - areia e brita comerciais | C196: m | D196: 84720.74
A197: 606841 | B197: Arco metálico galvanizado tipo MP 152S - ovoide - vão = 9,15 m e altura = 9,50 m - aterro rodoviário mínimo = 0,90 m e máximo = 5,70 m - areia extraída e brita produzida | C197: m | D197: 84401.73
A198: 605604 | B198: Argamassa de solo-cimento com 10% de cimento e material de jazida - preparo e injeção em tunnel liner | C198: m³ | D198: 327.74
A199: 605695 | B199: Bueiro metálico com chapas múltiplas MP 100 com revestimento em epóxi - D = 0,60 m - brita comercial | C199: m | D199: 1604.59
A200: 605607 | B200: Bueiro metálico com chapas múltiplas MP 100 com revestimento em epóxi - D = 0,60 m - brita produzida | C200: m | D200: 1585.05
... 6293 more rows

Sheet scorj (hidden)
B1: 2025-04-07
B2: Resultado da Pesquisa de Itens de Serviços
B3: Pesquisa realizada em 11/01/2024 15:45 hs Mês/Ano de Referência: 12/2023 imprimir
B4: Item de Serviço | C4: Descrição | D4: Und. de Medida | E4: Custo R$ | F4: Ocorrências
A5: =SUBSTITUTE(B5," (/)","") -> ST 64.05.0200 | B5: ST 64.05.0200 (/) | C5: Poste tipo S4, coluna de 4 1/2", de diametro, braco projetado de 4", e projecao de 6200mm, conforme especificacao da CET-RIO. Fornecimento.(desonerado) | D5: un | E5: 4522.13 | H5: 4327.24
A6: ST 64.05.0250 | B6: ST 64.05.0250 (/) | C6: Poste tipo S5, simples, de 4" de diametro. Conforme especificacao da CET-RIO. Fornecimento.(desonerado) | D6: un | E6: 2418 | H6: 2418
A7: ST 64.05.0300 | B7: ST 64.05.0300 (/) | C7: Poste tipo G4, coluna de 5" de diametro, braco projetado de 4 1/2" e projecao de 4700mm, conforme especificacao da CET-RIO. Fornecimento.(desonerado) | D7: un | E7: 2430.56 | H7: 2430.56
A8: ST 64.05.0350 | B8: ST 64.05.0350 (/) | C8: Poste tipo G5, coluna de 6" de diametro, braco projetado de 4700mm, conforme especificacao da CET-RIO. Fornecimento.(desonerado) | D8: un | E8: 5223.25 | H8: 4998.33
A9: ST 64.05.0400 | B9: ST 64.05.0400 (/) | C9: Poste tipo G7, de 2" de diametro, altura de 3500mm, conforme especificacao da CET-RIO. Fornecimento.(desonerado) | D9: un | E9: 341.65 | H9: 326.94
A10: ST 64.05.0450 | B10: ST 64.05.0450 (/) | C10: Poste tipo G8, simples, de 2" de diametro,altura de 2200mm, conforme especificacao da CET-RIO. Fornecimento.(desonerado) | D10: un | E10: 235.46 | H10: 235.46
A11: ST 64.05.0500 | B11: ST 64.05.0500 (/) | C11: Poste tipo G9, simples, de 2" de diametro, altura de 4500mm, conforme especificacao da CET-RIO. Fornecimento.(desonerado) | D11: un | E11: 391.85 | H11: 374.97
A12: ST 64.05.0550 | B12: ST 64.05.0550 (/) | C12: Braco projetado para poste multi-uso, em tubo de aco, diametro de 88,9mm e projecao horizontal de 4370mm. Fornecimento.(desonerado) | D12: un | E12: 3802.05 | H12: 3802.05
A13: ST 64.05.0600 | B13: ST 64.05.0600 (/) | C13: Coluna de aco, conica continua tipo I para ate 4 (quatro) bracos projetados capazes de sustentar, cada um, semaforo e placa de 3m2 (tres metros quadrados); coluna galvanizada a fogo; altura util total de 5,00m (cinco metros); diametro na base igual a 187mm (cento e oitenta e sete milimetros); conforme especificacao CET-RIO. Fornecimento.(desonerado) | D13: un | E13: 7650 | H13: 7650
A14: ST 64.05.0610 | B14: ST 64.05.0610 (/) | C14: Coluna de aco conica giratoria continua tipo III para ate 2 (dois) bracos projetados capazes de sustentar, cada um, semaforo e placa de 3m2 (tres metros quadrados); coluna galvanizada a fogo; altura util total de 5,00m (cinco metros); diametro na base igual a 187mm (cento e oitenta e sete milimetros); conforme especificacao CET-RIO. Fornecimento. (desonerado) | D14: un | E14: 20520 | H14: 20520
A15: ST 64.05.0630 | B15: ST 64.05.0630 (/) | C15: Coluna de aco conica continua tipo II para um braco projetado capaz de sustentar semaforo e placa de ate 4,50m2; coluna galvanizada a fogo; altura util total de 5m; 300mm de diametro na base; conforme especificacao da CET-RIO. Fornecimento.(desonerado) | D15: un | E15: 9300 | H15: 9300
A16: ST 64.05.0636 | B16: ST 64.05.0636 (/) | C16: Coluna de aco conica continua tipo II para dois bracos projetados capazes de sustentar, cada um, semaforo e placa de ate 4,50m2; coluna galvanizada a fogo; altura util total de 5m; 300mm de diametro na base; conforme especificacao da CET-RIO. Fornecimento.(desonerado) | D16: un | E16: 9600 | H16: 9600
A17: ST 64.05.0637 | B17: ST 64.05.0637 (/) | C17: Coluna de aco, cilindrica para ate 2 (dois) bracos projetados capazes de sustentar, cada um, semaforo e placa de 3m2 (tres metros quadrados); coluna galvanizada a fogo; altura util total de 5,00m (cinco metros); diametro igual a 114,3mm (centro e quatorze virgula tres milimetros); espessura de 4,75 (quatro virgula setenta e cinco milimetros); com janela de inspecao para passagem de cabos; conforme especificacao CET-RIO. Fornecimento. (desonerado) | D17: un | E17: 7500 | H17: 7500
A18: ST 64.05.0638 | B18: ST 64.05.0638 (/) | C18: Coluna de aco, cilindrica para ate 2 (dois) bracos projetados capazes de sustentar, cada um semaforo e placa de 3m2 (tres metros quadrados); coluna galvanizada a fogo; altura util total de 5,00m (cinco metros); diametro igual a 114,3mm (cento e quatorze virgula tres milimetros); espessura de 4,75mm (quatro virgula setenta e cinco milimetros); com janela de inspecao para passagem de cabos, com caixa do no para fixacao dos bracos giratorios; conforme especificacao CET-RIO. Fornecimento. (desonerado). | D18: un | E18: 2630 | H18: 2630
A19: ST 64.05.0640 | B19: ST 64.05.0640 (/) | C19: Braco projetado de aco para sustentacao de semaforo e placa ate 3m2 (tres metros quadrados), galvanizado a fogo; para fixacao em coluna cilindrica giratoria, projecao de 2,70m (dois metros e setenta centimetros); diametro de 101,6mm (cento e um virgula seis milimetros); espessura de 4,75mm (quatro virgula setenta e cinco milimetros); conforme especificacao CET-RIO. Fornecimento. (desonerado). | D19: un | E19: 2842 | H19: 2842
A20: ST 64.05.0650 | B20: ST 64.05.0650 (/) | C20: Braco projetado de aco para sustentacao de semaforo e placa ate 3m2 (tres metros quadrados), galvanizado a fogo; para fixacao em coluna cilindrica giratoria, projecao de 2,80m (dois metros e oitenta centimetros); diametro junto a flange de 123mm (cento e vinte e tres milimetros); conforme especificacao CET-RIO. Fornecimento.(desonerado) | D20: un | E20: 2990 | H20: 2990
A21: ST 64.05.0690 | B21: ST 64.05.0690 (/) | C21: Braco projetado de aco para sustentacao de semaforo e placa ate 3m2 (tres metros quadrados), galvanizado a fogo; para fixacao em coluna conica cilindrica giratoria, projecao de 3,70m (tres metros e setenta centimetros); diametro de 101,6mm (cento e um virgula seis milimetros); espessura de 4,75mm (quatro virgula setenta e cinco milimetros); conforme especificacao CET-RIO. Fornecimento. (desonerado). | D21: un | E21: 2842 | H21: 2842
A22: ST 64.05.0700 | B22: ST 64.05.0700 (/) | C22: Braco projetado de aco para sustentacao de semaforo e placa ate 3m2 (tres metros quadrados), galvanizado a fogo; para fixacao em coluna conico continua tipo I, projecao de 3,70m (tres metros e setenta centimetros); diametro junto a flange de 123mm (cento e vinte e tres milimetros); conforme especificacao CET-RIO. Fornecimento.(desonerado) | D22: un | E22: 5460
A23: ST 64.05.0730 | B23: ST 64.05.0730 (/) | C23: Braco projetado de aco para sustentacao de semaforo e placa ate 3m2 (tres metros quadrados), galvanizado a fogo; para fixacao em coluna cilindrica giratoria, projecao de 4,70m (quatro metros e setenta centimetros); diametro de 101,6mm (cento e um virgula seis milimetros); espessura de 4,75mm (quatro virgula setenta e cinco milimetros); conforme especificacao CET-RIO. Fornecimento. (desonerado). | D23: un | E23: 2842 | H23: 5460
A24: ST 64.05.0750 | B24: ST 64.05.0750 (/) | C24: Braco projetado de aco para sustentacao de semaforo e placa ate 3m2 (tres metros quadrados), galvanizado a fogo; para fixacao em coluna conico continua tipo I, projecao de 4,70m (quatro metros e setenta centimetros); diametro junto a flange de 123mm (cento e vinte e tres milimetros); conforme especificacao CET-RIO. Fornecimento.(desonerado) | D24: un | E24: 4490 | H24: 2842
A25: ST 64.05.0755 | B25: ST 64.05.0755 (/) | C25: Braco projetado de aco para sustentacao de semaforo e placa ate 3m2 (tres metros quadrados), galvanizado a fogo; para fixacao em coluna conico continua tipo I, projecao de 5,50m (cinco metros e cinquenta centimetros); diametro junto a flange de 123mm (cento e vinte e tres milimetros); conforme especificacao CET-RIO. Fornecimento. (desonerado) | D25: un | E25: 12367.04 | H25: 4490
A26: ST 64.05.0760 | B26: ST 64.05.0760 (/) | C26: Braco projetado de aco para sustentacao de semaforo e placa de ate 4,50m2; galvanizado a fogo; para fixacao em coluna conica tipo II; projecao de 6m; 173mm de diametro junto a flange; conforme especificacao da CET-RIO. Fornecimento.(desonerado) | D26: un | E26: 4645 | H26: 12367.04
A27: ST 64.05.0800 | B27: ST 64.05.0800 (/) | C27: Poste de aco galvanizado, conico, continuo, reto, poligonal, 12m de altura, para suporte a camera de TV. Fornecimento e assentamento.(desonerado) | D27: un | E27: 6632.28 | H27: 4645
A28: ST 64.10.0050 | B28: ST 64.10.0050 (/) | C28: Portico, coluna tubular, em aco galvanizado a quente, trelica para sustentacao das placas, chumbadores para fixacao, vao de 13,20m. Fornecimento.(desonerado) | D28: un | E28: 34255.68 | H28: 6370.39
A29: ST 64.10.0100 | B29: ST 64.10.0100 (/) | C29: Portico, coluna tubular, em aco galvanizado a quente, trelica para sustentacao das placas, chumbadores para fixacao, vao de 15,20m. Fornecimento.(desonerado) | D29: un | E29: 85911.13
A30: ST 64.10.0150 | B30: ST 64.10.0150 (/) | C30: Portico, coluna tubular, em aco galvanizado a quente, trelica para sustentacao das placas, chumbadores para fixacao, vao de 17,20m. Fornecimento.(desonerado) | D30: un | E30: 87901.66
A31: ST 64.10.0200 | B31: ST 64.10.0200 (/) | C31: Portico, coluna tubular, em aco galvanizado a quente, trelica para sustentacao das placas, chumbadores para fixacao, vao de 18,80m. Fornecimento.(desonerado) | D31: un | E31: 89231.1
A32: ST 64.10.0250 | B32: ST 64.10.0250 (/) | C32: Portico, coluna tubular, em aco galvanizado a quente, trelica para sustentacao das placas, chumbadores para fixacao, vao de 22,40m. Fornecimento.(desonerado) | D32: un | E32: 91805.33
A33: ST 64.10.0300 | B33: ST 64.10.0300 (/) | C33: Semi-portico simples, em aco galvanizado a quente, bandeira simples, viga trelicada em balanco e chumbadores para fixacao, coluna tubular, vao de 5,10m. Fornecimento.(desonerado) | D33: un | E33: 29553.78
A34: ST 64.10.0350 | B34: ST 64.10.0350 (/) | C34: Semi-portico simples, em aco galvanizado a quente, bandeira simples, viga trelicada em balanco e chumbadores para fixacao, coluna tubular, vao de 8,60m. Fornecimento.(desonerado) | D34: un | E34: 44257.97
A35: ST 64.10.0400 | B35: ST 64.10.0400 (/) | C35: Semi-portico duplo, coluna tubular em aco galvanizado a quente, trelicas em balanco para sustentacao das placas e chumbadores para fixacao, vao de 5,10m. Fornecimento.(desonerado) | D35: un | E35: 18283.63
A36: ST 64.10.0450 | B36: ST 64.10.0450 (/) | C36: Semi-portico duplo, coluna tubular em aco galvanizado a quente, trelicas em balanco para sustentacao das placas e chumbadores para fixacao, vao de 8,60m. Fornecimento.(desonerado) | D36: un | E36: 32377.18
A37: ST 64.15.0050 (A) | B37: ST 64.15.0050 (A) | C37: Assentamento de poste simples de aco, diametro de 2", inclusive abertura de furo, fundacao e recomposicao do piso.(desonerado) | D37: un | E37: 77.69
A38: ST 64.15.0100 (A) | B38: ST 64.15.0100 (A) | C38: Assentamento de poste simples de aco, diametro maior que 4", inclusive abertura de furo, fundacao e recomposicao do piso.(desonerado) | D38: un | E38: 329.21
A39: ST 64.15.0150 (A) | B39: ST 64.15.0150 (A) | C39: Assentamento e montagem de poste de aco com braco projetado, inclusive abertura de furo, fundacao e recomposicao do piso.(desonerado) | D39: un | E39: 420.64
A40: ST 64.15.0170 (A) | B40: ST 64.15.0170 (A) | C40: Assentamento de coluna de aco conica continua tipo I para ate 4 (quato) bracos projetados capazes de sustentar, cada um, semaforo e placa de 3m2 (tres metros quadrados) fixada por chumbadores engastados em fundacao de concreto, exclusive fundacao, exclusive fornecimento da coluna.(desonerado) | D40: un | E40: 314.52
A41: ST 64.15.0173 | B41: ST 64.15.0173 (/) | C41: Assentamento de coluna conica continua tipo II para 1 (um) ou 2 (dois) bracos projetados capazes de sustentar, cada um, semaforo e placa de ate 4,5m2 fixada por chumbadores engastados em fundacao de concreto, exclusive fundacao, exclusive fornecimento da coluna.(desonerado) | D41: un | E41: 330.07
A42: ST 64.15.0176 | B42: ST 64.15.0176 (/) | C42: Assentamento e montagem de uma coluna de portico ou de semi-portico, fixada por parafusos chumbadores engastados em fundacao.(desonerado) | D42: un | E42: 839.91
A43: ST 64.15.0180 | B43: ST 64.15.0180 (/) | C43: Montagem de braco projetado de aco em coluna de aco conica continua tipo I assentada, exclusive o fornecimento do braco.(desonerado) | D43: un | E43: 81.1
A44: ST 64.15.0186 | B44: ST 64.15.0186 (/) | C44: Montagem de braco projetado em coluna de aco conica continua tipo II assentada, exclusive o fornecimento do braco.(desonerado) | D44: un | E44: 155.49
A45: ST 64.15.0190 | B45: ST 64.15.0190 (/) | C45: Montagem de trelica de portico, com fornecimento das ferragens de fixacao, exclusive a trelica. Para vao entre 13,00 e 23,00m.(desonerado) | D45: un | E45: 1550.43
A46: ST 64.15.0196 | B46: ST 64.15.0196 (/) | C46: Montagem de trelica de semiportico, com fornecimento das ferragens de fixacao, exclusive a trelica. Para vao entre 5,00 e 10,00m.(desonerado) | D46: un | E46: 1046.14
A47: ST 64.15.0200 (A) | B47: ST 64.15.0200 (A) | C47: Retirada de poste simples de aco, diametro de 2".(desonerado) | D47: un | E47: 48.51
A48: ST 64.15.0250 (A) | B48: ST 64.15.0250 (A) | C48: Retirada de poste simples de aco, diametro maior que 4".(desonerado) | D48: un | E48: 273.35
A49: ST 64.15.0300 | B49: ST 64.15.0300 (/) | C49: Retirada de poste com braco projetado, diametro maior que 4".(desonerado) | D49: un | E49: 409.65
A50: ST 64.15.0340 | B50: ST 64.15.0340 (/) | C50: Bloco de concreto armado medindo (0,60 x 0,60 x 1,00)m para uma coluna de aco conica continua para instalacao de ate 4 bracos projetados para sinalizacao.(desonerado) | D50: un | E50: 498.95
A51: ST 64.15.0350 (A) | B51: ST 64.15.0350 (A) | C51: Base de concreto para uma coluna de portico.(desonerado) | D51: un | E51: 1287.55
A52: ST 64.15.1000 | B52: ST 64.15.1000 (/) | C52: Retirada de braco projetado de aco para sustentacao de semaforo e placa de ate 4,5m2, projecao de 6m, 173mm de diametro junto a flange, fixado em coluna conica continua tipo II(desonerado) | D52: un | E52: 99.41
A53: ST 64.15.1200 | B53: ST 64.15.1200 (/) | C53: Retirada de coluna de aco continua tipo II com altura util total de 5m e diametro na base igual a 300mm.(desonerado) | D53: un | E53: 161.28
A54: ST 64.20.0050 | B54: ST 64.20.0050 (/) | C54: Cinta simples para fixacao do conjunto de sustentacao de sinalizacao vertical (semaforos e placas), conforme desenho no 1859-PD. Fornecimento.(desonerado) | D54: par | E54: 9.6
A55: ST 64.20.0050 | B55: ST 64.20.0050 (/) | C55: Cinta simples para fixacao do conjunto de sustentacao de sinalizacao vertical (semaforos e placas), conforme desenho no 1859-PD. Fornecimento.(desonerado) | D55: par | E55: 9.6
